Workbook

Sheet Review Log (hidden)
A1: 1 | B1: Updated Commerce Act Levies in Target Revenue to agree to compliance model
A2: 2 | B2: Allocator Data Tab - Assumed ID references were for 2023 not 2022.
A3: 3 | B3: Renamed connection charge to include new investment contracts
A4: 4 | B4: Deleted Te Anau from Allocator Data and Asset Mapping
A5: 5 | B5: Changed Cost Type for IRIS penalties to recoverable and passthrough
B9: Opex sheet added
B10: Removed "CPP recoverable costs" from Name Labels and replaced it with "Wash-up Drawdown Amount".

Sheet Model Guide
B2: =MID(CELL("filename",A1),FIND("]",CELL("filename",A1))+1,255) -> Model Guide
B5: Key
B7: Input cell | C7: 1000
B8: Source Reference | C8: xxx
B9: Calculation cell | C9: 1000
B10: Calculated percentage | C10: %
B11: Total | C11: 1000
B12: Check cell - no error | C12: 0
B13: Check cell - error | C13: =SUM(C11) -> 1000
B15: Pricing Process
B17: Aurora Energy’s pricing process is designed to support an efficient level of investment in our network for the long-term benefit of customers, and to comply with the Electricity Authority’s 2019 pricing principles. Prices are set to signal the underlying costs of supplying services, using a five step process as outlined below. This Cost of Supply Model (CoSM) is used for steps 2 and 3 of the pricing process.
B43: Model flow diagram
B64: Model overview
B66: The purpose of this model is to allocate the target revenue to: 1. Pricing areas based on the underlying costs of supply, 2. Customer load groups based on service characteristics. A detailed rationale for allocating costs is provided in our Pricing Methodology.
B68: The model has 3 key steps:
B70: 1. Target revenue is entered by component and then allocated to pricing areas based on a proxy allocator of the cost driver. For example, capital related costs are allocated to each pricing area based on the relative RAB value in each pricing area.
B71: 2. The RAB and RAB depreciation are allocated to customer load groups based on each load group's use of network assets, for example larger customers make proportionately more use of HV assets than smaller customers.
B72: 3. Each pricing area's target revenue is further allocated to customer load groups based on underlying service characteristics and use of the network.
B74: Input sheet guide
B76: Target revenue
B78: In the Target Revenue sheet: 1. Each component of target revenue is entered, with totals reconciling to the Annual Price-Setting Disclosure Statement. 2. For each component of target revenue a pricing area allocator is selected to determine what proportion of this target revenue is allocated to each pricing area. 3. For each component of target revenue a load group allocator is selected to determine how each component of target revenue is allocated to customer load groups within each pricing area. 4. Each component of target revenue is assigned as being either distribution or passthrough. This determines whether the component of target revenue is recovered through distribution tariffs, or passthrough tariffs. 5. Each component of target revenue is assigned a cost type. The cost type is used for reporting purposes only, and does not impact prices. 6. The model scales distribution revenue components to match the limit on forecast revenue from prices as disclosed in the annual price-setting statement. Passthrough and recoverable revenue components are not scaled.
B80: Allocator Data
B82: In the Allocator Data sheet the allocators are input at the pricing area and where possible, customer load group level.
B84: Asset Mapping
B86: In the Asset Mapping sheet: 1. Each asset category is identified as supporting either the LV, or HV network. 2. For each customer load group there is a flag to indicate whether they are supplied from the LV, or HV network. 3. The model determines each load group's share of network assets based on the relative CPD values of each customer load group.

Sheet Glossary
B2: =MID(CELL("filename",A1),FIND("]",CELL("filename",A1))+1,255) -> Glossary
B5: Abbreviation | C5: Definition
B6: ACOT | C6: Avoided Cost of Transmission
B7: Capex | C7: Capital Expenditure
B8: CoSM | C8: Cost of Supply Model
B9: CPD | C9: Control Period Demand
B10: CPP | C10: Customised Pricing-quality Path
B11: FENZ | C11: Fire Emergency New Zealand
B12: HV | C12: High Voltage
B13: ICP | C13: Installation Control Point, and is further defined in the Code
B14: IRIS | C14: Incremental Rolling Incentive Scheme
B15: km | C15: kilometre
B16: kVA | C16: kilovolt-ampere
B17: LV | C17: Low Voltage
B18: MWh | C18: Megawatt Hours
B19: Opex | C19: Operating Expenditure
B20: RAB | C20: Regulatory Asset Base
B21: SONS | C21: System Operations and Network Support

Sheet Check Summary
B2: Check Summary
B3: Description
B5: This sheet provides a summary of the checks witin the Workbook.
B8: Model Status | C8: Flag | D8: Check
B10: Model Status | C10: Ok / Error | D10: 0
B12: Target Revenue
B13: Scaled revenue is equal to limit on forecast revenue from prices | C13: Ok / Error | D13: 0
B15: Asset Mapping
B16: Network types are fully allocated | C16: Ok / Error | D16: 0
B18: Pricing Area Allocations
B19: Target revenue is fully allocated to pricing areas | C19: Ok / Error | D19: 0
B21: RAB Allocations
B22: RAB is fully allocated to pricing areas and load groups | C22: Ok / Error | D22: 0
B24: RAB - Depreciation Allocations
B25: RAB is fully allocated to pricing areas and load groups | C25: Ok / Error | D25: 0
B27: Price Allocations
B28: Pricing area load group totals match pricing area allocations | C28: Ok / Error | D28: 0
B30: Revenue by Pricing Area and Load Group
B31: Distribution and passthrough by load group matches target revenue | C31: Ok / Error | D31: 0
B33: Pricing Methodology Tables
B34: Table updates match model inputs | C34: Ok / Error | D34: 0

Sheet Name labels
B2: =MID(CELL("filename",A1),FIND("]",CELL("filename",A1))+1,255) -> Name labels
B4: Description
B6: This sheet records the name labels and look-up tables used in the model.
B8: Pricing Area Name | C8: Customer Load Groups | D8: Prior year | E8: This Year
B10: Dunedin | C10: Load group Streetlighting | D10: RY26 | E10: RY27
B11: Central Otago | C11: Load group 1 (incl residential)
B12: Queenstown | C12: Load group 2
B13: Te Anau | C13: Load group 3
C14: Load group 4
C15: Load group 5
B17: Target Revenue Components | C17: Distribution / Passthrough | D17: Cost type | E17: Tariff Types
B19: Service interruptions and emergencies | C19: Distribution | D19: Operational costs | E19: Daily Fixed Price
B20: Vegetation management | C20: Distribution | D20: Operational costs | E20: Capacity Price
B21: Routine and corrective maintenance and inspection | C21: Distribution | D21: Operational costs | E21: Distance Price
B22: System operations and network support | C22: Distribution | D22: Operational costs | E22: CPD Price
B23: Business support | C23: Distribution | D23: Operational costs
B24: Depreciation | C24: Distribution | D24: Capital related costs
B25: Asset revaluations and other regulatory revenue | C25: Distribution | D25: Capital related costs
B26: Tax | C26: Distribution | D26: Capital related costs
B27: Return on capital | C27: Distribution | D27: Capital related costs
B28: Local Authority rates | C28: Passthrough | D28: Passthrough and recoverable costs
B29: Commerce Act levies | C29: Passthrough | D29: Passthrough and recoverable costs
B30: Electricity Authority levies | C30: Passthrough | D30: Passthrough and recoverable costs
B31: Utilities Disputes levies | C31: Passthrough | D31: Passthrough and recoverable costs
B32: Opex Incentive Amount | C32: Passthrough | D32: Passthrough and recoverable costs
B33: Capex Incentive Amount | C33: Passthrough | D33: Passthrough and recoverable costs
B34: Transpower - Connection charge | C34: Passthrough | D34: Passthrough and recoverable costs
B35: Transpower - Interconnection costs | C35: Passthrough | D35: Passthrough and recoverable costs
B36: Transpower - New investment contract | C36: Passthrough | D36: Passthrough and recoverable costs
B37: Distributed Generation Allowance | C37: Passthrough | D37: Passthrough and recoverable costs
B38: Wash-up Drawdown Amount | C38: Passthrough | D38: Passthrough and recoverable costs
B39: Quality Incentive Adjustments | C39: Passthrough | D39: Passthrough and recoverable costs
B40: Capex Wash-up Adjustment | C40: Passthrough | D40: Passthrough and recoverable costs
B41: Fire and Emergency Management New Zealand (FENZ) levies | C41: Passthrough | D41: Passthrough and recoverable costs
B42: Opening wash-up Account Balance | C42: Passthrough | D42: Operational costs
B43: Transmission Costs | C43: Passthrough | D43: Passthrough and recoverable costs
B44: Transpower - Benefit-based Charge | C44: Passthrough | D44: Passthrough and recoverable costs
B45: Transpower - Residual Charge | C45: Passthrough | D45: Passthrough and recoverable costs
B46: Transpower - Transitional Price Cap | C46: Passthrough | D46: Passthrough and recoverable costs
B49: Pricing Area Allocators | C49: Load Group Allocators | D49: RAB Allocators
B51: ICP Count | C51: ICP Count | D51: CPD
B52: Total Circuit Length | C52: CPD
B53: Overhead Circuit Length | C53: Prior year distribution revenue
B54: CPD | C54: MWh
B55: Transpower connection charge and NIC | C55: Regulated Asset Base
B56: Transpower benefit based charge | C56: Regulated Asset Base (Depreciation)
B57: Transpower residual charge
B58: Transpower transitional price cap
B59: Distributed Generation Allowance
B60: Prior year distribution revenue
B61: MWh
B62: BBC
B63: Residual
B64: Cap
B65: Regulated Asset Base
B66: Regulated Asset Base (Depreciation)
B67: Overhead lines and underground cables
B69: Distribution / Passthrough | C69: Cost type
B71: Distribution | C71: Capital related costs
B72: Passthrough | C72: Operational costs
C73: Passthrough and recoverable costs
B75: Asset Categories | C75: Network Voltage | D75: Network Use Indicators
B77: 33KV Lines | C77: LV | D77: Yes
B78: 33KV Cables | C78: HV | D78: No
B79: Zone Subs | C79: Shared
B80: HV lines
B81: LV lines
B82: HV cables
B83: LV cables
B84: Dist Subs
B85: Other Network Assets
B86: Non-Network Assets
B88: Tariff Types
B90: Daily Fixed
B91: CPD
B92: Capacity
B93: Distance
B94: Shared

Sheet Inputs >
B2: This sheet has been deliberately left blank.

Sheet Opex,Capex & Tax DPP4 (hidden)
AG1: Company Name | AH1: =IF(NOT(ISBLANK([2]CoverSheet!$C$8)),[2]CoverSheet!$C$8,"") -> Aurora Energy Limited
A2: CPP | B2: Source: Aurora-CPP-Expenditure-Model-With-ComCom-Adjustments-Final-Decision-31-March-2021 | AG2: For Year Ended | AH2: =IF(ISNUMBER(#REF!),#REF!,"") -> 
A3: Operating expenditure | B3: Units | C3: Value | D3: IM reference | AA3: SCHEDULE 5b: REPORT ON RELATED PARTY TRANSACTIONS
S4: % | T4: RY27 OPEX for DPP4 | AA4: This schedule provides information on the valuation of related party transactions, in accordance with clause 2.3.6 of this ID determination. This information is part of audited disclosure information (as defined in clause 1.4 of this ID determination), and so is subject to the assurance report required by clause 2.8.
A5: Service interruptions and emergencies | B5: Nominal $ | L5: 3950943.5 | M5: 4752989.335 | N5: 4778072.851 | O5: 4812963.623 | P5: 4822022.046 | Q5: 4857119.73 | R5: 4857278.977 | S5: =AI11/$AJ$15 -> 0.2290439353 | T5: =S5*$B$41 -> 4776.367032 | AA5: sch ref
A6: Vegetation management | B6: Nominal $ | L6: 5579509.061 | M6: 4080500.776 | N6: 5576928.251 | O6: 5255951.486 | P6: 3927094.512 | Q6: 3937880.631 | R6: 3921798.362 | S6: =AI12/$AJ$15 -> 0.1579701041 | T6: =S6*$B$41 -> 3294.229102 | AA6: 7 | AC6: 5b(i): Summary—Related Party Transactions | AI6: ($000) | AJ6: ($000)
A7: Routine and corrective maintenance and inspection | B7: Nominal $ | L7: 7575601 | M7: 8960826.282 | N7: 10536932.79 | O7: 10117339.66 | P7: 10394228.28 | Q7: 9569861.808 | R7: 9757868.652 | S7: =AI13/$AJ$15 -> 0.6129859606 | T7: =S7*$B$41 -> 12782.90093 | AA7: 8 | AF7: Total regulatory income | AJ7: 0
A8: Asset replacement and renewal | B8: Nominal $ | L8: 0 | M8: 0 | N8: 0 | O8: 0 | P8: 0 | Q8: 0 | R8: 0 | S8: =AI14/$AJ$15 -> 0 | T8: =S8*$B$41 -> 0 | AA8: 9
A9: Total network opex | B9: Nominal $ | L9: 17106053.56 | M9: 17794316.39 | N9: 20891933.89 | O9: 20186254.76 | P9: 19143344.84 | Q9: 18364862.17 | R9: 18536945.99 | S9: =SUM(S5:S8) -> 1 | T9: =S9*$B$41 -> 20853.49707 | AA9: 10 | AF9: Market value of asset disposals | AJ9: 0
AA10: 11
A11: System operations and network support | B11: Nominal $ | L11: 15037203.63 | M11: 16007579.26 | N11: 16095499.56 | O11: 15373119.34 | P11: 14992535.05 | Q11: 14794618.31 | R11: 14214640.06 | S11: =AI17/SUM($AI$16:$AI$17) -> 0.03244217483 | T11: =S11*$B$49 -> 1285.489104 | AA11: 12 | AF11: Service interruptions and emergencies | AI11: 3872.735
A12: Business support | B12: Nominal $ | L12: 15095413.91 | M12: 14816910.31 | N12: 15020887.21 | O12: 15144046.46 | P12: 14919812.52 | Q12: 14712020.89 | R12: 14845338.24 | S12: =AI16/SUM($AI$16:$AI$17) -> 0.9675578252 | T12: =S12*$B$49 -> 38338.52225 | AA12: 13 | AF12: Vegetation management | AI12: 2671
A13: Total non-network opex | B13: Nominal $ | L13: 30132617.54 | M13: 30824489.57 | N13: 31116386.77 | O13: 30517165.79 | P13: 29912347.56 | Q13: 29506639.2 | R13: 29059978.3 | S13: =SUM(S11:S12) -> 1 | T13: =S13*$B$49 -> 39624.01135 | AA13: 14 | AF13: Routine and corrective maintenance and inspection | AI13: 10364.52758
AA14: 15 | AF14: Asset replacement and renewal (opex) | AI14: 0
A15: Total operating expenditure | B15: Nominal $ | L15: 47238671.1 | M15: 48618805.97 | N15: 52008320.67 | O15: 50703420.56 | P15: 49055692.41 | Q15: 47871501.37 | R15: 47596924.29 | T15: =T9+T13 -> 60477.50842 | U15: =T15=B33 -> TRUE | AA15: 16 | AF15: Network opex | AJ15: 16908.26258
AA16: 17 | AF16: Business support | AI16: 3221
A17: Operating leases | AA17: 18 | AF17: System operations and network support | AI17: 108
A18: SONS | L18: 656503.928 | M18: 655183.4552 | N18: 641823.696 | O18: 636199.5882 | P18: 392765.4786 | Q18: 295808.7768 | R18: 291331.4054 | S18: =R18/$R$20 -> 0.3431827547 | T18: =S18*$H$33 -> 449.3948614 | AA18: 19 | AF18: Non-network solutions provided by a related party or third party | AI18: 0
A19: Premises Plant & Insurance | B19: Nominal $ | L19: 868995.1846 | M19: 776874.9616 | N19: 763491.9825 | O19: 756801.7322 | P19: 755485.8468 | Q19: 558312.1205 | R19: 557578.9825 | S19: =R19/$R$20 -> 0.6568172453 | T19: =S19*$H$33 -> 860.0965255 | AA19: 20 | AF19: Operational expenditure | AJ19: 20237.26258
A20: Total | B20: Nominal $ | L20: 1525499.113 | M20: 1432058.417 | N20: 1405315.678 | O20: 1393001.32 | P20: 1148251.325 | Q20: 854120.8973 | R20: 848910.388 | S20: =R20/$R$20 -> 1 | T20: =S20*$H$33 -> 1309.491387 | U20: =T20=H33 -> TRUE
A28: DPP4 | B28: OpexProjectionsModel_AuroraDPP4FINAL_25Nov2025
A29: Total opex series (nominal) | G29: Operating Leases Forecasts (nominal)
A30: Total opex series (nominal) 2024 | B30: 0 | C30: 0 | G30: A change to Accounting standards, for operating leases, occurred 2019. This has no effect on the DPP4 Opex allowance calculation. But it does have an impact on Opex for
A31: Total opex series (nominal) 2025 | B31: 51645.0543 | C31: 51645.0543 | G31: IRIS calculations, which is required for the DPP4 Determination.
A32: Total opex series (nominal) 2026 | B32: 53841.34309 | C32: 53841.34309
A33: Total opex series (nominal) 2027 | B33: 60477.50842 | C33: 60477.50842 | G33: Forecast operating lease payments, 2027 | H33: 1309.491387
A34: Total opex series (nominal) 2028 | B34: 59787.08821 | C34: 59787.08821 | G34: Forecast operating lease payments, 2028 | H34: 1453.007221
A35: Total opex series (nominal) 2029 | B35: 60813.40976 | C35: 60813.40976 | G35: Forecast operating lease payments, 2029 | H35: 1513.088074
A36: Total opex series (nominal) 2030 | B36: 62600.3869 | C36: 62600.3869 | G36: Forecast operating lease payments, 2030 | H36: 1538.143691
A37: Network opex series (nominal)
A38: Network opex series (nominal) 2024 | B38: 0 | C38: 0
A39: Network opex series (nominal) 2025 | B39: 19411.18982 | C39: 19411.18982
A40: Network opex series (nominal) 2026 | B40: 20193.58377 | C40: 20193.58377
A41: Network opex series (nominal) 2027 | B41: 20853.49707 | C41: 20853.49707
A42: Network opex series (nominal) 2028 | B42: 21501.97079 | C42: 21501.97079
A43: Network opex series (nominal) 2029 | B43: 22232.54603 | C43: 22232.54603
A44: Network opex series (nominal) 2030 | B44: 23004.60805 | C44: 23004.60805
A45: Non-network opex series (nominal)
A46: Non-network opex series (nominal) 2024 | B46: 0 | C46: 0
A47: Non-network opex series (nominal) 2025 | B47: 32233.86448 | C47: 32233.86448
A48: Non-network opex series (nominal) 2026 | B48: 33647.75932 | C48: 33647.75932
A49: Non-network opex series (nominal) 2027 | B49: 39624.01135 | C49: 39624.01135
A50: Non-network opex series (nominal) 2028 | B50: 38285.11742 | C50: 38285.11742
A51: Non-network opex series (nominal) 2029 | B51: 38580.86372 | C51: 38580.86372
A52: Non-network opex series (nominal) 2030 | B52: 39595.77885 | C52: 39595.77885
A56: CPP total opex series (nominal)
A58: CPP total opex series (nominal) 2022 | B58: 52008.32067 | C58: Numbers in the DPP4 model match the CPP model
A59: CPP total opex series (nominal) 2023 | B59: 50703.42056
A60: CPP total opex series (nominal) 2024 | B60: 49055.69241
A61: CPP total opex series (nominal) 2025 | B61: 47871.50137
A62: CPP total opex series (nominal) 2026 | B62: 47596.92429
AG67: The forecast for other regulated income has been calculated based on a five-year historical average for both income associated with the supply of electricity distribution services, and gains and losses on disposed assets.
Q70: DPP4 FinancialModel_AuroraDPP4FINAL_25Nov2025 : Sheet Output
G72: 2019-04-01 | H72: 2020-04-01 | I72: 2021-04-01 | J72: 2022-04-01 | K72: 2023-04-01 | L72: 2024-04-01 | M72: 2025-04-01 | Q72: Revaluations | AG72: Year | AH72: Gains / (losses) on asset disposals
A73: CPP from Aurora-CPP-Financial-Model-With-ComCom-Adjustments-Final-Decision-31-March-2021: Sheet RABx | G73: 2020-03-31 | H73: 2021-03-31 | I73: 2022-03-31 | J73: 2023-03-31 | K73: 2024-03-31 | L73: 2025-03-31 | M73: 2026-03-31 | Q73: 2025 | R73: 18201.06857 | S73: 18201.06857 | AG73: 2021 | AH73: =-830*1000 -> -830000 | AI73: Schedule 3(i): Regulatory Profit | AJ73: auroraenergy-2021-information-disclosure-pursuant-to-electricity-distrib-info-disclosure-determination-2012.pdf
G74: RY20 | H74: RY21 | I74: RY22 | J74: RY23 | K74: RY24 | L74: RY25 | M74: RY26 | Q74: 2026 | R74: 18797.97982 | S74: 18797.97982 | AG74: 2022 | AH74: =-2087*1000 -> -2087000 | AI74: Schedule 3(i): Regulatory Profit | AJ74: auroraenergy-2022-information-disclosure.pdf
A75: Total revaluation | G75: Assessment period | I75: CPP period | Q75: 2027 | R75: 19307.95932 | S75: 19307.95932 | AG75: 2023 | AH75: =-2445*1000 -> -2445000 | AI75: Schedule 3(i): Regulatory Profit | AJ75: information-disclosure-for-the-year-ending-31-march-2023.pdf
Q76: 2028 | R76: 21085.06013 | S76: 21085.06013 | AG76: 2024 | AH76: =-1962*1000 -> -1962000 | AI76: Schedule 3(i): Regulatory Profit | AJ76: aurora-energy-information-disclosure-for-the-year-ending-31-march-2024.pdf
A77: Opening RAB value | B77: Nominal $ | G77: 447072181.5 | H77: 497735451.1 | I77: 558987258 | J77: 626651027.6 | K77: 682493914 | L77: 750100109.6 | M77: 810142060.6 | Q77: 2029 | R77: 23249.31717 | S77: 23249.31717 | AG77: 2025 | AH77: =-1976*1000 -> -1976000 | AI77: Schedule 3(i): Regulatory Profit | AJ77: Aurora Energy 2025 Information Disclosure for year ending 31 March 2025.pdf
A78: less assets with a remaining life of nil | B78: Nominal $ | G78: 1167611.44 | H78: 1167611.44 | I78: 1240286.271 | J78: 1267272.676 | K78: 1167611.44 | L78: 1184441.246 | M78: 1328397.748 | Q78: 2030 | R78: 25102.34348 | S78: 25102.34348 | AG78: Average | AH78: =AVERAGE(AH73:AH77) -> -1860000
A79: less Disposals | B79: Nominal $ | G79: 765869.139 | H79: 678520.6526 | I79: 590091.0657 | J79: 499892.887 | K79: 432548.3808 | L79: 441199.3484 | M79: 450023.3354
A80: Adjusted RAB value | B80: Nominal $ | G80: 445138700.9 | H80: 495889319 | I80: 557156880.6 | J80: 624883862.1 | K80: 680893754.2 | L80: 748474469.1 | M80: 808363639.5
A81: multiply by Revaluation rate | B81: % | G81: 0.017 | H81: 0.019 | I81: 0.02 | J81: 0.02 | K81: 0.02 | L81: 0.02 | M81: 0.02
A82: Total Revaluation | B82: Nominal $ | D82: IM 5.3.10 | G82: 7567357.916 | H82: 9421897.061 | I82: 11143137.61 | J82: 12497677.24 | K82: 13617875.08 | L82: 14969489.38 | M82: 16167272.79 | AG82: Year | AH82: Other regulated income (other than gains / (losses) on asset disposals)
AG83: 2021 | AH83: =929*1000 -> 929000 | AI83: Schedule 3(i): Regulatory Profit | AJ83: auroraenergy-2021-information-disclosure-pursuant-to-electricity-distrib-info-disclosure-determination-2012.pdf
A84: Total depreciation | AG84: 2022 | AH84: =667*1000 -> 667000 | AI84: Schedule 3(i): Regulatory Profit | AJ84: auroraenergy-2022-information-disclosure.pdf
AG85: 2023 | AH85: =666*1000 -> 666000 | AI85: Schedule 3(i): Regulatory Profit | AJ85: information-disclosure-for-the-year-ending-31-march-2023.pdf
A86: Opening RAB value | B86: Nominal $ | G86: 447072181.5 | H86: 497735451.1 | I86: 558987258 | J86: 626651027.6 | K86: 682493914 | L86: 750100109.6 | M86: 810142060.6 | AG86: 2024 | AH86: =971*1000 -> 971000 | AI86: Schedule 3(i): Regulatory Profit | AJ86: aurora-energy-information-disclosure-for-the-year-ending-31-march-2024.pdf
A87: multiply by (1 / Remaining asset life) | B87: #.## | G87: 0.03764758376 | H87: 0.03774378679 | I87: 0.03701729607 | J87: 0.03660729756 | K87: 0.0361706314 | L87: 0.03576782113 | M87: 0.03561554527 | AG87: 2025 | AH87: =1422*1000 -> 1422000 | AI87: Schedule 3(i): Regulatory Profit | AJ87: Aurora Energy 2025 Information Disclosure for year ending 31 March 2025.pdf
A88: Total depreciation | B88: Nominal $ | D88: IM 5.3.7 (2) | G88: 16831187.4 | H88: 18786420.74 | I88: 20692196.83 | J88: 22940000.64 | K88: 24686235.8 | L88: 26829446.55 | M88: 28853651.24 | AG88: Average | AH88: =AVERAGE(AH83:AH87) -> 931000
A90: Total opening RAB value without revaluations | AH90: =SUM(AH78,AH88)/1000 -> -929
Q91: DPP4 FinancialModel_AuroraDPP4FINAL_25Nov2025 : Sheet TAX | AH91: =AH90*-1 -> 929
A92: Opening RAB value without revaluations | B92: Nominal $ | G92: 410128234.4 | H92: 454934580 | I92: 508784922.8 | J92: 567709959.3 | K92: 613893720.7 | L92: 671134687.4 | M92: 719991607.1 | Q92: Outputs
A93: less Adjusted depreciation | B93: Nominal $ | G93: 15171757.64 | H93: 16829643.41 | I93: 18363018.45 | J93: 20186476.24 | K93: 21466138.09 | L93: 23086187.75 | M93: 24551684.49 | T93: 2024/25 | U93: 2025/26 | V93: 2026/27 | W93: 2027/28 | X93: 2028/29 | Y93: 2029/30
A94: less Disposals without revaluations | B94: Nominal $ | G94: 714865 | H94: 614865 | I94: 514865 | J94: 414865 | K94: 400000 | L94: 400000 | M94: 400000 | Q94: Total adjusted depreciation of commissioned assets | T94: 0 | U94: 0 | V94: 2025.218939 | W94: 4490.679237 | X94: 7356.570478 | Y94: 9880.689201
A95: add Total value of commissioned assets | B95: Nominal $ | G95: 60692968.2 | H95: 71294851.21 | I95: 77802919.96 | J95: 66785102.68 | K95: 79107104.7 | L95: 72343107.5 | M95: 66597227.26 | Q95: Opening deferred tax | T95: -38492 | U95: -46320.66756 | V95: -53901.30688 | W95: -62244.52776 | X95: -72004.77291 | Y95: -82893.11931
A96: Closing RAB value without revaluations | B96: Nominal $ | G96: 454934580 | H96: 508784922.8 | I96: 567709959.3 | J96: 613893720.7 | K96: 671134687.4 | L96: 719991607.1 | M96: 761637149.9 | Q96: Closing deferred tax | T96: -46320.66756 | U96: -53901.30688 | V96: -62244.52776 | W96: -72004.77291 | X96: -82893.11931 | Y96: -94304.179
Q97: Regulatory tax adjustments | T97: -6214.539602 | U97: -8565.307253 | V97: -9504.568452 | W97: -11233.27001 | X97: -12927.07492 | Y97: -14031.57319
A98: Total adjusted depreciation | Q98: Opening RAB excluding revaluations | T98: 682628.0538 | U98: 744936.9546 | V98: 802475.5644 | W98: 878599.1778 | X98: 972420.9201 | Y98: 1049077.709
Q99: Tax depreciation | T99: 47834.125 | U99: 51646.4243 | V99: 55113.04841 | W99: 60051.33436 | X99: 66163.01513 | Y99: 70317.63019
A100: Opening RAB value | B100: Nominal $ | G100: 410128234.4 | H100: 454934580 | I100: 508784922.8 | J100: 567709959.3 | K100: 613893720.7 | L100: 671134687.4 | M100: 719991607.1 | Q100: Opening regulatory tax asset value | T100: 516935.141 | U100: 558134.0022 | V100: 595597.2113 | W100: 648964.4159 | X100: 715012.2962 | Y100: 759910.5048
A101: multiply by (1 / Remaining asset life) | B101: #.## | G101: 0.03699271682 | H101: 0.03699354621 | I101: 0.03609190765 | J101: 0.03555772786 | K101: 0.03496718954 | L101: 0.0343987402 | M101: 0.03409995928 | Q101: Amortisation of initial differences in asset values | T101: 4873.427383 | U101: 4873.427383 | V101: 4873.427383 | W101: 4873.427383 | X101: 4873.427383 | Y101: 4873.427383
A102: Total depreciation | B102: Nominal $ | G102: 15171757.64 | H102: 16829643.41 | I102: 18363018.45 | J102: 20186476.24 | K102: 21466138.09 | L102: 23086187.75 | M102: 24551684.49 | Q102: Opening deferred tax balance | T102: -38492 | U102: -46320.66756 | V102: -53901.30688 | W102: -62244.52776 | X102: -72004.77291 | Y102: -82893.11931
Q103: Total adjusted depreciation | T103: 24748.02538 | U103: 29446.13983 | V103: 30189.25835 | W103: 30066.74335 | X103: 32149.49108 | Y103: 34437.27296
Q104: Tax payable for the deferred tax approach in tax date terms | V104: 2201.129225 | W104: 4974.146586 | X104: 7319.06816 | Y104: 10657.01962
A109: Source: Aurora-CPP-Financial-Model-With-ComCom-Adjustments-Final-Decision-31-March-2021: sheet TAXx
A110: Regulatory Tax Module | B110: Units | C110: Value | D110: IM reference | G110: 2019-04-01 | H110: 2020-04-01 | I110: 2021-04-01 | J110: 2022-04-01 | K110: 2023-04-01 | L110: 2024-04-01 | M110: 2025-04-01
G111: 2020-03-31 | H111: 2021-03-31 | I111: 2022-03-31 | J111: 2023-03-31 | K111: 2024-03-31 | L111: 2025-03-31 | M111: 2026-03-31
A112: Forecast regulatory tax allowance | G112: RY20 | H112: RY21 | I112: RY22 | J112: RY23 | K112: RY24 | L112: RY25 | M112: RY26
G113: Assessment period | I113: CPP period
A114: Regulatory taxable income | B114: Nominal $ | G114: 24347802.22 | H114: 18017470.24 | I114: 18942756.92 | J114: 20291270.98 | K114: 22314129.05 | L114: 24289235.49 | M114: 25783810.09 | Q114: DPP4 FinancialModel_AuroraDPP4FINAL_25Nov2025 : Sheet TAX
A115: less Utilised tax losses | B115: Nominal $ | G115: 0 | H115: 0 | I115: 0 | J115: 0 | K115: 0 | L115: 0 | M115: 0 | Q115: Net regulatory taxable income and regulatory tax allowance | S115: NPV | T115: 2024/25 | U115: 2025/26 | V115: 2026/27 | W115: 2027/28 | X115: 2028/29 | Y115: 2029/30
A116: Regulatory net taxable income | B116: Nominal $ | D116: IM 5.3.13 (2) | G116: 24347802.22 | H116: 18017470.24 | I116: 18942756.92 | J116: 20291270.98 | K116: 22314129.05 | L116: 24289235.49 | M116: 25783810.09 | Q116: This calculates the regulatory tax allowance which is used in the BBAR calculation.
A117: multiply by Corporate tax rate | B117: % | G117: 0.28 | H117: 0.28 | I117: 0.28 | J117: 0.28 | K117: 0.28 | L117: 0.28 | M117: 0.28 | Q117: Regulatory taxable income | V117: 52404.27213 | W117: 56091.52526 | X117: 59417.30656 | Y117: 62728.22519 | AB117: simple ref
A118: Forecast regulatory tax allowance | B118: Nominal $ | D118: IM 5.3.13 (1) | G118: 6817384.623 | H118: 5044891.667 | I118: 5303971.938 | J118: 5681555.874 | K118: 6247956.134 | L118: 6800985.937 | M118: 7219466.827 | Q118: Utilised tax losses | V118: 0 | W118: 0 | X118: 0 | Y118: 0 | AB118: simple ref
Q119: Regulatory net taxable income | V119: 52404.27213 | W119: 56091.52526 | X119: 59417.30656 | Y119: 62728.22519 | AB119: 4.3.1(2)
Q120: x Corporate tax rate
Q121: Regulatory tax allowance in tax date terms | S121: 54284.82077 | V121: 14673.1962 | W121: 15705.62707 | X121: 16636.84584 | Y121: 17563.90305 | AB121: 4.3.1(3)
Q122: Regulatory tax allowance in year-end terms | S122: 56173.61019 | V122: 15183.73629 | W122: 16252.08963 | X122: 17215.70928 | Y122: 18175.02259 | AB122: simple ref
Q123: Check to BBAR tax allowance | V123: -1.637090463e-11 | W123: 0 | X123: 0 | Y123: 0
V125: =V119*0.28 -> 14673.1962

Sheet Target Revenue
B2: Target Revenue
B8: Description
B10: In this sheet the target revenue is input at the cost category and cost item level consistent with the annual price-setting statement and the Commerce Commission's financial models.
B11: The Pricing Area and Load Group Allocators are selected to determine how costs are allocated.
B12: The target revenue is then scaled to match the total revenue allowable.
B13: More information about the target revenue components is provided in section 3.4 of the Pricing Methodology.
B15: Target Revenue Components | D15: Pricing Area Allocators | E15: Load Group Allocators | F15: Tariff Type | G15: Distribution / Passthrough | H15: Cost type | I15: RY26 inputs ($000's) | J15: RY27 inputs ($000's) | K15: Scaled target revenue | L15: Source & comments
B17: Service interruptions and emergencies | C17: (50% allocated by Total Circuit Length) | D17: Total Circuit Length | E17: CPD | F17: Capacity | G17: Distribution | H17: Operational costs | I17: 2428.639489 | J17: 2388.183516 | K17: 2982.055361 | L17: Aurora DPP4 Opex Projection Model - Final Decision - 26 November 2025 (published on Commerce Commission website).
B18: Service interruptions and emergencies | C18: (50% allocated by ICP Count) | D18: ICP Count | E18: ICP Count | F18: Daily Fixed | G18: Distribution | H18: Operational costs | I18: 2428.639489 | J18: 2388.183516 | K18: 2982.055361
B19: Vegetation management | D19: Overhead Circuit Length | E19: CPD | F19: Distance | G19: Distribution | H19: Operational costs | I19: 3921.798362 | J19: 3294.229102 | K19: 4113.408157
B20: Routine and corrective maintenance and inspection | D20: Total Circuit Length | E20: CPD | F20: Capacity | G20: Distribution | H20: Operational costs | I20: 9757.868652 | J20: 12782.90093 | K20: 15961.63695
B21: System operations and network support | D21: ICP Count | E21: ICP Count | F21: Daily Fixed | G21: Distribution | H21: Operational costs | I21: 14505.97147 | J21: 1734.883965 | K21: 2166.299195
B22: Business support | D22: ICP Count | E22: ICP Count | F22: Daily Fixed | G22: Distribution | H22: Operational costs | I22: 15402.91722 | J22: 39198.61878 | K22: 48946.17624
B23: Depreciation | D23: Regulated Asset Base (Depreciation) | E23: Regulated Asset Base (Depreciation) | F23: Capacity | G23: Distribution | H23: Capital related costs | I23: 24551.68449 | J23: 30189.25835 | K23: 37696.44967 | L23: Aurora DPP4 Financial Model - Final Decision - 25 November 2025 (published on Commerce Commission website).
B24: Asset revaluations and other regulatory revenue | D24: Regulated Asset Base | E24: Regulated Asset Base | F24: Capacity | G24: Distribution | H24: Capital related costs | I24: -16167.27279 | J24: -19307.95932 | K24: -24109.28776
B25: Tax | D25: Regulated Asset Base | E25: Regulated Asset Base | F25: Capacity | G25: Distribution | H25: Capital related costs | I25: 7219.466827 | J25: 14673.1962 | K25: 18321.99372
B26: Return on capital | D26: Regulated Asset Base | E26: Regulated Asset Base | F26: Capacity | G26: Distribution | H26: Capital related costs | I26: 49796.2868 | J26: 57040.50497 | K26: 71224.82108 | L26: Amount required to balance to Forecast net allowable revenue
B27: Local Authority rates | D27: Regulated Asset Base | E27: Regulated Asset Base | F27: Capacity | G27: Passthrough | H27: Passthrough and recoverable costs | I27: 1833.362 | J27: 2051.955 | K27: 2051.955 | L27: Annual Price-Setting Compliance Statement - Table 7
B28: Commerce Act levies | D28: Regulated Asset Base | E28: Regulated Asset Base | F28: Capacity | G28: Passthrough | H28: Passthrough and recoverable costs | I28: 444.392 | J28: 348.358 | K28: 348.358
B29: Electricity Authority levies | C29: (80% allocated by MWh) | D29: MWh | E29: MWh | F29: Capacity | G29: Passthrough | H29: Passthrough and recoverable costs | I29: 309.5464 | J29: 335.1504 | K29: 335.1504
B30: Electricity Authority levies | C30: (20% allocated by ICP Count) | D30: ICP Count | E30: ICP Count | F30: Daily Fixed | G30: Passthrough | H30: Passthrough and recoverable costs | I30: 77.3866 | J30: 83.7876 | K30: 83.7876
B31: Utilities Disputes levies | D31: ICP Count | E31: ICP Count | F31: Daily Fixed | G31: Passthrough | H31: Passthrough and recoverable costs | I31: 70.724 | J31: 75.601 | K31: 75.601
B32: Opex Incentive Amount | D32: Prior year distribution revenue | E32: Prior year distribution revenue | F32: Daily Fixed | G32: Passthrough | H32: Passthrough and recoverable costs | I32: 29264.87322 | J32: -6549.468 | K32: -6549.468
B33: Capex Incentive Amount | D33: Regulated Asset Base | E33: Regulated Asset Base | F33: Capacity | G33: Passthrough | H33: Passthrough and recoverable costs | I33: 0 | J33: -1352.855021 | K33: -1352.855021
B34: Transmission Costs | C34: Transpower - Connection charge | D34: Transpower connection charge and NIC | E34: MWh | F34: Capacity | G34: Passthrough | H34: Passthrough and recoverable costs | I34: 6633.40825 | J34: 6938.4463 | K34: 6938.4463
B35: Transmission Costs | C35: Transpower - Benefit-based Charge | D35: Transpower benefit based charge | E35: MWh | F35: Capacity | G35: Passthrough | H35: Passthrough and recoverable costs | I35: 2934.371895 | J35: 3075.385392 | K35: 3075.385392
B36: Transmission Costs | C36: Transpower - Residual Charge | D36: Transpower residual charge | E36: MWh | F36: Capacity | G36: Passthrough | H36: Passthrough and recoverable costs | I36: 19938.97594 | J36: 24465.02968 | K36: 24465.02968
B37: Transmission Costs | C37: Transpower - Transitional Price Cap | D37: Transpower transitional price cap | E37: MWh | F37: Capacity | G37: Passthrough | H37: Passthrough and recoverable costs | I37: 12.78342 | J37: 15.33373 | K37: 15.33373
B38: Transmission Costs | C38: Transpower - Interconnection costs | D38: Transpower connection charge and NIC | E38: MWh | F38: Capacity | G38: Passthrough | H38: Passthrough and recoverable costs | K38: 0
B39: Transmission Costs | C39: Transpower - New investment contract | D39: Transpower connection charge and NIC | E39: MWh | F39: Capacity | G39: Passthrough | H39: Passthrough and recoverable costs | I39: 742.87272 | J39: 2467.48908 | K39: 2467.48908
B40: Transmission Costs | C40: Distributed Generation Allowance | D40: Distributed Generation Allowance | E40: MWh | F40: Capacity | G40: Passthrough | H40: Passthrough and recoverable costs | K40: 0
B41: Wash-up Drawdown Amount | F41: Daily Fixed | G41: Passthrough | H41: Passthrough and recoverable costs | J41: 34974.60798 | K41: 0
B42: Quality Incentive Adjustments | D42: ICP Count | E42: ICP Count | F42: Daily Fixed | G42: Passthrough | H42: Passthrough and recoverable costs | I42: -500.026 | J42: 29.222 | K42: 29.222
B43: Capex Wash-up Adjustment | D43: Regulated Asset Base | E43: Regulated Asset Base | F43: Capacity | G43: Passthrough | H43: Passthrough and recoverable costs | I43: -855.7635366 | J43: 0 | K43: 0
B44: Fire and Emergency Management New Zealand (FENZ) levies | D44: Regulated Asset Base | E44: Regulated Asset Base | F44: Capacity | G44: Passthrough | H44: Passthrough and recoverable costs | I44: 79.18 | J44: 44.19952 | K44: 44.19952
B45: Opening wash-up Account Balance | I45: 28075.41285 | J45: 0
B46: Forecast Allowable Revenue | I46: 202907.4998 | J46: 211384.2427
B47: Forecast Revenue From Prices | I47: 178157.962 | J47: 212313.2427
B48: Forecast other regulated income | J48: 929 | L48: Annual Price-Setting Compliance Statement - Table 5
B49: Revenue Deferred to Future Periods | I49: 24749.53775 | J49: 0
J50: 0
B51: Forecast net allowable revenue | C51: 144382000 | D51: Electricity Distribution Services Default Price-Quality Path (Aurora transition) Amendment Determination 2025 (schedule 1.1) | J51: 0
B52: Prices RY27 x Forecast Quantities RY27 | C52: 212313242.7
D54: Scaling
B55: Capital related costs | C55: 82595.00019 | D55: 1.248670942
B56: Operational costs | C56: 61786.99981 | D56: 1.248670942
B57: Passthrough and recoverable costs | C57: 32027.63468 | D57: 1
B58: Revenue deferrred & Wash-ups & Forecast other regulated income | C58: 35903.60798 | D58: 0
B59: Forecast Revenue From Prices | C59: 212313.2427

Sheet Allocator Data
B2: Allocator Data
B3: Pricing Area Name | I3: Dunedin | J3: Central Otago | K3: Queenstown
I4: 1 | J4: 2 | K4: 3
B7: Description
B9: In this sheet allocation data is input by pricing area and customer load group (if applicable):
B10: The source of the information for each input is referenced in | C10: blue.
A12: 1 | B12: ICP Count | C12: Units | D12: Total
B14: Allocation to pricing categories
I15: Information Disclosure 2025 - Schedule 8 (excluding Load group 0, Load Group 0A, and Distributed Generation)
B16: Load group Streetlighting | C16: # | D16: 14 | I16: 4 | J16: 7 | K16: 3
B17: Load group 1 (incl residential) | C17: # | D17: 87204.17808 | I17: 53343.86849 | J17: 21084.67397 | K17: 12775.63562
B18: Load group 2 | C18: # | D18: 7452.523288 | I18: 3179.224658 | J18: 2260.156164 | K18: 2013.142466
B19: Load group 3 | C19: # | D19: 453.3561644 | I19: 211.2876712 | J19: 161.3260274 | K19: 80.74246575
B20: Load group 4 | C20: # | D20: 158.9205479 | I20: 79.01643836 | J20: 43.90410959 | K20: 36
B21: Load group 5 | C21: # | D21: 8.501369863 | I21: 5.167123288 | J21: 1.334246575 | K21: 2
B22: Total | D22: 95291.47945 | I22: 56822.56438 | J22: 23558.39452 | K22: 14910.52055
I23: 0.596302678 | J23: 0.2472245646 | K23: 0.1564727574
B24: Allocation percentages
B26: Load group Streetlighting | D26: 0.0001469176476 | I26: 7.039457025e-05 | J26: 0.0002971340001 | K26: 0.000201200219
B27: Load group 1 (incl residential) | D27: 0.9151309076 | I27: 0.9387796744 | J27: 0.8949962169 | K27: 0.8568202281
B28: Load group 2 | D28: 0.07820765645 | I28: 0.05595003837 | J28: 0.09593846314 | K28: 0.1350149017
B29: Load group 3 | D29: 0.004757572943 | I29: 0.003718376204 | J29: 0.00684792112 | K29: 0.005415133931
B30: Load group 4 | D30: 0.001667730933 | I30: 0.001390582055 | J30: 0.0018636291 | K30: 0.002414402628
B31: Load group 5 | D31: 8.921437585e-05 | I31: 9.093435581e-05 | J31: 5.663571744e-05 | K31: 0.0001341334793
B32: Total | D32: 1 | I32: 1 | J32: 1 | K32: 1
A36: 2 | B36: Total Circuit Length | C36: Units | D36: Total
B38: Allocation to pricing categories
I39: Information Disclosure 2025 - Schedule 9c
B40: Total | C40: km | D40: 6377.79 | I40: 2399.24 | J40: 2927.41 | K40: 1051.14
I41: 0.3761867355 | J41: 0.4590006883 | K41: 0.1648125761
A44: 3 | B44: Overhead Circuit Length | C44: Units | D44: Total
B46: Allocation to pricing categories
I47: Information Disclosure 2025 - Schedule 9c
B48: Total | C48: km | D48: 3817.61 | I48: 1674.53 | J48: 1752.48 | K48: 390.6
I49: 0.4386330715 | J49: 0.4590516056 | K49: 0.1023153229
A52: 4 | B52: CPD | C52: Units | D52: Total
B54: Allocation to pricing categories
I55: Annual CPD assessments
B56: Load group Streetlighting | C56: kW | D56: 1662.8 | I56: 1090.8 | J56: 325.4 | K56: 246.6
B57: Load group 1 (incl residential) | C57: kW | D57: 219622.7 | I57: 123917.2 | J57: 51850.8 | K57: 43854.7
B58: Load group 2 | C58: kW | D58: 55488.64 | I58: 25562.1 | J58: 14058.44 | K58: 15868.1
B59: Load group 3 | C59: kW | D59: 25967.5 | I59: 15296.4 | J59: 5548.2 | K59: 5122.9
B60: Load group 4 | C60: kW | D60: 31246.61 | I60: 16828.4 | J60: 6265.31 | K60: 8152.9
B61: Load group 5 | C61: kW | D61: 8161.6 | I61: 6100.4 | J61: 1547 | K61: 514.2
B62: Total | D62: 342149.85 | I62: 188795.3 | J62: 79595.15 | K62: 73759.4
I63: 0.5517912692 | J63: 0.232632427 | K63: 0.2155763038
B64: Allocation percentages
B66: Load group Streetlighting | D66: 0.004859858919 | I66: 0.005777686203 | J66: 0.00408818879 | K66: 0.003343302684
B67: Load group 1 (incl residential) | D67: 0.6418903881 | I67: 0.6563574411 | J67: 0.6514316513 | K67: 0.5945642183
B68: Load group 2 | D68: 0.1621764265 | I68: 0.1353958494 | J68: 0.1766243295 | K68: 0.2151332576
B69: Load group 3 | D69: 0.07589510853 | I69: 0.08102108474 | J69: 0.06970525214 | K69: 0.06945419838
B70: Load group 4 | D70: 0.09132434224 | I70: 0.08913569353 | J70: 0.07871472068 | K70: 0.1105337082
B71: Load group 5 | D71: 0.02385387572 | I71: 0.03231224506 | J71: 0.01943585759 | K71: 0.006971314843
B72: Total | D72: 1 | I72: 1 | J72: 1 | K72: 1
A76: 5 | B76: Transpower connection charge and NIC | C76: Units | D76: Total
B78: Allocation to pricing categories
I79: Annual Price-Setting Compliance Statement - Table 7
B80: Total | C80: $ | D80: 9405935.38 | I80: 3494708.66 | J80: 1695811.628 | K80: 4215415.092
I81: 0.3715429161 | J81: 0.180291652 | K81: 0.4481654319
A84: 6 | B84: Transpower benefit based charge | C84: Units | D84: Total
B86: Allocation to pricing categories
I87: Annual Price-Setting Compliance Statement - Table 7
B88: Total | C88: $ | D88: 3075385.392 | I88: 1747811.695 | J88: 491197.8198 | K88: 836375.8774
I89: 0.5683228188 | J89: 0.1597191107 | K89: 0.2719580706
A92: 7 | B92: Transpower residual charge | C92: Units | D92: Total
B94: Allocation to pricing categories
I95: Annual Price-Setting Compliance Statement - Table 7
B96: Total | C96: $ | D96: 24465029.68 | I96: 14586050.7 | J96: 5367627.51 | K96: 4511351.47
I97: 0.5962000002 | J97: 0.2193999999 | K97: 0.1843999999
A100: 8 | B100: Transpower transitional price cap | C100: Units | D100: Total
B102: Allocation to pricing categories
I103: Annual Price-Setting Compliance Statement - Table 7
B104: Total | C104: $ | D104: 15333.73 | I104: 9094.236059 | J104: 3262.029475 | K104: 2977.464466
I105: 0.5930870087 | J105: 0.2127355494 | K105: 0.1941774419
A108: 9 | B108: Prior year distribution revenue | C108: Units | D108: Total
B110: Allocation to pricing categories
I111: Annual Compliance Statement 2025 - Table 20
B112: Load group Streetlighting | C112: $ | D112: 559830.5 | I112: 414081.55 | J112: 92185.29 | K112: 53563.66
B113: Load group 1 (incl residential) | C113: $ | D113: 64637556.57 | I113: 33683621.98 | J113: 20826457.81 | K113: 10127476.78
B114: Load group 2 | C114: $ | D114: 17035798.24 | I114: 8169031.86 | J114: 5124063.02 | K114: 3742703.36
B115: Load group 3 | C115: $ | D115: 8660343.51 | I115: 4106822.81 | J115: 2629275.78 | K115: 1924244.92
B116: Load group 4 | C116: $ | D116: 7064280.54 | I116: 2945390.04 | J116: 2973764.69 | K116: 1145125.81
B117: Load group 5 | C117: $ | D117: 964421.09 | I117: 728346.83 | J117: 192782.14 | K117: 43292.12
B118: Total | D118: 98922230.45 | I118: 50047295.07 | J118: 31838528.73 | K118: 17036406.65
I119: 0.5059256634 | J119: 0.3218541331 | K119: 0.1722202034
B120: Allocation percentages
B122: Load group Streetlighting | D122: 0.005659299204 | I122: 0.008273804796 | J122: 0.002895400437 | K122: 0.00314407029
B123: Load group 1 (incl residential) | D123: 0.6534179049 | I123: 0.6730358141 | J123: 0.6541275191 | K123: 0.5944608501
B124: Load group 2 | D124: 0.172214053 | I124: 0.1632262413 | J124: 0.1609390642 | K124: 0.2196885433
B125: Load group 3 | D125: 0.0875469899 | I125: 0.08205883663 | J125: 0.08258157286 | K125: 0.1129489897
B126: Load group 4 | D126: 0.07141246723 | I126: 0.05885213249 | J126: 0.09340144814 | K126: 0.06721639331
B127: Load group 5 | D127: 0.009749285733 | I127: 0.01455317074 | J127: 0.006054995243 | K127: 0.002541153243
B128: Total | D128: 1 | I128: 1 | J128: 1 | K128: 1
A132: 10 | B132: MWh | C132: Units | D132: Total
B134: Allocation to pricing categories
I135: Information Disclosure 2025 - Schedule 8 (excluding Load group 0, Load Group 0A, and Distributed Generation)
B136: Load group Streetlighting | C136: MWh | D136: 5928.76 | I136: 4260.299 | J136: 944.58 | K136: 723.881
B137: Load group 1 (incl residential) | C137: MWh | D137: 699849.9715 | I137: 425622.8928 | J137: 150724.5191 | K137: 123502.5596
B138: Load group 2 | C138: MWh | D138: 290344.5912 | I138: 129316.4655 | J138: 86385.52299 | K138: 74642.60278
B139: Load group 3 | C139: MWh | D139: 151890.9088 | I139: 83746.16808 | J139: 42559.08936 | K139: 25585.65134
B140: Load group 4 | C140: MWh | D140: 196540.8198 | I140: 100395.1684 | J140: 45365.66843 | K140: 50779.98296
B141: Load group 5 | C141: MWh | D141: 62334.2776 | I141: 45376.31844 | J141: 7578.8537 | K141: 9379.10546
B142: Total | D142: 1406889.329 | I142: 788717.3122 | J142: 333558.2335 | K142: 284613.7832
I143: 0.5606107716 | J143: 0.2370891773 | K143: 0.2023000511
B144: Allocation percentages
B146: Load group Streetlighting | D146: 0.004214091242 | I146: 0.005401553806 | J146: 0.002831829363 | K146: 0.002543379986
B147: Load group 1 (incl residential) | D147: 0.4974449355 | I147: 0.5396393438 | J147: 0.4518686811 | K147: 0.4339303538
B148: Load group 2 | D148: 0.2063734405 | I148: 0.1639579396 | J148: 0.2589818338 | K148: 0.2622592692
B149: Load group 3 | D149: 0.1079622296 | I149: 0.1061802078 | J149: 0.1275911822 | K149: 0.08989603755
B150: Load group 4 | D150: 0.1396988489 | I150: 0.1272891654 | J150: 0.1360052425 | K150: 0.1784171602
B151: Load group 5 | D151: 0.04430645419 | I151: 0.05753178957 | J151: 0.02272123107 | K151: 0.0329537992
B152: Total | D152: 1 | I152: 1 | J152: 1 | K152: 1
A156: 11 | B156: Regulated Asset Base | D156: Total
B158: Asset categories
I159: RAB model for Information Disclosure 2025 - Schedule 4
B160: 33KV Lines | C160: $ | D160: 49440096.34 | I160: 15129039.75 | J160: 24233419.95 | K160: 10077636.64
B161: 33KV Cables | C161: $ | D161: 39202643.84 | I161: 22860877.34 | J161: 3515016.853 | K161: 12826749.65
B162: Zone Subs | C162: $ | D162: 145884465.1 | I162: 64743475.61 | J162: 60025898.39 | K162: 21115091.06
B163: HV lines | C163: $ | D163: 176150455.2 | I163: 68427299.17 | J163: 79485742.27 | K163: 28237413.81
B164: LV lines | C164: $ | D164: 113263806.4 | I164: 94806805.94 | J164: 13137768.85 | K164: 5319231.574
B165: HV cables | C165: $ | D165: 128852577.7 | I165: 46043098.05 | J165: 49218049.24 | K165: 33591430.37
B166: LV cables | C166: $ | D166: 70132390.84 | I166: 23135301.2 | J166: 26665001.17 | K166: 20332088.48
B167: Dist Subs | C167: $ | D167: 145683648.2 | I167: 55356835.18 | J167: 56327730.29 | K167: 33999082.76
B168: Other Network Assets | C168: $ | D168: 20137061.62 | I168: 14655900.94 | J168: 2572860.787 | K168: 2908299.9
B169: Non-Network Assets | C169: $ | D169: 9486560.67 | I169: 8177359.163 | J169: 848014.6791 | K169: 461186.8282
B170: Total | D170: 898233705.9 | I170: 413335992.3 | J170: 316029502.5 | K170: 168868211.1
B171: Total Check | I171: 0.4601653107 | J171: 0.3518343839 | K171: 0.1880003055
A174: 12 | B174: Regulated Asset Base (Depreciation) | D174: Total
B176: Asset categories
I177: RAB model for Information Disclosure 2023- Schedule 4
B178: 33KV Lines | C178: $ | D178: 1447689.44 | G178: Subtransmission lines | I178: 432278.4957 | J178: 770478.472 | K178: 244932.4727
B179: 33KV Cables | C179: $ | D179: 1051304.184 | G179: Subtransmission cables | I179: 674350.4963 | J179: 91844.46004 | K179: 285109.2278
B180: Zone Subs | C180: $ | D180: 5276132.719 | G180: Zone substations | I180: 2652563.644 | J180: 1744376.149 | K180: 879192.9262
B181: HV lines | C181: $ | D181: 4622440.835 | G181: Distribution and LV lines | I181: 1696596.433 | J181: 2144203.432 | K181: 781640.9702
B182: LV lines | C182: $ | D182: 2852299.43 | G182: Distribution and LV lines | I182: 2350653.771 | J182: 354403.7993 | K182: 147241.8599
B183: HV cables | C183: $ | D183: 4040295.498 | G183: Distribution and LV cables | I183: 1386339.037 | J183: 1514416.481 | K183: 1139539.98
B184: LV cables | C184: $ | D184: 2206800.497 | G184: Distribution and LV cables | I184: 696594.5505 | J184: 820469.6823 | K184: 689736.2647
B185: Dist Subs | C185: $ | D185: 5408801.994 | G185: Distribution substations and transformers+Distribution switchgear | I185: 2135234.906 | J185: 2007992.373 | K185: 1265574.714
B186: Other Network Assets | C186: $ | D186: 2756887.668 | G186: Other network assets | I186: 2008183.839 | J186: 401021.8643 | K186: 347681.9645
B187: Non-Network Assets | C187: $ | D187: 2073473.781 | G187: Non-network assets | I187: 1573884.653 | J187: 330362.5072 | K187: 169226.6209
B188: Total | D188: 31736126.05 | I188: 15606679.83 | J188: 10179569.22 | K188: 5949877.002
I189: 0.4917638593 | J189: 0.3207565159 | K189: 0.1874796247
A192: 13 | B192: Overhead lines and underground cables
B193: Note: This input is used to allocate 'RAB' and 'RAB - Depreciation' values for lines and cables between HV and LV
B195: Overhead Circuit Length (km) | I195: Information Disclosure 2024 - Schedule 9c
B196: Distribution lines(HV) | C196: km | F196: 2004 ODV RC ($000/km Medium): | G196: 28 | I196: 870.48 | J196: 1578.55 | K196: 347.02
B197: LV lines | C197: km | F197: 2004 ODV RC ($000/km Medium): | G197: 42 | I197: 804.04 | J197: 173.94 | K197: 43.58
B198: Total | I198: 1674.52 | J198: 1752.49 | K198: 390.6
B200: Distribution lines(HV) | I200: 0.4191973186 | J200: 0.8581594598 | K200: 0.8414850021
B201: LV lines | I201: 0.5808026814 | J201: 0.1418405402 | K201: 0.1585149979
I202: 1 | J202: 1 | K202: 1
B203: Underground Circuit Length (km)
B204: Distribution cables(HV) | C204: km | F204: 2004 ODV RC ($000/km Medium): | G204: 103 | I204: 397.87 | J204: 623.05 | K204: 332
B205: LV cables | C205: km | F205: 2004 ODV RC ($000/km Medium): | G205: 63 | I205: 326.85 | J205: 551.87 | K205: 328.54
B206: Total | I206: 724.72 | J206: 1174.92 | K206: 660.54
B208: Distribution cables(HV) | I208: 0.6655704461 | J208: 0.6486039897 | K208: 0.6229458145
B209: LV cables | I209: 0.3344295539 | J209: 0.3513960103 | K209: 0.3770541855
I210: 1 | J210: 1 | K210: 1

Sheet Asset Mapping
B2: Asset Mapping
B4: Description
B6: In this sheet asset categories are firstly mapped to a network type (HV, LV, or Shared).
B7: Each Load Group is then mapped to the network types used by that load group.
B10: Asset Categories | C10: Network Voltage
B12: 33KV Lines | C12: HV | D12: HV - CPD
B13: 33KV Cables | C13: HV | D13: HV - CPD
B14: Zone Subs | C14: LV | D14: LV - CPD
B15: HV lines | C15: HV | D15: HV - CPD
B16: LV lines | C16: LV | D16: LV - CPD
B17: HV cables | C17: HV | D17: HV - CPD
B18: LV cables | C18: LV | D18: LV - CPD
B19: Dist Subs | C19: LV | D19: LV - CPD
B20: Other Network Assets | C20: Shared | D20: Shared - CPD
B21: Non-Network Assets | C21: Shared | D21: Shared - CPD
B23: Network Voltage | C23: RAB Allocators
B25: LV | C25: CPD | D25: LV - CPD
B26: HV | C26: CPD | D26: HV - CPD
B27: Shared | C27: CPD | D27: Shared - CPD
B29: Load Groups | C29: LV | D29: HV | E29: Shared
B31: Load group Streetlighting | C31: Yes | D31: No | E31: Yes
B32: Load group 1 (incl residential) | C32: Yes | D32: No | E32: Yes
B33: Load group 2 | C33: Yes | D33: No | E33: Yes
B34: Load group 3 | C34: No | D34: Yes | E34: Yes
B35: Load group 4 | C35: No | D35: Yes | E35: Yes
B36: Load group 5 | C36: No | D36: Yes | E36: Yes
A38: 1 | B38: LV - CPD | C38: Units | D38: Total | G38: Dunedin | H38: Central Otago | I38: Queenstown
B40: Allocation to pricing categories
B42: Load group Streetlighting | C42: kW | D42: 1662.8 | G42: 1090.8 | H42: 325.4 | I42: 246.6
B43: Load group 1 (incl residential) | C43: kW | D43: 219622.7 | G43: 123917.2 | H43: 51850.8 | I43: 43854.7
B44: Load group 2 | C44: kW | D44: 55488.64 | G44: 25562.1 | H44: 14058.44 | I44: 15868.1
B45: Load group 3 | C45: kW | D45: 0 | G45: 0 | H45: 0 | I45: 0
B46: Load group 4 | C46: kW | D46: 0 | G46: 0 | H46: 0 | I46: 0
B47: Load group 5 | C47: kW | D47: 0 | G47: 0 | H47: 0 | I47: 0
B48: Total | D48: 276774.14 | G48: 150570.1 | H48: 66234.64 | I48: 59969.4
G49: 0.5440179491 | H49: 0.2393093517 | I49: 0.2166726993
B50: Allocation percentages
B52: Load group Streetlighting | D52: 0.00600778671 | G52: 0.007244466199 | H52: 0.00491283715 | I52: 0.00411209717
B53: Load group 1 (incl residential) | D53: 0.7935087433 | G53: 0.8229867683 | H53: 0.7828350845 | I53: 0.7312846218
B54: Load group 2 | D54: 0.20048347 | G54: 0.1697687655 | H54: 0.2122520784 | I54: 0.264603281
B55: Load group 3 | D55: 0 | G55: 0 | H55: 0 | I55: 0
B56: Load group 4 | D56: 0 | G56: 0 | H56: 0 | I56: 0
B57: Load group 5 | D57: 0 | G57: 0 | H57: 0 | I57: 0
B58: Total | D58: 1 | G58: 1 | H58: 1 | I58: 1
A62: 2 | B62: HV - CPD | C62: Units | D62: Total | G62: Dunedin | H62: Central Otago | I62: Queenstown
B64: Allocation to pricing categories
B66: Load group Streetlighting | C66: kW | D66: 0 | G66: 0 | H66: 0 | I66: 0
B67: Load group 1 (incl residential) | C67: kW | D67: 0 | G67: 0 | H67: 0 | I67: 0
B68: Load group 2 | C68: kW | D68: 0 | G68: 0 | H68: 0 | I68: 0
B69: Load group 3 | C69: kW | D69: 25967.5 | G69: 15296.4 | H69: 5548.2 | I69: 5122.9
B70: Load group 4 | C70: kW | D70: 31246.61 | G70: 16828.4 | H70: 6265.31 | I70: 8152.9
B71: Load group 5 | C71: kW | D71: 8161.6 | G71: 6100.4 | H71: 1547 | I71: 514.2
B72: Total | D72: 65375.71 | G72: 38225.2 | H72: 13360.51 | I72: 13790
G73: 0.5847003421 | H73: 0.2043650463 | I73: 0.2109346116
B74: Allocation percentages
B76: Load group Streetlighting | D76: 0 | G76: 0 | H76: 0 | I76: 0
B77: Load group 1 (incl residential) | D77: 0 | G77: 0 | H77: 0 | I77: 0
B78: Load group 2 | D78: 0 | G78: 0 | H78: 0 | I78: 0
B79: Load group 3 | D79: 0.3972040992 | G79: 0.400165336 | H79: 0.4152685788 | I79: 0.3714938361
B80: Load group 4 | D80: 0.4779544268 | G80: 0.4402436089 | H80: 0.4689424281 | I80: 0.5912182741
B81: Load group 5 | D81: 0.124841474 | G81: 0.1595910551 | H81: 0.1157889931 | I81: 0.03728788978
B82: Total | D82: 1 | G82: 1 | H82: 1 | I82: 1
A86: 3 | B86: Shared - CPD | C86: Units | D86: Total | G86: Dunedin | H86: Central Otago | I86: Queenstown
B88: Allocation to pricing categories
B90: Load group Streetlighting | C90: kW | D90: 1662.8 | G90: 1090.8 | H90: 325.4 | I90: 246.6
B91: Load group 1 (incl residential) | C91: kW | D91: 219622.7 | G91: 123917.2 | H91: 51850.8 | I91: 43854.7
B92: Load group 2 | C92: kW | D92: 55488.64 | G92: 25562.1 | H92: 14058.44 | I92: 15868.1
B93: Load group 3 | C93: kW | D93: 25967.5 | G93: 15296.4 | H93: 5548.2 | I93: 5122.9
B94: Load group 4 | C94: kW | D94: 31246.61 | G94: 16828.4 | H94: 6265.31 | I94: 8152.9
B95: Load group 5 | C95: kW | D95: 8161.6 | G95: 6100.4 | H95: 1547 | I95: 514.2
B96: Total | D96: 342149.85 | G96: 188795.3 | H96: 79595.15 | I96: 73759.4
G97: 0.5517912692 | H97: 0.232632427 | I97: 0.2155763038
B98: Allocation percentages
B100: Load group Streetlighting | D100: 0.004859858919 | G100: 0.005777686203 | H100: 0.00408818879 | I100: 0.003343302684
B101: Load group 1 (incl residential) | D101: 0.6418903881 | G101: 0.6563574411 | H101: 0.6514316513 | I101: 0.5945642183
B102: Load group 2 | D102: 0.1621764265 | G102: 0.1353958494 | H102: 0.1766243295 | I102: 0.2151332576
B103: Load group 3 | D103: 0.07589510853 | G103: 0.08102108474 | H103: 0.06970525214 | I103: 0.06945419838
B104: Load group 4 | D104: 0.09132434224 | G104: 0.08913569353 | H104: 0.07871472068 | I104: 0.1105337082
B105: Load group 5 | D105: 0.02385387572 | G105: 0.03231224506 | H105: 0.01943585759 | I105: 0.006971314843
B106: Total | D106: 1 | G106: 1 | H106: 1 | I106: 1
A108: 4 | B108: Load Group Summary | G108: Dunedin | H108: Central Otago | I108: Queenstown
B109: Load group Streetlighting
B110: LV - CPD | G110: 0.007244466199 | H110: 0.00491283715 | I110: 0.00411209717
B111: HV - CPD | G111: 0 | H111: 0 | I111: 0
B112: Shared - CPD | G112: 0.005777686203 | H112: 0.00408818879 | I112: 0.003343302684
B113: Load group 1 (incl residential)
B114: LV - CPD | G114: 0.8229867683 | H114: 0.7828350845 | I114: 0.7312846218
B115: HV - CPD | G115: 0 | H115: 0 | I115: 0
B116: Shared - CPD | G116: 0.6563574411 | H116: 0.6514316513 | I116: 0.5945642183
B117: Load group 2
B118: LV - CPD | G118: 0.1697687655 | H118: 0.2122520784 | I118: 0.264603281
B119: HV - CPD | G119: 0 | H119: 0 | I119: 0
B120: Shared - CPD | G120: 0.1353958494 | H120: 0.1766243295 | I120: 0.2151332576
B121: Load group 3
B122: LV - CPD | G122: 0 | H122: 0 | I122: 0
B123: HV - CPD | G123: 0.400165336 | H123: 0.4152685788 | I123: 0.3714938361
B124: Shared - CPD | G124: 0.08102108474 | H124: 0.06970525214 | I124: 0.06945419838
B125: Load group 4
B126: LV - CPD | G126: 0 | H126: 0 | I126: 0
B127: HV - CPD | G127: 0.4402436089 | H127: 0.4689424281 | I127: 0.5912182741
B128: Shared - CPD | G128: 0.08913569353 | H128: 0.07871472068 | I128: 0.1105337082
B129: Load group 5
B130: LV - CPD | G130: 0 | H130: 0 | I130: 0
B131: HV - CPD | G131: 0.1595910551 | H131: 0.1157889931 | I131: 0.03728788978
B132: Shared - CPD | G132: 0.03231224506 | H132: 0.01943585759 | I132: 0.006971314843
B134: Error check | G134: 0 | H134: 0 | I134: 0
B135: 0 | G135: 0 | H135: 0 | I135: 0
G136: 0 | H136: 0 | I136: 0

Sheet Calculations >
B2: This sheet has been deliberately left blank.

Sheet Pricing Area Allocations
B2: Pricing Area Allocations
B3: Pricing Area Name | H3: Dunedin | I3: Central Otago | J3: Queenstown
H4: 1 | I4: 2 | J4: 3
B7: Description
B9: This sheet allocates each component of target revenue to pricing areas based on the selected allocator, and calculated allocation percentages.
B10: More information about pricing area allocations are provided in section 3.5 of the Pricing Methodology.
B12: Allocator percentages | H12: Dunedin | I12: Central Otago | J12: Queenstown | L12: check
A14: 1 | B14: ICP Count | H14: 0.596302678 | I14: 0.2472245646 | J14: 0.1564727574 | L14: 0
A15: 2 | B15: Total Circuit Length | H15: 0.3761867355 | I15: 0.4590006883 | J15: 0.1648125761 | L15: 0
A16: 3 | B16: Overhead Circuit Length | H16: 0.4386330715 | I16: 0.4590516056 | J16: 0.1023153229 | L16: 0
A17: 4 | B17: CPD | H17: 0.5517912692 | I17: 0.232632427 | J17: 0.2155763038 | L17: 0
A18: 5 | B18: Transpower connection charge and NIC | H18: 0.3715429161 | I18: 0.180291652 | J18: 0.4481654319 | L18: 0
A19: 6 | B19: Transpower benefit based charge | H19: 0.5683228188 | I19: 0.1597191107 | J19: 0.2719580706 | L19: 0
A20: 7 | B20: Transpower residual charge | H20: 0.5962000002 | I20: 0.2193999999 | J20: 0.1843999999 | L20: 0
A21: 8 | B21: Transpower transitional price cap | H21: 0.5930870087 | I21: 0.2127355494 | J21: 0.1941774419 | L21: 0
A22: 9 | B22: Prior year distribution revenue | H22: 0.5059256634 | I22: 0.3218541331 | J22: 0.1722202034 | L22: 0
A23: 10 | B23: MWh | H23: 0.5606107716 | I23: 0.2370891773 | J23: 0.2023000511 | L23: 0
A24: 11 | B24: Regulated Asset Base | H24: 0.4601653107 | I24: 0.3518343839 | J24: 0.1880003055 | L24: 0
A25: 12 | B25: Regulated Asset Base (Depreciation) | H25: 0.4917638593 | I25: 0.3207565159 | J25: 0.1874796247 | L25: 0
B27: Target Revenue Components | C27: Cost type | D27: Pricing Area Allocators | E27: Scaled target revenue | H27: Dunedin | I27: Central Otago | J27: Queenstown
B31: Service interruptions and emergencies | C31: Operational costs | D31: Total Circuit Length | E31: 2982.055361 | H31: 1121.809672 | I31: 1368.765463 | J31: 491.4802263
B32: Service interruptions and emergencies | C32: Operational costs | D32: ICP Count | E32: 2982.055361 | H32: 1778.207598 | I32: 737.2373384 | J32: 466.6104251
B33: Vegetation management | C33: Operational costs | D33: Overhead Circuit Length | E33: 4113.408157 | H33: 1804.276854 | I33: 1888.266619 | J33: 420.864684
B34: Routine and corrective maintenance and inspection | C34: Operational costs | D34: Total Circuit Length | E34: 15961.63695 | H34: 6004.556098 | I34: 7326.402347 | J34: 2630.678505
B35: System operations and network support | C35: Operational costs | D35: ICP Count | E35: 2166.299195 | H35: 1291.770011 | I35: 535.5623754 | J35: 338.9668085
B36: Business support | C36: Operational costs | D36: ICP Count | E36: 48946.17624 | H36: 29186.73597 | I36: 12100.69711 | J36: 7658.743161
B37: Depreciation | C37: Capital related costs | D37: Regulated Asset Base (Depreciation) | E37: 37696.44967 | H37: 18537.75157 | I37: 12091.38186 | J37: 7067.316238
B38: Asset revaluations and other regulatory revenue | C38: Capital related costs | D38: Regulated Asset Base | E38: -24109.28776 | H38: -11094.25789 | I38: -8482.476404 | J38: -4532.553463
B39: Tax | C39: Capital related costs | D39: Regulated Asset Base | E39: 18321.99372 | H39: 8431.145932 | I39: 6446.307371 | J39: 3444.540416
B40: Return on capital | C40: Capital related costs | D40: Regulated Asset Base | E40: 71224.82108 | H40: 32775.19192 | I40: 25059.34104 | J40: 13390.28812
B41: Local Authority rates | C41: Passthrough and recoverable costs | D41: Regulated Asset Base | E41: 2051.955 | H41: 944.2385101 | I41: 721.9483232 | J41: 385.7681668
B42: Commerce Act levies | C42: Passthrough and recoverable costs | D42: Regulated Asset Base | E42: 348.358 | H42: 160.3022673 | I42: 122.5643223 | J42: 65.49141041
B43: Electricity Authority levies | C43: Passthrough and recoverable costs | D43: MWh | E43: 335.1504 | H43: 187.8889243 | I43: 79.4605326 | J43: 67.80094306
B44: Electricity Authority levies | C44: Passthrough and recoverable costs | D44: ICP Count | E44: 83.7876 | H44: 49.96277026 | I44: 20.71435293 | J44: 13.11047681
B45: Utilities Disputes levies | C45: Passthrough and recoverable costs | D45: ICP Count | E45: 75.601 | H45: 45.08107876 | I45: 18.69042431 | J45: 11.82949693
B46: Opex Incentive Amount | C46: Passthrough and recoverable costs | D46: Prior year distribution revenue | E46: -6549.468 | H46: -3313.543943 | I46: -2107.973346 | J46: -1127.950711
B47: Capex Incentive Amount | C47: Passthrough and recoverable costs | D47: Regulated Asset Base | E47: -1352.855021 | H47: -622.5369512 | I47: -475.9809129 | J47: -254.3371572
B48: Transpower - Connection charge | C48: Passthrough and recoverable costs | D48: Transpower connection charge and NIC | E48: 6938.4463 | H48: 2577.930572 | I48: 1250.943946 | J48: 3109.571783
B49: Transpower - Benefit-based Charge | C49: Passthrough and recoverable costs | D49: Transpower benefit based charge | E49: 3075.385392 | H49: 1747.811695 | I49: 491.1978198 | J49: 836.3758774
B50: Transpower - Residual Charge | C50: Passthrough and recoverable costs | D50: Transpower residual charge | E50: 24465.02968 | H50: 14586.0507 | I50: 5367.62751 | J50: 4511.35147
B51: Transpower - Transitional Price Cap | C51: Passthrough and recoverable costs | D51: Transpower transitional price cap | E51: 15.33373 | H51: 9.094236059 | I51: 3.262029475 | J51: 2.977464466
B52: Transpower - Interconnection costs | C52: Passthrough and recoverable costs | D52: Transpower connection charge and NIC | E52: 0 | H52: 0 | I52: 0 | J52: 0
B53: Transpower - New investment contract | C53: Passthrough and recoverable costs | D53: Transpower connection charge and NIC | E53: 2467.48908 | H53: 916.7780883 | I53: 444.8676825 | J53: 1105.843309
B54: Distributed Generation Allowance | C54: Passthrough and recoverable costs | D54: Distributed Generation Allowance | E54: 0 | H54: 0 | I54: 0 | J54: 0
B55: Wash-up Drawdown Amount | C55: Passthrough and recoverable costs | D55: 0 | E55: 0 | H55: 0 | I55: 0 | J55: 0
B56: Quality Incentive Adjustments | C56: Passthrough and recoverable costs | D56: ICP Count | E56: 29.222 | H56: 17.42515686 | I56: 7.224396228 | J56: 4.572446917
B57: Capex Wash-up Adjustment | C57: Passthrough and recoverable costs | D57: Regulated Asset Base | E57: 0 | H57: 0 | I57: 0 | J57: 0
B58: Fire and Emergency Management New Zealand (FENZ) levies | C58: Passthrough and recoverable costs | D58: Regulated Asset Base | E58: 44.19952 | H58: 20.33908585 | I58: 15.55091089 | J58: 8.309523261
B59: Total | E59: 212313.2427 | H59: 107164.0099 | I59: 65031.58312 | J59: 40117.64962
E60: 0 | H60: 0.5047448222 | I60: 0.3063001737 | J60: 0.188955004
B61: Error check
B62: 0

Sheet RAB Allocations
B2: RAB Allocations
B3: Pricing Area Name | I3: Dunedin | J3: Central Otago | K3: Queenstown
I4: 1 | J4: 2 | K4: 3
B7: Description
B9: In this sheet the RAB is allocated to load groups based on the inputs from the Asset Mapping worksheet.
B10: More information about pricing area allocations are provided in section 3.5 of the Pricing Methodology.
B12: RAB Allocator Summary | C12: Units | F12: Total
B14: Load Group Summary
B16: Load group Streetlighting | C16: $ | F16: 2980950.577 | I16: 1856413.662 | J16: 781156.1414 | K16: 343380.7728
B17: Load group 1 (incl residential) | C17: $ | F17: 396431654.4 | I17: 210892540.4 | J17: 124473174.1 | K17: 61065939.88
B18: Load group 2 | C18: $ | F18: 99348129.41 | I18: 43503696.08 | J18: 33748730.01 | K18: 22095703.33
B19: Load group 3 | C19: $ | F19: 159779353.7 | I19: 62859308.39 | J19: 65208147.49 | K19: 31711897.83
B20: Load group 4 | C20: $ | F20: 193259574.7 | I20: 69154937.46 | J20: 73636361.08 | K20: 50468276.14
B21: Load group 5 | C21: $ | F21: 46434043.06 | I21: 25069096.32 | J21: 18181933.63 | K21: 3183013.111
B22: Total | F22: 898233705.9 | I22: 413335992.3 | J22: 316029502.5 | K22: 168868211.1
B23: Error check | C23: 0
B25: RAB Allocation
B27: Load group Streetlighting | C27: $ | F27: 0.00331868038 | I27: 0.004491294484 | J27: 0.002471782335 | K27: 0.002033424589
B28: Load group 1 (incl residential) | C28: $ | F28: 0.4413457787 | I28: 0.5102206058 | J28: 0.3938656775 | K28: 0.3616189187
B29: Load group 2 | C29: $ | F29: 0.110603876 | I29: 0.1052502005 | J29: 0.1067898084 | K29: 0.1308458424
B30: Load group 3 | C30: $ | F30: 0.1778817168 | I30: 0.1520779936 | J30: 0.2063356332 | K30: 0.1877908082
B31: Load group 4 | C31: $ | F31: 0.2151551132 | I31: 0.1673092563 | J31: 0.2330047053 | K31: 0.2988619103
B32: Load group 5 | C32: $ | F32: 0.05169483483 | I32: 0.06065064931 | J32: 0.0575323933 | K32: 0.01884909594
F33: 1 | I33: 1 | J33: 1 | K33: 1
B37: Load group Streetlighting | C37: Allocator | F37: Total | I37: Dunedin | J37: Central Otago | K37: Queenstown
B39: Asset Categories
B40: 33KV Lines | C40: HV - CPD | F40: 0 | I40: 0 | J40: 0 | K40: 0
B41: 33KV Cables | C41: HV - CPD | F41: 0 | I41: 0 | J41: 0 | K41: 0
B42: Zone Subs | C42: LV - CPD | F42: 850756.6904 | I42: 469031.9207 | J42: 294897.4636 | K42: 86827.30616
B43: HV lines | C43: HV - CPD | F43: 0 | I43: 0 | J43: 0 | K43: 0
B44: LV lines | C44: LV - CPD | F44: 773241.617 | I44: 686824.701 | J44: 64543.71886 | K44: 21873.1971
B45: HV cables | C45: HV - CPD | F45: 0 | I45: 0 | J45: 0 | K45: 0
B46: LV cables | C46: LV - CPD | F46: 382211.2393 | I46: 167602.9075 | J46: 131000.8083 | K46: 83607.52349
B47: Dist Subs | C47: LV - CPD | F47: 817567.2192 | I47: 401030.7213 | J47: 276728.9659 | K47: 139807.532
B48: Other Network Assets | C48: Shared - CPD | F48: 104918.8641 | I48: 84677.19664 | J48: 10518.34063 | K48: 9723.326862
B49: Non-Network Assets | C49: Shared - CPD | F49: 52254.94648 | I49: 47246.21521 | J49: 3466.844105 | K49: 1541.88716
F50: 2980950.577 | I50: 1856413.662 | J50: 781156.1414 | K50: 343380.7728
B52: Load group 1 (incl residential) | C52: Allocator | F52: Total | I52: Dunedin | J52: Central Otago | K52: Queenstown
B54: Asset Categories
B55: 33KV Lines | C55: HV - CPD | F55: 0 | I55: 0 | J55: 0 | K55: 0
B56: 33KV Cables | C56: HV - CPD | F56: 0 | I56: 0 | J56: 0 | K56: 0
B57: Zone Subs | C57: LV - CPD | F57: 115714544.4 | I57: 53283023.76 | J57: 46990379.24 | K57: 15441141.38
B58: HV lines | C58: HV - CPD | F58: 0 | I58: 0 | J58: 0 | K58: 0
B59: LV lines | C59: LV - CPD | F59: 92199325.47 | I59: 78024746.83 | J59: 10284706.39 | K59: 3889872.25
B60: HV cables | C60: HV - CPD | F60: 0 | I60: 0 | J60: 0 | K60: 0
B61: LV cables | C61: LV - CPD | F61: 54782888.84 | I61: 19040046.77 | J61: 20874298.44 | K61: 14868543.64
B62: Dist Subs | C62: LV - CPD | F62: 114516272.8 | I62: 45557942.88 | J62: 44095323.5 | K62: 24863006.38
B63: Other Network Assets | C63: Shared - CPD | F63: 13024723.64 | I63: 9619509.636 | J63: 1676042.951 | K63: 1729171.056
B64: Non-Network Assets | C64: Shared - CPD | F64: 6193899.324 | I64: 5367270.535 | J64: 552423.6027 | K64: 274205.186
F65: 396431654.4 | I65: 210892540.4 | J65: 124473174.1 | K65: 61065939.88
B67: Load group 2 | C67: Allocator | F67: Total | I67: Dunedin | J67: Central Otago | K67: Queenstown
B69: Asset Categories
B70: 33KV Lines | C70: HV - CPD | F70: 0 | I70: 0 | J70: 0 | K70: 0
B71: 33KV Cables | C71: HV - CPD | F71: 0 | I71: 0 | J71: 0 | K71: 0
B72: Zone Subs | C72: LV - CPD | F72: 29319163.99 | I72: 10991419.93 | J72: 12740621.69 | K72: 5587122.372
B73: HV lines | C73: HV - CPD | F73: 0 | I73: 0 | J73: 0 | K73: 0
B74: LV lines | C74: LV - CPD | F74: 20291239.28 | I74: 16095234.41 | J74: 2788518.743 | K74: 1407486.127
B75: HV cables | C75: HV - CPD | F75: 0 | I75: 0 | J75: 0 | K75: 0
B76: LV cables | C76: LV - CPD | F76: 14967290.76 | I76: 3927651.524 | J76: 5659701.917 | K76: 5379937.322
B77: Dist Subs | C77: LV - CPD | F77: 30349808.24 | I77: 9397861.571 | J77: 11955677.82 | K77: 8996268.85
B78: Other Network Assets | C78: Shared - CPD | F78: 3064449.998 | I78: 1984348.156 | J78: 454429.8113 | K78: 625672.0315
B79: Non-Network Assets | C79: Shared - CPD | F79: 1356177.138 | I79: 1107180.489 | J79: 149780.0241 | K79: 99216.6247
F80: 99348129.41 | I80: 43503696.08 | J80: 33748730.01 | K80: 22095703.33
B82: Load group 3 | C82: Allocator | F82: Total | I82: Dunedin | J82: Central Otago | K82: Queenstown
B84: Asset Categories
B85: 33KV Lines | C85: HV - CPD | F85: 19861275.03 | I85: 6054117.276 | J85: 10063377.86 | K85: 3743779.893
B86: 33KV Cables | C86: HV - CPD | F86: 15372865.15 | I86: 9148130.659 | J86: 1459676.053 | K86: 4765058.433
B87: Zone Subs | C87: LV - CPD | F87: 0 | I87: 0 | J87: 0 | K87: 0
B88: HV lines | C88: HV - CPD | F88: 70880189.57 | I88: 27382233.16 | J88: 33007931.23 | K88: 10490025.18
B89: LV lines | C89: LV - CPD | F89: 0 | I89: 0 | J89: 0 | K89: 0
B90: HV cables | C90: HV - CPD | F90: 51342570.49 | I90: 18424851.8 | J90: 20438709.36 | K90: 12479009.33
B91: LV cables | C91: LV - CPD | F91: 0 | I91: 0 | J91: 0 | K91: 0
B92: Dist Subs | C92: LV - CPD | F92: 0 | I92: 0 | J92: 0 | K92: 0
B93: Other Network Assets | C93: Shared - CPD | F93: 1568772.54 | I93: 1187436.992 | J93: 179341.9099 | K93: 201993.6382
B94: Non-Network Assets | C94: Shared - CPD | F94: 753680.9482 | I94: 662538.5097 | J94: 59111.07702 | K94: 32031.36145
F95: 159779353.7 | I95: 62859308.39 | J95: 65208147.49 | K95: 31711897.83
B97: Load group 4 | C97: Allocator | F97: Total | I97: Dunedin | J97: Central Otago | K97: Queenstown
B99: Asset Categories
B100: 33KV Lines | C100: HV - CPD | F100: 23982624.79 | I100: 6660463.061 | J100: 11364078.79 | K100: 5958082.939
B101: 33KV Cables | C101: HV - CPD | F101: 19296104.47 | I101: 10064355.14 | J101: 1648340.538 | K101: 7583408.791
B102: Zone Subs | C102: LV - CPD | F102: 0 | I102: 0 | J102: 0 | K102: 0
B103: HV lines | C103: HV - CPD | F103: 84093393.17 | I103: 30124681.13 | J103: 37274236.98 | K103: 16694475.06
B104: LV lines | C104: LV - CPD | F104: 0 | I104: 0 | J104: 0 | K104: 0
B105: HV cables | C105: HV - CPD | F105: 63210478.66 | I105: 20270179.65 | J105: 23080431.52 | K105: 19859867.49
B106: LV cables | C106: LV - CPD | F106: 0 | I106: 0 | J106: 0 | K106: 0
B107: Dist Subs | C107: LV - CPD | F107: 0 | I107: 0 | J107: 0 | K107: 0
B108: Other Network Assets | C108: Shared - CPD | F108: 1830351.085 | I108: 1306363.894 | J108: 202522.0182 | K108: 321465.1726
B109: Non-Network Assets | C109: Shared - CPD | F109: 846622.5091 | I109: 728894.5802 | J109: 66751.2386 | K109: 50976.69031
F110: 193259574.7 | I110: 69154937.46 | J110: 73636361.08 | K110: 50468276.14
B112: Load group 5 | C112: Allocator | F112: Total | I112: Dunedin | J112: Central Otago | K112: Queenstown
B114: Asset Categories
B115: 33KV Lines | C115: HV - CPD | F115: 5596196.517 | I115: 2414459.417 | J115: 2805963.295 | K115: 375773.8041
B116: 33KV Cables | C116: HV - CPD | F116: 4533674.224 | I116: 3648391.535 | J116: 407000.2621 | K116: 478282.4272
B117: Zone Subs | C117: LV - CPD | F117: 0 | I117: 0 | J117: 0 | K117: 0
B118: HV lines | C118: HV - CPD | F118: 21176872.51 | I118: 10920384.87 | J118: 9203574.062 | K118: 1052913.574
B119: LV lines | C119: LV - CPD | F119: 0 | I119: 0 | J119: 0 | K119: 0
B120: HV cables | C120: HV - CPD | F120: 14299528.51 | I120: 7348066.598 | J120: 5698908.363 | K120: 1252553.553
B121: LV cables | C121: LV - CPD | F121: 0 | I121: 0 | J121: 0 | K121: 0
B122: Dist Subs | C122: LV - CPD | F122: 0 | I122: 0 | J122: 0 | K122: 0
B123: Other Network Assets | C123: Shared - CPD | F123: 543845.4928 | I123: 473565.0627 | J123: 50005.75584 | K123: 20274.67426
B124: Non-Network Assets | C124: Shared - CPD | F124: 283925.8043 | I124: 264228.8332 | J124: 16481.89253 | K124: 3215.07858
F125: 46434043.06 | I125: 25069096.32 | J125: 18181933.63 | K125: 3183013.111

Sheet RAB - Depreciation Allocations
B2: RAB - Depreciation Allocations
B3: Pricing Area Name | I3: Dunedin | J3: Central Otago | K3: Queenstown
I4: 1 | J4: 2 | K4: 3
B7: Description
B9: In this sheet the Depreciation is allocated to load groups based on the inputs from the Asset Mapping worksheet.
B10: More information about pricing area allocations are provided in section 3.5 of the Pricing Methodology.
B12: RAB Allocator Summary | C12: Units | F12: Total
B14: Load Group Summary
B16: Load group Streetlighting | C16: $ | F16: 118642.9851 | I16: 77456.79993 | J16: 27196.77495 | K16: 13989.41018
B17: Load group 1 (incl residential) | C17: $ | F17: 15620762.23 | I17: 8799257.213 | J17: 4333664.839 | K17: 2487840.173
B18: Load group 2 | C18: $ | F18: 3890325.012 | I18: 1815143.441 | J18: 1174997.63 | K18: 900183.9405
B19: Load group 3 | C19: $ | F19: 4841643.965 | I19: 1966741.545 | J19: 1928386.842 | K19: 946515.5773
B20: Load group 4 | C20: $ | F20: 5847695.217 | I20: 2163719.138 | J20: 2177632.631 | K20: 1506343.448
B21: Load group 5 | C21: $ | F21: 1417056.643 | I21: 784361.688 | J21: 537690.5023 | K21: 95004.45252
B22: Total | F22: 31736126.05 | I22: 15606679.83 | J22: 10179569.22 | K22: 5949877.002
B23: Error check | C23: 0
B25: RAB Allocation
B27: Load group Streetlighting | C27: $ | F27: 0.003738420527 | I27: 0.004963054333 | J27: 0.002671701952 | K27: 0.002351209979
B28: Load group 1 (incl residential) | C28: $ | F28: 0.4922075934 | I28: 0.563813528 | J28: 0.4257218302 | K28: 0.4181330425
B29: Load group 2 | C29: $ | F29: 0.1225834875 | I29: 0.1163055475 | J29: 0.1154270485 | K29: 0.1512945461
B30: Load group 3 | C30: $ | F30: 0.1525593879 | I30: 0.1260192153 | J30: 0.1894369791 | K30: 0.1590815368
B31: Load group 4 | C31: $ | F31: 0.1842598939 | I31: 0.1386405797 | J31: 0.2139218845 | K31: 0.2531721996
B32: Load group 5 | C32: $ | F32: 0.04465121674 | I32: 0.05025807518 | J32: 0.05282055563 | K32: 0.01596746496
F33: 1 | I33: 1 | J33: 1 | K33: 1
B37: Load group Streetlighting | C37: Allocator | F37: Total | I37: Dunedin | J37: Central Otago | K37: Queenstown
B39: Asset Categories
B40: 33KV Lines | C40: HV - CPD | F40: 0 | I40: 0 | J40: 0 | K40: 0
B41: 33KV Cables | C41: HV - CPD | F41: 0 | I41: 0 | J41: 0 | K41: 0
B42: Zone Subs | C42: LV - CPD | F42: 31401.57035 | I42: 19216.40766 | J42: 8569.835949 | K42: 3615.326743
B43: HV lines | C43: HV - CPD | F43: 0 | I43: 0 | J43: 0 | K43: 0
B44: LV lines | C44: LV - CPD | F44: 19375.83277 | I44: 17029.23179 | J44: 1741.128151 | K44: 605.4728353
B45: HV cables | C45: HV - CPD | F45: 0 | I45: 0 | J45: 0 | K45: 0
B46: LV cables | C46: LV - CPD | F46: 11913.55215 | I46: 5046.455675 | J46: 4030.833936 | K46: 2836.262542
B47: Dist Subs | C47: LV - CPD | F47: 30537.74284 | I47: 15468.63711 | J47: 9864.939529 | K47: 5204.166201
B48: Other Network Assets | C48: Shared - CPD | F48: 14404.5152 | I48: 11602.65606 | J48: 1639.45309 | K48: 1162.406045
B49: Non-Network Assets | C49: Shared - CPD | F49: 11009.77176 | I49: 9093.411642 | J49: 1350.584299 | K49: 565.7758157
F50: 118642.9851 | I50: 77456.79993 | J50: 27196.77495 | K50: 13989.41018
B52: Load group 1 (incl residential) | C52: Allocator | F52: Total | I52: Dunedin | J52: Central Otago | K52: Queenstown
B54: Asset Categories
B55: 33KV Lines | C55: HV - CPD | F55: 0 | I55: 0 | J55: 0 | K55: 0
B56: 33KV Cables | C56: HV - CPD | F56: 0 | I56: 0 | J56: 0 | K56: 0
B57: Zone Subs | C57: LV - CPD | F57: 4191523.898 | I57: 2183024.781 | J57: 1365558.85 | K57: 642940.2665
B58: HV lines | C58: HV - CPD | F58: 0 | I58: 0 | J58: 0 | K58: 0
B59: LV lines | C59: LV - CPD | F59: 2319672.386 | I59: 1934556.95 | J59: 277439.7282 | K59: 107675.7078
B60: HV cables | C60: HV - CPD | F60: 0 | I60: 0 | J60: 0 | K60: 0
B61: LV cables | C61: LV - CPD | F61: 1719974.074 | I61: 573288.0979 | J61: 642292.4531 | K61: 504393.5235
B62: Dist Subs | C62: LV - CPD | F62: 4254692.281 | I62: 1757270.075 | J62: 1571926.879 | K62: 925495.3265
B63: Other Network Assets | C63: Shared - CPD | F63: 1786043.997 | I63: 1318086.406 | J63: 261238.3352 | K63: 206719.2554
B64: Non-Network Assets | C64: Shared - CPD | F64: 1348855.59 | I64: 1033030.903 | J64: 215208.5936 | K64: 100616.0935
F65: 15620762.23 | I65: 8799257.213 | J65: 4333664.839 | K65: 2487840.173
B67: Load group 2 | C67: Allocator | F67: Total | I67: Dunedin | J67: Central Otago | K67: Queenstown
B69: Asset Categories
B70: 33KV Lines | C70: HV - CPD | F70: 0 | I70: 0 | J70: 0 | K70: 0
B71: 33KV Cables | C71: HV - CPD | F71: 0 | I71: 0 | J71: 0 | K71: 0
B72: Zone Subs | C72: LV - CPD | F72: 1053207.251 | I72: 450322.4553 | J72: 370247.4631 | K72: 232637.3329
B73: HV lines | C73: HV - CPD | F73: 0 | I73: 0 | J73: 0 | K73: 0
B74: LV lines | C74: LV - CPD | F74: 513251.211 | I74: 399067.5888 | J74: 75222.94299 | K74: 38960.67923
B75: HV cables | C75: HV - CPD | F75: 0 | I75: 0 | J75: 0 | K75: 0
B76: LV cables | C76: LV - CPD | F76: 474912.8709 | I76: 118259.9969 | J76: 174146.3953 | K76: 182506.4787
B77: Dist Subs | C77: LV - CPD | F77: 1123571.971 | I77: 362496.1941 | J77: 426200.5546 | K77: 334875.2218
B78: Other Network Assets | C78: Shared - CPD | F78: 417527.9281 | I78: 271899.7566 | J78: 70830.21789 | K78: 74797.95363
B79: Non-Network Assets | C79: Shared - CPD | F79: 307853.7799 | I79: 213097.4493 | J79: 58350.05633 | K79: 36406.27422
F80: 3890325.012 | I80: 1815143.441 | J80: 1174997.63 | K80: 900183.9405
B82: Load group 3 | C82: Allocator | F82: Total | I82: Dunedin | J82: Central Otago | K82: Queenstown
B84: Asset Categories
B85: 33KV Lines | C85: HV - CPD | F85: 583929.2734 | I85: 172982.8695 | J85: 319955.5001 | K85: 90990.90387
B86: 33KV Cables | C86: HV - CPD | F86: 413908.132 | I86: 269851.6929 | J86: 38140.11839 | K86: 105916.3207
B87: Zone Subs | C87: LV - CPD | F87: 0 | I87: 0 | J87: 0 | K87: 0
B88: HV lines | C88: HV - CPD | F88: 1859714.196 | I88: 678919.0817 | J88: 890420.3119 | K88: 290374.8025
B89: LV lines | C89: LV - CPD | F89: 0 | I89: 0 | J89: 0 | K89: 0
B90: HV cables | C90: HV - CPD | F90: 1606986.485 | I90: 554764.8265 | J90: 628889.5797 | K90: 423332.0788
B91: LV cables | C91: LV - CPD | F91: 0 | I91: 0 | J91: 0 | K91: 0
B92: Dist Subs | C92: LV - CPD | F92: 0 | I92: 0 | J92: 0 | K92: 0
B93: Other Network Assets | C93: Shared - CPD | F93: 214806.5353 | I93: 162705.233 | J93: 27953.33016 | K93: 24147.97214
B94: Non-Network Assets | C94: Shared - CPD | F94: 162299.343 | I94: 127517.8418 | J94: 23028.00186 | K94: 11753.4993
F95: 4841643.965 | I95: 1966741.545 | J95: 1928386.842 | K95: 946515.5773
B97: Load group 4 | C97: Allocator | F97: Total | I97: Dunedin | J97: Central Otago | K97: Queenstown
B99: Asset Categories
B100: 33KV Lines | C100: HV - CPD | F100: 696426.4442 | I100: 190307.845 | J100: 361310.0454 | K100: 144808.5538
B101: 33KV Cables | C101: HV - CPD | F101: 508510.0458 | I101: 296878.4962 | J101: 43069.7641 | K101: 168561.7856
B102: Zone Subs | C102: LV - CPD | F102: 0 | I102: 0 | J102: 0 | K102: 0
B103: HV lines | C103: HV - CPD | F103: 2214544.126 | I103: 746915.7366 | J103: 1005507.964 | K103: 462120.4254
B104: LV lines | C104: LV - CPD | F104: 0 | I104: 0 | J104: 0 | K104: 0
B105: HV cables | C105: HV - CPD | F105: 1994217.903 | I105: 610326.9009 | J105: 710174.1416 | K105: 673716.8605
B106: LV cables | C106: LV - CPD | F106: 0 | I106: 0 | J106: 0 | K106: 0
B107: Dist Subs | C107: LV - CPD | F107: 0 | I107: 0 | J107: 0 | K107: 0
B108: Other Network Assets | C108: Shared - CPD | F108: 248997.7601 | I108: 179000.8593 | J108: 31566.32403 | K108: 38430.57683
B109: Non-Network Assets | C109: Shared - CPD | F109: 184998.9385 | I109: 140289.3 | J109: 26004.39248 | K109: 18705.24594
F110: 5847695.217 | I110: 2163719.138 | J110: 2177632.631 | K110: 1506343.448
B112: Load group 5 | C112: Allocator | F112: Total | I112: Dunedin | J112: Central Otago | K112: Queenstown
B114: Asset Categories
B115: 33KV Lines | C115: HV - CPD | F115: 167333.7227 | I115: 68987.78124 | J115: 89212.92646 | K115: 9133.015044
B116: 33KV Cables | C116: HV - CPD | F116: 128886.0062 | I116: 107620.3072 | J116: 10634.57755 | K116: 10631.12146
B117: Zone Subs | C117: LV - CPD | F117: 0 | I117: 0 | J117: 0 | K117: 0
B118: HV lines | C118: HV - CPD | F118: 548182.5136 | I118: 270761.6149 | J118: 248275.1564 | K118: 29145.74234
B119: LV lines | C119: LV - CPD | F119: 0 | I119: 0 | J119: 0 | K119: 0
B120: HV cables | C120: HV - CPD | F120: 439091.1103 | I120: 221247.3097 | J120: 175352.7594 | K120: 42491.04119
B121: LV cables | C121: LV - CPD | F121: 0 | I121: 0 | J121: 0 | K121: 0
B122: Dist Subs | C122: LV - CPD | F122: 0 | I122: 0 | J122: 0 | K122: 0
B123: Other Network Assets | C123: Shared - CPD | F123: 75106.93263 | I123: 64888.92835 | J123: 7794.203843 | K123: 2423.80044
B124: Non-Network Assets | C124: Shared - CPD | F124: 58456.35729 | I124: 50855.74659 | J124: 6420.878642 | K124: 1179.732054
F125: 1417056.643 | I125: 784361.688 | J125: 537690.5023 | K125: 95004.45252

Sheet Load Group Allocations
B2: Load Group Allocations
B3: Pricing Area Name | G3: Dunedin | H3: Central Otago | I3: Queenstown
G4: 1 | H4: 2 | I4: 3
B7: Description
B9: In this sheet the cost of supply for each pricing area is allocated to each load group.
B10: More information about load group allocation is provided in section 3.6 of the Pricing Methodology.
B12: Load group Streetlighting | C12: Units | D12: Allocator | E12: Distribution / Passthrough | F12: Tariff Types
B14: Load Group Allocators
B16: ICP Count | C16: % | G16: 7.039457025e-05 | H16: 0.0002971340001 | I16: 0.000201200219
B17: CPD | C17: % | G17: 0.005777686203 | H17: 0.00408818879 | I17: 0.003343302684
B18: Prior year distribution revenue | C18: % | G18: 0.008273804796 | H18: 0.002895400437 | I18: 0.00314407029
B19: MWh | C19: % | G19: 0.005401553806 | H19: 0.002831829363 | I19: 0.002543379986
B20: Regulated Asset Base | C20: % | G20: 0.004491294484 | H20: 0.002471782335 | I20: 0.002033424589
B21: Regulated Asset Base (Depreciation) | G21: 0.004963054333 | H21: 0.002671701952 | I21: 0.002351209979
B23: Load group Streetlighting Allocation
A25: Load group Streetlighting | B25: Service interruptions and emergencies | C25: $ | D25: CPD | E25: Distribution | F25: Capacity | G25: 6.481464262 | H25: 5.595771624 | I25: 1.64316716
A26: Load group Streetlighting | B26: Service interruptions and emergencies | C26: $ | D26: ICP Count | E26: Distribution | F26: Daily Fixed | G26: 0.1251761597 | H26: 0.2190582794 | I26: 0.09388211974
A27: Load group Streetlighting | B27: Vegetation management | C27: $ | D27: CPD | E27: Distribution | F27: Distance | G27: 10.42454549 | H27: 7.719590425 | I27: 1.407078028
B28: Routine and corrective maintenance and inspection | C28: $ | D28: CPD | E28: Distribution | F28: Capacity | G28: 34.69244092 | H28: 29.95171595 | I28: 8.795154508
B29: System operations and network support | C29: $ | D29: ICP Count | E29: Distribution | F29: Daily Fixed | G29: 0.09093359481 | H29: 0.1591337909 | I29: 0.06820019611
B30: Business support | C30: $ | D30: ICP Count | E30: Distribution | F30: Daily Fixed | G30: 2.054587735 | H30: 3.595528537 | I30: 1.540940802
B31: Depreciation | C31: $ | D31: Regulated Asset Base (Depreciation) | E31: Distribution | F31: Capacity | G31: 92.00386827 | H31: 32.30456852 | I31: 16.61674447
B32: Asset revaluations and other regulatory revenue | C32: $ | D32: Regulated Asset Base | E32: Distribution | F32: Capacity | G32: -49.82757927 | H32: -20.96683533 | I32: -9.216605664
B33: Tax | C33: $ | D33: Regulated Asset Base | E33: Distribution | F33: Capacity | G33: 37.86675922 | H33: 15.93386868 | I33: 7.004213181
B34: Return on capital | C34: $ | D34: Regulated Asset Base | E34: Distribution | F34: Capacity | G34: 147.2030387 | H34: 61.9412365 | I34: 27.22814112
B35: Local Authority rates | C35: $ | D35: Regulated Asset Base | E35: Passthrough | F35: Capacity | G35: 4.240853212 | H35: 1.784499112 | I35: 0.7844304761
B36: Commerce Act levies | C36: $ | D36: Regulated Asset Base | E36: Passthrough | F36: Capacity | G36: 0.7199646889 | H36: 0.3029523267 | I36: 0.1331718443
B37: Electricity Authority levies | C37: $ | D37: MWh | E37: Passthrough | F37: Capacity | G37: 1.014892134 | H37: 0.2250186694 | I37: 0.1724435616
B38: Electricity Authority levies | C38: $ | D38: ICP Count | E38: Passthrough | F38: Daily Fixed | G38: 0.003517107741 | H38: 0.006154938546 | I38: 0.002637830805
B39: Utilities Disputes levies | C39: $ | D39: ICP Count | E39: Passthrough | F39: Daily Fixed | G39: 0.003173463165 | H39: 0.005553560539 | I39: 0.002380097374
B40: Opex Incentive Amount | C40: $ | D40: Prior year distribution revenue | E40: Passthrough | F40: Daily Fixed | G40: -27.41561577 | H40: -6.103426946 | I40: -3.54635632
B41: Capex Incentive Amount | C41: $ | D41: Regulated Asset Base | E41: Passthrough | F41: Capacity | G41: -2.795996775 | H41: -1.176521212 | I41: -0.5171754296
B42: Transpower - Connection charge | C42: $ | D42: MWh | E42: Passthrough | F42: Capacity | G42: 13.92483069 | H42: 3.542459796 | I42: 7.908822639
B43: Transpower - Benefit-based Charge | D43: MWh | E43: Passthrough | F43: Capacity | G43: 9.440898913 | H43: 1.390988409 | I43: 2.127221668
B44: Transpower - Residual Charge | D44: MWh | E44: Passthrough | F44: Capacity | G44: 78.78733768 | H44: 15.20020519 | I44: 11.47408104
B45: Transpower - Transitional Price Cap | D45: MWh | E45: Passthrough | F45: Capacity | G45: 0.0491230054 | H45: 0.009237510851 | I45: 0.007572823533
B46: Transpower - Interconnection costs | C46: $ | D46: MWh | E46: Passthrough | F46: Capacity | G46: 0 | H46: 0 | I46: 0
B47: Transpower - New investment contract | C47: $ | D47: MWh | E47: Passthrough | F47: Capacity | G47: 4.952026172 | H47: 1.259789366 | I47: 2.812579741
A48: Load group Streetlighting | B48: Distributed Generation Allowance | C48: $ | D48: MWh | E48: Passthrough | F48: Capacity | G48: 0 | H48: 0 | I48: 0
A49: Load group Streetlighting | B49: Wash-up Drawdown Amount | C49: $ | D49: 0 | E49: Passthrough | F49: Daily Fixed | G49: 0 | H49: 0 | I49: 0 | J49: Pro-rated across pass-through and recoverable costs
A50: Load group Streetlighting | B50: Quality Incentive Adjustments | C50: $ | D50: ICP Count | E50: Passthrough | F50: Daily Fixed | G50: 0.001226636428 | H50: 0.002146613749 | I50: 0.0009199773212
A51: Load group Streetlighting | B51: Capex Wash-up Adjustment | C51: $ | D51: Regulated Asset Base | E51: Passthrough | F51: Capacity | G51: 0 | H51: 0 | I51: 0
A52: Load group Streetlighting | B52: Fire and Emergency Management New Zealand (FENZ) levies | C52: $ | D52: Regulated Asset Base | E52: Passthrough | F52: Capacity | G52: 0.0913488241 | H52: 0.03843846682 | I52: 0.01689678893
B53: Total | G53: 364.1328151 | H53: 152.9411328 | I53: 76.56054266
E55: Distribution | G55: 281.1152351 | H55: 136.453637 | I55: 55.18091592
E56: Passthrough | G56: 83.01757998 | H56: 16.4874958 | I56: 21.37962674
B58: Load group 1 (incl residential) | C58: Units | D58: Allocator | E58: Distribution / Passthrough
B60: Price category allocators
B62: ICP Count | C62: % | G62: 0.9387796744 | H62: 0.8949962169 | I62: 0.8568202281
B63: CPD | C63: % | G63: 0.6563574411 | H63: 0.6514316513 | I63: 0.5945642183
B64: Prior year distribution revenue | C64: % | G64: 0.6730358141 | H64: 0.6541275191 | I64: 0.5944608501
B65: MWh | C65: % | G65: 0.5396393438 | H65: 0.4518686811 | I65: 0.4339303538
B66: Regulated Asset Base | C66: % | G66: 0.5102206058 | H66: 0.3938656775 | I66: 0.3616189187
B67: Regulated Asset Base (Depreciation) | G67: 0.563813528 | H67: 0.4257218302 | I67: 0.4181330425
B69: Load group 1 (incl residential) Allocation
A71: Load group Streetlighting | B71: Service interruptions and emergencies | C71: $ | D71: CPD | E71: Distribution | F71: Capacity | G71: 736.3081254 | H71: 891.6571461 | I71: 292.2165565
A72: Load group Streetlighting | B72: Service interruptions and emergencies | C72: $ | D72: ICP Count | E72: Distribution | F72: Daily Fixed | G72: 1669.34515 | H72: 659.8246288 | I72: 399.8012509
A73: Load group Streetlighting | B73: Vegetation management | C73: $ | D73: CPD | E73: Distribution | F73: Distance | G73: 1184.250539 | H73: 1230.076642 | I73: 250.2310818
B74: Routine and corrective maintenance and inspection | C74: $ | D74: CPD | E74: Distribution | F74: Capacity | G74: 3941.135075 | H74: 4772.650379 | I74: 1564.107309
B75: System operations and network support | C75: $ | D75: ICP Count | E75: Distribution | F75: Daily Fixed | G75: 1212.687431 | H75: 479.3262999 | I75: 290.4336182
B76: Business support | C76: $ | D76: ICP Count | E76: Distribution | F76: Daily Fixed | G76: 27399.91449 | H76: 10830.07814 | I76: 6562.166062
B77: Depreciation | C77: $ | D77: Regulated Asset Base (Depreciation) | E77: Distribution | F77: Capacity | G77: 10451.83512 | H77: 5147.565216 | I77: 2955.078441
B78: Asset revaluations and other regulatory revenue | C78: $ | D78: Regulated Asset Base | E78: Distribution | F78: Capacity | G78: -5660.518982 | H78: -3340.956316 | I78: -1639.057082
B79: Tax | C79: $ | D79: Regulated Asset Base | E79: Distribution | F79: Capacity | G79: 4301.744385 | H79: 2538.979221 | I79: 1245.61098
B80: Return on capital | C80: $ | D80: Regulated Asset Base | E80: Distribution | F80: Capacity | G80: 16722.57828 | H80: 9870.014338 | I80: 4842.18151
B81: Local Authority rates | C81: $ | D81: Regulated Asset Base | E81: Passthrough | F81: Capacity | G81: 481.7699447 | H81: 284.3506655 | I81: 139.5010673
B82: Commerce Act levies | C82: $ | D82: Regulated Asset Base | E82: Passthrough | F82: Capacity | G82: 81.78951994 | H82: 48.27387984 | I82: 23.68293301
B83: Electricity Authority levies | C83: $ | D83: MWh | E83: Passthrough | F83: Capacity | G83: 101.3922558 | H83: 35.90572607 | I83: 29.42088721
B84: Electricity Authority levies | C84: $ | D84: ICP Count | E84: Passthrough | F84: Daily Fixed | G84: 46.9040332 | H84: 18.53926751 | I84: 11.23332173
B85: Utilities Disputes levies | C85: $ | D85: ICP Count | E85: Passthrough | F85: Daily Fixed | G85: 42.32120044 | H85: 16.72785905 | I85: 10.13575226
B86: Opex Incentive Amount | C86: $ | D86: Prior year distribution revenue | E86: Passthrough | F86: Daily Fixed | G86: -2230.133745 | H86: -1378.883375 | I86: -670.5225387
B87: Capex Incentive Amount | C87: $ | D87: Regulated Asset Base | E87: Passthrough | F87: Capacity | G87: -317.6311804 | H87: -187.4725448 | I87: -91.97312778
B88: Transpower - Connection charge | C88: $ | D88: MWh | E88: Passthrough | F88: Capacity | G88: 1391.152762 | H88: 565.2623908 | I88: 1349.337584
B89: Transpower - Benefit-based Charge | C89: $ | D89: MWh | E89: Passthrough | F89: Capacity | G89: 943.1879561 | H89: 221.956911 | I89: 362.9288804
B90: Transpower - Residual Charge | C90: $ | D90: MWh | E90: Passthrough | F90: Capacity | G90: 7871.206829 | H90: 2425.462763 | I90: 1957.61234
B91: Transpower - Transitional Price Cap | C91: $ | D91: MWh | E91: Passthrough | F91: Capacity | G91: 4.907607579 | H91: 1.474008957 | I91: 1.292012209
B92: Transpower - Interconnection costs | C92: $ | D92: MWh | E92: Passthrough | F92: Capacity | G92: 0 | H92: 0 | I92: 0
B93: Transpower - New investment contract | C93: $ | D93: MWh | E93: Passthrough | F93: Capacity | G93: 494.729526 | H93: 201.0217729 | I93: 479.8589785
A94: Load group Streetlighting | B94: Distributed Generation Allowance | C94: $ | D94: MWh | E94: Passthrough | F94: Capacity | G94: 0 | H94: 0 | I94: 0
A95: Load group Streetlighting | B95: Wash-up Drawdown Amount | C95: $ | D95: 0 | E95: Passthrough | F95: Daily Fixed | G95: 0 | H95: 0 | I95: 0 | J95: Pro-rated across pass-through and recoverable costs
A96: Load group Streetlighting | B96: Quality Incentive Adjustments | C96: $ | D96: ICP Count | E96: Passthrough | F96: Daily Fixed | G96: 16.35838308 | H96: 6.465807293 | I96: 3.91776501
A97: Load group Streetlighting | B97: Capex Wash-up Adjustment | C97: $ | D97: Regulated Asset Base | E97: Passthrough | F97: Capacity | G97: 0 | H97: 0 | I97: 0
A98: Load group Streetlighting | B98: Fire and Emergency Management New Zealand (FENZ) levies | C98: $ | D98: Regulated Asset Base | E98: Passthrough | F98: Capacity | G98: 10.37742071 | H98: 6.124970053 | I98: 3.004880816
B99: Total | G99: 70897.61212 | H99: 35344.42579 | I99: 20372.20046
E101: Distribution | G101: 61959.27961 | H101: 33079.21569 | I101: 16762.76973
E102: Passthrough | G102: 8938.332513 | H102: 2265.210103 | I102: 3609.430736
B104: Load group 2 | C104: Units | D104: Allocator | E104: Distribution / Passthrough
B106: Price category allocators
B108: ICP Count | C108: % | G108: 0.05595003837 | H108: 0.09593846314 | I108: 0.1350149017
B109: CPD | C109: % | G109: 0.1353958494 | H109: 0.1766243295 | I109: 0.2151332576
B110: Prior year distribution revenue | C110: % | G110: 0.1632262413 | H110: 0.1609390642 | I110: 0.2196885433
B111: MWh | C111: % | G111: 0.1639579396 | H111: 0.2589818338 | I111: 0.2622592692
B112: Regulated Asset Base | C112: % | G112: 0.1052502005 | H112: 0.1067898084 | I112: 0.1308458424
B113: Regulated Asset Base (Depreciation) | G113: 0.1163055475 | H113: 0.1154270485 | I113: 0.1512945461
B115: Load group 2 Allocation
A117: Load group Streetlighting | B117: Service interruptions and emergencies | C117: $ | D117: CPD | E117: Distribution | F117: Capacity | G117: 151.8883733 | H117: 241.7572822 | I117: 105.7337421
A118: Load group Streetlighting | B118: Service interruptions and emergencies | C118: $ | D118: ICP Count | E118: Distribution | F118: Daily Fixed | G118: 99.49078332 | H118: 70.72941722 | I118: 62.99936067
A119: Load group Streetlighting | B119: Vegetation management | C119: $ | D119: CPD | E119: Distribution | F119: Distance | G119: 244.2915972 | H119: 333.5138255 | I119: 90.54199047
B120: Routine and corrective maintenance and inspection | C120: $ | D120: CPD | E120: Distribution | F120: Capacity | G120: 812.991973 | H120: 1294.020902 | I120: 565.9464365
B121: System operations and network support | C121: $ | D121: ICP Count | E121: Distribution | F121: Daily Fixed | G121: 72.27458171 | H121: 51.38103122 | I121: 45.76557032
B122: Business support | C122: $ | D122: ICP Count | E122: Distribution | F122: Daily Fixed | G122: 1632.998997 | H122: 1160.922284 | I122: 1034.044455
B123: Depreciation | C123: $ | D123: Regulated Asset Base (Depreciation) | E123: Distribution | F123: Capacity | G123: 2156.043345 | H123: 1395.672521 | I123: 1069.246403
B124: Asset revaluations and other regulatory revenue | C124: $ | D124: Regulated Asset Base | E124: Distribution | F124: Capacity | G124: -1167.672868 | H124: -905.8420297 | I124: -593.0657759
B125: Tax | C125: $ | D125: Regulated Asset Base | E125: Distribution | F125: Capacity | G125: 887.3798 | H125: 688.3999289 | I125: 450.7037923
B126: Return on capital | C126: $ | D126: Regulated Asset Base | E126: Distribution | F126: Capacity | G126: 3449.595522 | H126: 2676.082228 | I126: 1752.063528
B127: Local Authority rates | C127: $ | D127: Regulated Asset Base | E127: Passthrough | F127: Capacity | G127: 99.38129253 | H127: 77.09672308 | I127: 50.47616074
B128: Commerce Act levies | C128: $ | D128: Regulated Asset Base | E128: Passthrough | F128: Capacity | G128: 16.87184578 | H128: 13.08862049 | I128: 8.569278762
B129: Electricity Authority levies | C129: $ | D129: MWh | E129: Passthrough | F129: Capacity | G129: 30.80588092 | H129: 20.57883445 | I129: 17.78142578
B130: Electricity Authority levies | C130: $ | D130: ICP Count | E130: Passthrough | F130: Daily Fixed | G130: 2.795418913 | H130: 1.987303185 | I130: 1.770109737
B131: Utilities Disputes levies | C131: $ | D131: ICP Count | E131: Passthrough | F131: Daily Fixed | G131: 2.522288086 | H131: 1.793130584 | I131: 1.597158365
B132: Opex Incentive Amount | C132: $ | D132: Prior year distribution revenue | E132: Passthrough | F132: Daily Fixed | G132: -540.8573231 | H132: -339.2552577 | I132: -247.7978487
B133: Capex Incentive Amount | C133: $ | D133: Regulated Asset Base | E133: Passthrough | F133: Capacity | G133: -65.52213895 | H133: -50.82991048 | I133: -33.27895959
B134: Transpower - Connection charge | C134: $ | D134: MWh | E134: Passthrough | F134: Capacity | G134: 422.6721851 | H134: 323.971757 | I134: 815.5140233
B135: Transpower - Benefit-based Charge | C135: $ | D135: MWh | E135: Passthrough | F135: Capacity | G135: 286.5676043 | H135: 127.2113121 | I135: 219.3473264
B136: Transpower - Residual Charge | C136: $ | D136: MWh | E136: Passthrough | F136: Capacity | G136: 2391.49882 | H136: 1390.118016 | I136: 1183.14374
B137: Transpower - Transitional Price Cap | C137: $ | D137: MWh | E137: Passthrough | F137: Capacity | G137: 1.491072207 | H137: 0.8448063753 | I137: 0.7808676549
B138: Transpower - Interconnection costs | C138: $ | D138: MWh | E138: Passthrough | F138: Capacity | G138: 0 | H138: 0 | I138: 0
B139: Transpower - New investment contract | C139: $ | D139: MWh | E139: Passthrough | F139: Capacity | G139: 150.3130465 | H139: 115.2126482 | I139: 290.0176581
A140: Load group Streetlighting | B140: Distributed Generation Allowance | C140: $ | D140: MWh | E140: Passthrough | F140: Capacity | G140: 0 | H140: 0 | I140: 0
A141: Load group Streetlighting | B141: Wash-up Drawdown Amount | C141: $ | D141: 0 | E141: Passthrough | F141: Daily Fixed | G141: 0 | H141: 0 | I141: 0 | J141: Pro-rated across pass-through and recoverable costs
A142: Load group Streetlighting | B142: Quality Incentive Adjustments | C142: $ | D142: ICP Count | E142: Passthrough | F142: Daily Fixed | G142: 0.9749381946 | H142: 0.6930974712 | I142: 0.6173484709
A143: Load group Streetlighting | B143: Capex Wash-up Adjustment | C143: $ | D143: Regulated Asset Base | E143: Passthrough | F143: Capacity | G143: 0 | H143: 0 | I143: 0
A144: Load group Streetlighting | B144: Fire and Emergency Management New Zealand (FENZ) levies | C144: $ | D144: Regulated Asset Base | E144: Passthrough | F144: Capacity | G144: 2.140692864 | H144: 1.660678794 | I144: 1.087266571
B145: Total | G145: 11140.93773 | H145: 8690.809149 | I145: 6893.605058
E147: Distribution | G147: 8339.282105 | H147: 7006.63739 | I147: 4583.979502
E148: Passthrough | G148: 2801.655624 | H148: 1684.171759 | I148: 2309.625555
B150: Load group 3 | C150: Units | D150: Allocator | E150: Distribution / Passthrough
B152: Price category allocators
B154: ICP Count | C154: % | G154: 0.003718376204 | H154: 0.00684792112 | I154: 0.005415133931
B155: CPD | C155: % | G155: 0.08102108474 | H155: 0.06970525214 | I155: 0.06945419838
B156: Prior year distribution revenue | C156: % | G156: 0.08205883663 | H156: 0.08258157286 | I156: 0.1129489897
B157: MWh | C157: % | G157: 0.1061802078 | H157: 0.1275911822 | I157: 0.08989603755
B158: Regulated Asset Base | C158: % | G158: 0.1520779936 | H158: 0.2063356332 | I158: 0.1877908082
B159: Regulated Asset Base (Depreciation) | G159: 0.1260192153 | H159: 0.1894369791 | I159: 0.1590815368
B161: Load group 3 Allocation
A163: Load group Streetlighting | B163: Service interruptions and emergencies | C163: $ | D163: CPD | E163: Distribution | F163: Capacity | G163: 90.89023646 | H163: 95.41014175 | I163: 34.13536514
A164: Load group Streetlighting | B164: Service interruptions and emergencies | C164: $ | D164: ICP Count | E164: Distribution | F164: Daily Fixed | G164: 6.612044817 | H164: 5.04854314 | I164: 2.526757946
A165: Load group Streetlighting | B165: Vegetation management | C165: $ | D165: CPD | E165: Distribution | F165: Distance | G165: 146.1844679 | H165: 131.6221008 | I165: 29.23081925
B166: Routine and corrective maintenance and inspection | C166: $ | D166: CPD | E166: Distribution | F166: Capacity | G166: 486.4956485 | H166: 510.6887229 | I166: 182.7116668
B167: System operations and network support | C167: $ | D167: ICP Count | E167: Distribution | F167: Daily Fixed | G167: 4.803286871 | H167: 3.667488902 | I167: 1.835550666
B168: Business support | C168: $ | D168: ICP Count | E168: Distribution | F168: Daily Fixed | G168: 108.5272645 | H168: 82.86461932 | I168: 41.47311996
B169: Depreciation | C169: $ | D169: Regulated Asset Base (Depreciation) | E169: Distribution | F169: Capacity | G169: 2336.112907 | H169: 2290.554853 | I169: 1124.279528
B170: Asset revaluations and other regulatory revenue | C170: $ | D170: Regulated Asset Base | E170: Distribution | F170: Capacity | G170: -1687.192481 | H170: -1750.23714 | I170: -851.1718779
B171: Tax | C171: $ | D171: Regulated Asset Base | E171: Distribution | F171: Capacity | G171: 1282.191757 | H171: 1330.102913 | I171: 646.8530285
B172: Return on capital | C172: $ | D172: Regulated Asset Base | E172: Distribution | F172: Capacity | G172: 4984.385427 | H172: 5170.635 | I172: 2514.573028
B173: Local Authority rates | C173: $ | D173: Regulated Asset Base | E173: Passthrough | F173: Capacity | G173: 143.5978981 | H173: 148.9636644 | I173: 72.44371581
B174: Commerce Act levies | C174: $ | D174: Regulated Asset Base | E174: Passthrough | F174: Capacity | G174: 24.37844718 | H174: 25.28938704 | I174: 12.29868489
B175: Electricity Authority levies | C175: $ | D175: MWh | E175: Passthrough | F175: Capacity | G175: 19.95008502 | H175: 10.1384633 | I175: 6.095036123
B176: Electricity Authority levies | C176: $ | D176: ICP Count | E176: Passthrough | F176: Daily Fixed | G176: 0.185780376 | H176: 0.1418502549 | I176: 0.07099498783
B177: Utilities Disputes levies | C177: $ | D177: ICP Count | E177: Passthrough | F177: Daily Fixed | G177: 0.1676284105 | H177: 0.1279905514 | I177: 0.06405831023
B178: Opex Incentive Amount | C178: $ | D178: Prior year distribution revenue | E178: Passthrough | F178: Daily Fixed | G178: -271.9055611 | H178: -174.0797544 | I178: -127.4008933
B179: Capex Incentive Amount | C179: $ | D179: Regulated Asset Base | E179: Passthrough | F179: Capacity | G179: -94.67417048 | H179: -98.21182304 | I179: -47.76218031
B180: Transpower - Connection charge | C180: $ | D180: MWh | E180: Passthrough | F180: Capacity | G180: 273.7252037 | H180: 159.6094169 | I180: 279.5381817
B181: Transpower - Benefit-based Charge | C181: $ | D181: MWh | E181: Passthrough | F181: Capacity | G181: 185.5830089 | H181: 62.67251054 | I181: 75.18687728
B182: Transpower - Residual Charge | C182: $ | D182: MWh | E182: Passthrough | F182: Capacity | G182: 1548.749894 | H182: 684.8619398 | I182: 405.5526211
B183: Transpower - Transitional Price Cap | C183: $ | D183: MWh | E183: Passthrough | F183: Capacity | G183: 0.9656278742 | H183: 0.4162061972 | I183: 0.2676622575
B184: Transpower - Interconnection costs | C184: $ | D184: MWh | E184: Passthrough | F184: Capacity | G184: 0 | H184: 0 | I184: 0
B185: Transpower - New investment contract | C185: $ | D185: MWh | E185: Passthrough | F185: Capacity | G185: 97.34368789 | H185: 56.76119354 | I185: 99.41093165
A186: Load group Streetlighting | B186: Distributed Generation Allowance | C186: $ | D186: MWh | E186: Passthrough | F186: Capacity | G186: 0 | H186: 0 | I186: 0
A187: Load group Streetlighting | B187: Wash-up Drawdown Amount | C187: $ | D187: 0 | E187: Passthrough | F187: Daily Fixed | G187: 0 | H187: 0 | I187: 0 | J187: Pro-rated across pass-through and recoverable costs
A188: Load group Streetlighting | B188: Quality Incentive Adjustments | C188: $ | D188: ICP Count | E188: Passthrough | F188: Daily Fixed | G188: 0.06479328859 | H188: 0.04947209551 | I188: 0.02476041245
A189: Load group Streetlighting | B189: Capex Wash-up Adjustment | C189: $ | D189: Regulated Asset Base | E189: Passthrough | F189: Capacity | G189: 0 | H189: 0 | I189: 0
A190: Load group Streetlighting | B190: Fire and Emergency Management New Zealand (FENZ) levies | C190: $ | D190: Regulated Asset Base | E190: Passthrough | F190: Capacity | G190: 3.093127368 | H190: 3.208707044 | I190: 1.560452089
B191: Total | G191: 9690.23601 | H191: 8750.306468 | I191: 4503.797889
E193: Distribution | G193: 7759.01056 | H193: 7870.357244 | I193: 3726.446986
E194: Passthrough | G194: 1931.22545 | H194: 879.9492242 | I194: 777.3509031
B196: Load group 4 | C196: Units | D196: Allocator | E196: Distribution / Passthrough
B198: Price category allocators
B200: ICP Count | C200: % | G200: 0.001390582055 | H200: 0.0018636291 | I200: 0.002414402628
B201: CPD | C201: % | G201: 0.08913569353 | H201: 0.07871472068 | I201: 0.1105337082
B202: Prior year distribution revenue | C202: % | G202: 0.05885213249 | H202: 0.09340144814 | I202: 0.06721639331
B203: MWh | C203: % | G203: 0.1272891654 | H203: 0.1360052425 | I203: 0.1784171602
B204: Regulated Asset Base | C204: % | G204: 0.1673092563 | H204: 0.2330047053 | I204: 0.2988619103
B205: Regulated Asset Base (Depreciation) | G205: 0.1386405797 | H205: 0.2139218845 | I205: 0.2531721996
B207: Load group 4 Allocation
A209: Load group Streetlighting | B209: Service interruptions and emergencies | C209: $ | D209: CPD | E209: Distribution | F209: Capacity | G209: 99.99328308 | H209: 107.7419911 | I209: 54.32513194
A210: Load group Streetlighting | B210: Service interruptions and emergencies | C210: $ | D210: ICP Count | E210: Distribution | F210: Daily Fixed | G210: 2.472743576 | H210: 1.373936958 | I210: 1.126585437
A211: Load group Streetlighting | B211: Vegetation management | C211: $ | D211: CPD | E211: Distribution | F211: Distance | G211: 160.8254687 | H211: 148.6343795 | I211: 46.51973419
B212: Routine and corrective maintenance and inspection | C212: $ | D212: CPD | E212: Distribution | F212: Capacity | G212: 535.2202721 | H212: 576.6957144 | I212: 290.7786504
B213: System operations and network support | C213: $ | D213: ICP Count | E213: Distribution | F213: Daily Fixed | G213: 1.796312197 | H213: 0.998089628 | I213: 0.8184023533
B214: Business support | C214: $ | D214: ICP Count | E214: Distribution | F214: Daily Fixed | G214: 40.58655128 | H214: 22.55121127 | I214: 18.49128962
B215: Depreciation | C215: $ | D215: Regulated Asset Base (Depreciation) | E215: Distribution | F215: Capacity | G215: 2570.084624 | H215: 2586.611194 | I215: 1789.247998
B216: Asset revaluations and other regulatory revenue | C216: $ | D216: Regulated Asset Base | E216: Distribution | F216: Capacity | G216: -1856.172037 | H216: -1976.456914 | I216: -1354.607586
B217: Tax | C217: $ | D217: Regulated Asset Base | E217: Distribution | F217: Capacity | G217: 1410.608755 | H217: 1502.019949 | I217: 1029.441929
B218: Return on capital | C218: $ | D218: Regulated Asset Base | E218: Distribution | F218: Capacity | G218: 5483.592984 | H218: 5838.944374 | I218: 4001.847086
B219: Local Authority rates | C219: $ | D219: Regulated Asset Base | E219: Passthrough | F219: Capacity | G219: 157.9798429 | H219: 168.2173563 | I219: 115.2914112
B220: Commerce Act levies | C220: $ | D220: Regulated Asset Base | E220: Passthrough | F220: Capacity | G220: 26.82005312 | H220: 28.55806379 | I220: 19.57288802
B221: Electricity Authority levies | C221: $ | D221: MWh | E221: Passthrough | F221: Capacity | G221: 23.91622436 | H221: 10.807049 | I221: 12.09685172
B222: Electricity Authority levies | C222: $ | D222: ICP Count | E222: Passthrough | F222: Daily Fixed | G222: 0.06947733175 | H222: 0.03860387092 | I222: 0.03165396967
B223: Utilities Disputes levies | C223: $ | D223: ICP Count | E223: Passthrough | F223: Daily Fixed | G223: 0.06268893914 | H223: 0.03483201865 | I223: 0.02856116849
B224: Opex Incentive Amount | C224: $ | D224: Prior year distribution revenue | E224: Passthrough | F224: Daily Fixed | G224: -195.0091271 | H224: -196.8877631 | I224: -75.81677864
B225: Capex Incentive Amount | C225: $ | D225: Regulated Asset Base | E225: Passthrough | F225: Capacity | G225: -104.1561943 | H225: -110.9057923 | I225: -76.01168866
B226: Transpower - Connection charge | C226: $ | D226: MWh | E226: Passthrough | F226: Capacity | G226: 328.1426309 | H226: 170.1349346 | I226: 554.800967
B227: Transpower - Benefit-based Charge | C227: $ | D227: MWh | E227: Passthrough | F227: Capacity | G227: 222.4774919 | H227: 66.80547858 | I227: 149.2238089
B228: Transpower - Residual Charge | C228: $ | D228: MWh | E228: Passthrough | F228: Capacity | G228: 1856.64622 | H228: 730.025481 | I228: 804.9025181
B229: Transpower - Transitional Price Cap | C229: $ | D229: MWh | E229: Passthrough | F229: Capacity | G229: 1.157597718 | H229: 0.4436531097 | I229: 0.5312307548
B230: Transpower - Interconnection costs | C230: $ | D230: MWh | E230: Passthrough | F230: Capacity | G230: 0 | H230: 0 | I230: 0
B231: Transpower - New investment contract | C231: $ | D231: MWh | E231: Passthrough | F231: Capacity | G231: 116.6959177 | H231: 60.50433702 | I231: 197.3014229
A232: Load group Streetlighting | B232: Distributed Generation Allowance | C232: $ | D232: MWh | E232: Passthrough | F232: Capacity | G232: 0 | H232: 0 | I232: 0
A233: Load group Streetlighting | B233: Wash-up Drawdown Amount | C233: $ | D233: 0 | E233: Passthrough | F233: Daily Fixed | G233: 0 | H233: 0 | I233: 0 | J233: Pro-rated across pass-through and recoverable costs
... 75 more rows

Sheet Outputs >
B2: This sheet has been deliberately left blank.

Sheet Rev - Pricing Area & Cust Group
B2: Rev - Pricing Area & Cust Group
B3: Pricing Area Name | H3: Dunedin | I3: Central Otago | J3: Queenstown
H4: 1 | I4: 2 | J4: 3
B7: Description
B9: This sheet summarises the output of the model with target revenue split into pricing area, customer load group, and distribution/passthrough.
B12: Distribution | F12: Units | H12: Dunedin | I12: Central Otago | J12: Queenstown
D14: Load group Streetlighting | E14: 472.749788 | F14: $000's | H14: 281.1152351 | I14: 136.453637 | J14: 55.18091592
D15: Load group 1 (incl residential) | E15: 111801.265 | F15: $000's | H15: 61959.27961 | I15: 33079.21569 | J15: 16762.76973
D16: Load group 2 | E16: 19929.899 | F16: $000's | H16: 8339.282105 | I16: 7006.63739 | J16: 4583.979502
D17: Load group 3 | E17: 19355.81479 | F17: $000's | H17: 7759.01056 | I17: 7870.357244 | J17: 3726.446986
D18: Load group 4 | E18: 23136.1121 | F18: $000's | H18: 8449.008958 | I18: 8809.113926 | J18: 5877.98922
D19: Load group 5 | E19: 5589.767276 | F19: $000's | H19: 3049.491271 | I19: 2169.707237 | J19: 370.5687679
D20: Total | E20: 180285.608 | H20: 89837.18774 | I20: 59071.48512 | J20: 31376.93512
B23: Passthrough | F23: Units | H23: Dunedin | I23: Central Otago | J23: Queenstown
D25: Load group Streetlighting | E25: 120.8847025 | F25: $000's | H25: 83.01757998 | I25: 16.4874958 | J25: 21.37962674
D26: Load group 1 (incl residential) | E26: 14812.97335 | F26: $000's | H26: 8938.332513 | I26: 2265.210103 | J26: 3609.430736
D27: Load group 2 | E27: 6795.452938 | F27: $000's | H27: 2801.655624 | I27: 1684.171759 | J27: 2309.625555
D28: Load group 3 | E28: 3588.525578 | F28: $000's | H28: 1931.22545 | I28: 879.9492242 | J28: 777.3509031
D29: Load group 4 | E29: 5074.090391 | F29: $000's | H29: 2438.229971 | I29: 931.4131328 | J29: 1704.447286
D30: Load group 5 | E30: 1635.707721 | F30: $000's | H30: 1134.361052 | I30: 182.8662764 | J30: 318.4803927
D31: Total | E31: 32027.63468 | H31: 17326.82219 | I31: 5960.097991 | J31: 8740.7145
B34: Total | F34: Units | H34: Dunedin | I34: Central Otago | J34: Queenstown
D36: Load group Streetlighting | E36: 593.6344905 | F36: $000's | H36: 364.1328151 | I36: 152.9411328 | J36: 76.56054266
D37: Load group 1 (incl residential) | E37: 126614.2384 | F37: $000's | H37: 70897.61212 | I37: 35344.42579 | J37: 20372.20046
D38: Load group 2 | E38: 26725.35194 | F38: $000's | H38: 11140.93773 | I38: 8690.809149 | J38: 6893.605058
D39: Load group 3 | E39: 22944.34037 | F39: $000's | H39: 9690.23601 | I39: 8750.306468 | J39: 4503.797889
D40: Load group 4 | E40: 28210.20249 | F40: $000's | H40: 10887.23893 | I40: 9740.527058 | J40: 7582.436506
D41: Load group 5 | E41: 7225.474996 | F41: $000's | H41: 4183.852322 | I41: 2352.573514 | J41: 689.0491606
D42: Total | E42: 212313.2427 | H42: 107164.0099 | I42: 65031.58312 | J42: 40117.64962
C45: Error check
C46: 0

Sheet Pricing Methodology Tables
B2: Pricing Methodology Tables
B3: Description
B5: This sheet links the model information in a format to be included in our annual Pricing Methodology document.
C10: Table 2: Components of forecast allowable revenue ($m) | G10: Table 4: Pricing area allocation percentages | W10: Table 8: Load group allocation percentages
D11: RY27 | E11: RY26 | G11: Cost Allocators | H11: Pricing Area | X11: Load Group | AD11: Total
C12: Capital related costs | H12: Dunedin | I12: Central | J12: Queenstown | K12: Total | W12: Cost Allocators | X12: SL | Y12: L1 | Z12: L2 | AA12: L3 | AB12: L4 | AC12: L5
C13: Asset revaluations and other regulatory revenue | D13: -19.30795932 | E13: -16.16727279 | G13: ICP Count | H13: 0.596302678 | I13: 0.2472245646 | J13: 0.1564727574 | K13: 1 | M13: 0 | W13: Dunedin
C14: Depreciation | D14: 30.18925835 | E14: 24.55168449 | G14: Total Circuit Length | H14: 0.3761867355 | I14: 0.4590006883 | J14: 0.1648125761 | K14: 1 | M14: 0 | W14: ICP Count | X14: 7.039457025e-05 | Y14: 0.9387796744 | Z14: 0.05595003837 | AA14: 0.003718376204 | AB14: 0.001390582055 | AC14: 9.093435581e-05 | AD14: 1 | AF14: 0
C15: Return on capital | D15: 57.04050497 | E15: 49.7962868 | G15: Overhead Circuit Length | H15: 0.4386330715 | I15: 0.4590516056 | J15: 0.1023153229 | K15: 1 | M15: 0 | W15: CPD | X15: 0.005777686203 | Y15: 0.6563574411 | Z15: 0.1353958494 | AA15: 0.08102108474 | AB15: 0.08913569353 | AC15: 0.03231224506 | AD15: 1 | AF15: 0
C16: Tax | D16: 14.6731962 | E16: 7.219466827 | G16: Prior year distribution revenue | H16: 0.5059256634 | I16: 0.3218541331 | J16: 0.1722202034 | K16: 1 | M16: 0 | W16: Prior year distribution revenue | X16: 0.008273804796 | Y16: 0.6730358141 | Z16: 0.1632262413 | AA16: 0.08205883663 | AB16: 0.05885213249 | AC16: 0.01455317074 | AD16: 1 | AF16: 0
C17: Operational costs | G17: Transmission Costs | H17: 0.5367089117 | I17: 0.2044792913 | J17: 0.258811797 | K17: 1 | M17: 0 | W17: MWh | X17: 0.005401553806 | Y17: 0.5396393438 | Z17: 0.1639579396 | AA17: 0.1061802078 | AB17: 0.1272891654 | AC17: 0.05753178957 | AD17: 1 | AF17: 0
C18: Business support | D18: 39.19861878 | E18: 15.40291722 | G18: MWh | H18: 0.5606107716 | I18: 0.2370891773 | J18: 0.2023000511 | K18: 1 | M18: 0 | W18: Regulated Asset Base | X18: 0.004491294484 | Y18: 0.5102206058 | Z18: 0.1052502005 | AA18: 0.1520779936 | AB18: 0.1673092563 | AC18: 0.06065064931 | AD18: 1 | AF18: 0
C19: Routine and corrective maintenance and inspection | D19: 12.78290093 | E19: 9.757868652 | G19: Regulated Asset Base | H19: 0.4601653107 | I19: 0.3518343839 | J19: 0.1880003055 | K19: 1 | M19: 0 | W19: Regulated Asset Base (Depreciation) | X19: 0.004963054333 | Y19: 0.563813528 | Z19: 0.1163055475 | AA19: 0.1260192153 | AB19: 0.1386405797 | AC19: 0.05025807518 | AD19: 1 | AF19: 0
C20: Service interruptions and emergencies | D20: 4.776367032 | E20: 4.857278977 | G20: Regulated Asset Base (Depreciation) | H20: 0.4917638593 | I20: 0.3207565159 | J20: 0.1874796247 | K20: 1 | M20: 0 | W20: Central Otago & Wanaka
C21: System operations and network support | D21: 1.734883965 | E21: 14.50597147 | W21: ICP Count | X21: 0.0002971340001 | Y21: 0.8949962169 | Z21: 0.09593846314 | AA21: 0.00684792112 | AB21: 0.0018636291 | AC21: 5.663571744e-05 | AD21: 1
C22: Vegetation management | D22: 3.294229102 | E22: 3.921798362 | O22: FOR RY27 | W22: CPD | X22: 0.00408818879 | Y22: 0.6514316513 | Z22: 0.1766243295 | AA22: 0.06970525214 | AB22: 0.07871472068 | AC22: 0.01943585759 | AD22: 1
C23: Passthrough and recoverable costs | O23: Table 5: Total forecast allowable revenue by pricing area | W23: Prior year distribution revenue | X23: 0.002895400437 | Y23: 0.6541275191 | Z23: 0.1609390642 | AA23: 0.08258157286 | AB23: 0.09340144814 | AC23: 0.006054995243 | AD23: 1
C24: Capex Incentive Amount | D24: -1.352855021 | E24: 0 | O24: Components ($m) | P24: Dunedin | Q24: Central | R24: Queenstown | S24: Total | W24: MWh | X24: 0.002831829363 | Y24: 0.4518686811 | Z24: 0.2589818338 | AA24: 0.1275911822 | AB24: 0.1360052425 | AC24: 0.02272123107 | AD24: 1
C25: Capex Wash-up Adjustment | D25: 0 | E25: -0.8557635366 | O25: Capital related costs | P25: 38.96129067 | Q25: 28.12154322 | R25: 15.5121663 | S25: 82.59500019 | W25: Regulated Asset Base | X25: 0.002471782335 | Y25: 0.3938656775 | Z25: 0.1067898084 | AA25: 0.2063356332 | AB25: 0.2330047053 | AC25: 0.0575323933 | AD25: 1
C26: Commerce Act levies | D26: 0.348358 | E26: 0.444392 | O26: Operational costs | P26: 32.98495609 | Q26: 19.18594439 | R26: 9.61609933 | S26: 61.78699981 | W26: Regulated Asset Base (Depreciation) | X26: 0.002671701952 | Y26: 0.4257218302 | Z26: 0.1154270485 | AA26: 0.1894369791 | AB26: 0.2139218845 | AC26: 0.05282055563 | AD26: 1
C27: Electricity Authority levies | D27: 0.418938 | E27: 0.386933 | O27: Passthrough and recoverable costs | P27: 35.21776316 | Q27: 17.72409551 | R27: 14.98938399 | S27: 67.93124266 | W27: Queenstown
C28: Fire and Emergency Management New Zealand (FENZ) levies | D28: 0.04419952 | E28: 0.07918 | O28: Total forecast allowable revenue | P28: 107.1640099 | Q28: 65.03158312 | R28: 40.11764962 | S28: 212.3132427 | W28: ICP Count | X28: 0.000201200219 | Y28: 0.8568202281 | Z28: 0.1350149017 | AA28: 0.005415133931 | AB28: 0.002414402628 | AC28: 0.0001341334793 | AD28: 1
C29: Local Authority rates | D29: 2.051955 | E29: 1.833362 | O29: % of forecast allowable revenue | P29: 0.5047448222 | Q29: 0.3063001737 | R29: 0.188955004 | S29: 1 | W29: CPD | X29: 0.003343302684 | Y29: 0.5945642183 | Z29: 0.2151332576 | AA29: 0.06945419838 | AB29: 0.1105337082 | AC29: 0.006971314843 | AD29: 1
C30: Opex Incentive Amount | D30: -6.549468 | E30: 29.26487322 | W30: Prior year distribution revenue | X30: 0.00314407029 | Y30: 0.5944608501 | Z30: 0.2196885433 | AA30: 0.1129489897 | AB30: 0.06721639331 | AC30: 0.002541153243 | AD30: 1
C31: Quality Incentive Adjustments | D31: 0.029222 | E31: -0.500026 | W31: MWh | X31: 0.002543379986 | Y31: 0.4339303538 | Z31: 0.2622592692 | AA31: 0.08989603755 | AB31: 0.1784171602 | AC31: 0.0329537992 | AD31: 1
C32: Transmission Costs | D32: 36.96168418 | E32: 30.26241222 | W32: Regulated Asset Base | X32: 0.002033424589 | Y32: 0.3616189187 | Z32: 0.1308458424 | AA32: 0.1877908082 | AB32: 0.2988619103 | AC32: 0.01884909594 | AD32: 1
C33: Wash-up Drawdown Amount | D33: 34.97460798 | E33: 0 | W33: Regulated Asset Base (Depreciation) | X33: 0.002351209979 | Y33: 0.4181330425 | Z33: 0.1512945461 | AA33: 0.1590815368 | AB33: 0.2531721996 | AC33: 0.01596746496 | AD33: 1
C34: Avoided Cost Of Transmission (ACOT) | D34: 0 | E34: 0
C35: Utilities Disputes levies | D35: 0.075601 | E35: 0.070724
C36: Opening Wash-up Account Balance | D36: 0 | E36: 28.07541285
C37: Target Revenue (before revenue limit applied) | D37: 211.3842427 | E37: 202.9074998
C38: Forecast other regulated income | D38: 0.929 | E38: 0
C39: Revenue deferred to future periods | D39: 5.884182031e-14 | E39: -24.74953775
C40: Target Revenue | D40: 212.3132427 | E40: 178.157962
D42: 0
D43: 0
C47: Error check
C48: 0

Sheet Raw data (hidden)
A1: Load group | B1: Pricing Area | C1: Componants | D1: Allocator | E1: Passthrough/Dist | F1: Tariff types | G1: Amount | K1: Componants | L1: Pricing Area Allocator | M1: Load group Allocator | N1: Tariff types | O1: Passthrough/Dist | P1: Cost Type | Q1: Amount | T1: Pricing Area | U1: Dunedin
A2: ='Load Group Allocations'!B12 -> Load group Streetlighting | B2: ='Load Group Allocations'!$G$3 -> Dunedin | C2: ='Load Group Allocations'!B25 -> Service interruptions and emergencies | D2: ='Load Group Allocations'!D25 -> CPD | E2: ='Load Group Allocations'!E25 -> Distribution | F2: ='Load Group Allocations'!F25 -> Capacity | G2: ='Load Group Allocations'!G25 -> 6.481464262 | K2: Service interruptions and emergencies | L2: Total Circuit Length | M2: CPD | N2: Distance | O2: Distribution | P2: Operational costs | Q2: ='Target Revenue'!K17 -> 2982.055361
A3: =$A$2 -> Load group Streetlighting | B3: ='Load Group Allocations'!$G$3 -> Dunedin | C3: ='Load Group Allocations'!B26 -> Service interruptions and emergencies | D3: ='Load Group Allocations'!D26 -> ICP Count | E3: ='Load Group Allocations'!E26 -> Distribution | F3: ='Load Group Allocations'!F26 -> Daily Fixed | G3: ='Load Group Allocations'!G26 -> 0.1251761597 | K3: Service interruptions and emergencies | L3: ICP Count | M3: ICP Count | N3: Daily Fixed | O3: Distribution | P3: Operational costs | Q3: ='Target Revenue'!K18 -> 2982.055361 | T3: Sum of Amount | U3: Column Labels
A4: =$A$2 -> Load group Streetlighting | B4: ='Load Group Allocations'!$G$3 -> Dunedin | C4: ='Load Group Allocations'!B27 -> Vegetation management | D4: ='Load Group Allocations'!D27 -> CPD | E4: ='Load Group Allocations'!E27 -> Distribution | F4: ='Load Group Allocations'!F27 -> Distance | G4: ='Load Group Allocations'!G27 -> 10.42454549 | K4: Vegetation management | L4: Overhead Circuit Length | M4: CPD | N4: Distance | O4: Distribution | P4: Operational costs | Q4: ='Target Revenue'!K19 -> 4113.408157 | U4: Capacity | W4: Daily Fixed | Y4: Distance | Z4: Grand Total
A5: Load group Streetlighting | B5: ='Load Group Allocations'!$G$3 -> Dunedin | C5: ='Load Group Allocations'!B28 -> Routine and corrective maintenance and inspection | D5: ='Load Group Allocations'!D28 -> CPD | E5: ='Load Group Allocations'!E28 -> Distribution | F5: ='Load Group Allocations'!F28 -> Capacity | G5: ='Load Group Allocations'!G28 -> 34.69244092 | K5: Routine and corrective maintenance and inspection | L5: Total Circuit Length | M5: CPD | N5: Distance | O5: Distribution | P5: Operational costs | Q5: ='Target Revenue'!K20 -> 15961.63695 | T5: Row Labels | U5: Distribution | V5: Passthrough | W5: Distribution | X5: Passthrough | Y5: Distribution
A6: Load group Streetlighting | B6: ='Load Group Allocations'!$G$3 -> Dunedin | C6: ='Load Group Allocations'!B29 -> System operations and network support | D6: ='Load Group Allocations'!D29 -> ICP Count | E6: ='Load Group Allocations'!E29 -> Distribution | F6: ='Load Group Allocations'!F29 -> Daily Fixed | G6: ='Load Group Allocations'!G29 -> 0.09093359481 | K6: System operations and network support | L6: ICP Count | M6: ICP Count | N6: Daily Fixed | O6: Distribution | P6: Operational costs | Q6: ='Target Revenue'!K21 -> 2166.299195 | T6: Load group 1 (incl residential) | U6: 30493.082 | V6: 11062.88264 | W6: 30281.94707 | X6: -2124.550129 | Y6: 1184.250539 | Z6: 70897.61212
A7: Load group Streetlighting | B7: ='Load Group Allocations'!$G$3 -> Dunedin | C7: ='Load Group Allocations'!B30 -> Business support | D7: ='Load Group Allocations'!D30 -> ICP Count | E7: ='Load Group Allocations'!E30 -> Distribution | F7: ='Load Group Allocations'!F30 -> Daily Fixed | G7: ='Load Group Allocations'!G30 -> 2.054587735 | K7: Business support | L7: ICP Count | M7: ICP Count | N7: Daily Fixed | O7: Distribution | P7: Operational costs | Q7: ='Target Revenue'!K22 -> 48946.17624 | T7: Load group 2 | U7: 6290.226146 | V7: 3336.220301 | W7: 1804.764362 | X7: -534.5646779 | Y7: 244.2915972 | Z7: 11140.93773
A8: Load group Streetlighting | B8: ='Load Group Allocations'!$G$3 -> Dunedin | C8: ='Load Group Allocations'!B31 -> Depreciation | D8: ='Load Group Allocations'!D31 -> Regulated Asset Base (Depreciation) | E8: ='Load Group Allocations'!E31 -> Distribution | F8: ='Load Group Allocations'!F31 -> Capacity | G8: ='Load Group Allocations'!G31 -> 92.00386827 | K8: Depreciation | L8: Regulated Asset Base (Depreciation) | M8: Regulated Asset Base (Depreciation) | N8: Capacity | O8: Distribution | P8: Capital related costs | Q8: ='Target Revenue'!K23 -> 37696.44967 | T8: Load group 3 | U8: 7492.883496 | V8: 2202.712809 | W8: 119.9425962 | X8: -271.487359 | Y8: 146.1844679 | Z8: 9690.23601
A9: Load group Streetlighting | B9: ='Load Group Allocations'!$G$3 -> Dunedin | C9: ='Load Group Allocations'!B32 -> Asset revaluations and other regulatory revenue | D9: ='Load Group Allocations'!D32 -> Regulated Asset Base | E9: ='Load Group Allocations'!E32 -> Distribution | F9: ='Load Group Allocations'!F32 -> Capacity | G9: ='Load Group Allocations'!G32 -> -49.82757927 | K9: Asset revaluations and other regulatory revenue | L9: Regulated Asset Base | M9: Regulated Asset Base | N9: Capacity | O9: Distribution | P9: Capital related costs | Q9: ='Target Revenue'!K24 -> -24109.28776 | T9: Load group 4 | U9: 8243.327882 | V9: 2633.082701 | W9: 44.85560706 | X9: -194.8527298 | Y9: 160.8254687 | Z9: 10887.23893
A10: Load group Streetlighting | B10: ='Load Group Allocations'!$G$3 -> Dunedin | C10: ='Load Group Allocations'!B33 -> Tax | D10: ='Load Group Allocations'!D33 -> Regulated Asset Base | E10: ='Load Group Allocations'!E33 -> Distribution | F10: ='Load Group Allocations'!F33 -> Capacity | G10: ='Load Group Allocations'!G33 -> 37.86675922 | K10: Tax | L10: Regulated Asset Base | M10: Regulated Asset Base | N10: Capacity | O10: Distribution | P10: Capital related costs | Q10: ='Target Revenue'!K25 -> 18321.99372 | T10: Load group 5 | U10: 2988.257791 | V10: 1182.573395 | W10: 2.93324347 | X10: -48.21234345 | Y10: 58.30023587 | Z10: 4183.852322
A11: Load group Streetlighting | B11: ='Load Group Allocations'!$G$3 -> Dunedin | C11: ='Load Group Allocations'!B34 -> Return on capital | D11: ='Load Group Allocations'!D34 -> Regulated Asset Base | E11: ='Load Group Allocations'!E34 -> Distribution | F11: ='Load Group Allocations'!F34 -> Capacity | G11: ='Load Group Allocations'!G34 -> 147.2030387 | K11: Return on capital | L11: Regulated Asset Base | M11: Regulated Asset Base | N11: Capacity | O11: Distribution | P11: Capital related costs | Q11: ='Target Revenue'!K26 -> 71224.82108 | T11: Load group Streetlighting | U11: 268.4199921 | V11: 110.4252785 | W11: 2.27069749 | X11: -27.40769856 | Y11: 10.42454549 | Z11: 364.1328151
A12: Load group Streetlighting | B12: ='Load Group Allocations'!$G$3 -> Dunedin | C12: ='Load Group Allocations'!B35 -> Local Authority rates | D12: ='Load Group Allocations'!D35 -> Regulated Asset Base | E12: ='Load Group Allocations'!E35 -> Passthrough | F12: ='Load Group Allocations'!F35 -> Capacity | G12: ='Load Group Allocations'!G35 -> 4.240853212 | K12: Local Authority rates | L12: Regulated Asset Base | M12: Regulated Asset Base | N12: Capacity | O12: Passthrough | P12: Passthrough and recoverable costs | Q12: ='Target Revenue'!K27 -> 2051.955 | T12: Grand Total | U12: 55776.19731 | V12: 20527.89713 | W12: 32256.71358 | X12: -3201.074937 | Y12: 1804.276854 | Z12: 107164.0099
A13: Load group Streetlighting | B13: ='Load Group Allocations'!$G$3 -> Dunedin | C13: ='Load Group Allocations'!B36 -> Commerce Act levies | D13: ='Load Group Allocations'!D36 -> Regulated Asset Base | E13: ='Load Group Allocations'!E36 -> Passthrough | F13: ='Load Group Allocations'!F36 -> Capacity | G13: ='Load Group Allocations'!G36 -> 0.7199646889 | K13: Commerce Act levies | L13: Regulated Asset Base | M13: Regulated Asset Base | N13: Capacity | O13: Passthrough | P13: Passthrough and recoverable costs | Q13: ='Target Revenue'!K28 -> 348.358
A14: Load group Streetlighting | B14: ='Load Group Allocations'!$G$3 -> Dunedin | C14: ='Load Group Allocations'!B37 -> Electricity Authority levies | D14: ='Load Group Allocations'!D37 -> MWh | E14: ='Load Group Allocations'!E37 -> Passthrough | F14: ='Load Group Allocations'!F37 -> Capacity | G14: ='Load Group Allocations'!G37 -> 1.014892134 | K14: Electricity Authority levies | L14: MWh | M14: MWh | N14: Capacity | O14: Passthrough | P14: Passthrough and recoverable costs | Q14: ='Target Revenue'!K29 -> 335.1504
A15: Load group Streetlighting | B15: ='Load Group Allocations'!$G$3 -> Dunedin | C15: ='Load Group Allocations'!B38 -> Electricity Authority levies | D15: ='Load Group Allocations'!D38 -> ICP Count | E15: ='Load Group Allocations'!E38 -> Passthrough | F15: ='Load Group Allocations'!F38 -> Daily Fixed | G15: ='Load Group Allocations'!G38 -> 0.003517107741 | K15: Electricity Authority levies | L15: ICP Count | M15: ICP Count | N15: Daily Fixed | O15: Passthrough | P15: Passthrough and recoverable costs | Q15: ='Target Revenue'!K30 -> 83.7876 | T15: Pricing Area | U15: Central Otago
A16: Load group Streetlighting | B16: ='Load Group Allocations'!$G$3 -> Dunedin | C16: ='Load Group Allocations'!B39 -> Utilities Disputes levies | D16: ='Load Group Allocations'!D39 -> ICP Count | E16: ='Load Group Allocations'!E39 -> Passthrough | F16: ='Load Group Allocations'!F39 -> Daily Fixed | G16: ='Load Group Allocations'!G39 -> 0.003173463165 | K16: Utilities Disputes levies | L16: ICP Count | M16: ICP Count | N16: Daily Fixed | O16: Passthrough | P16: Passthrough and recoverable costs | Q16: ='Target Revenue'!K31 -> 75.601
A17: Load group Streetlighting | B17: ='Load Group Allocations'!$G$3 -> Dunedin | C17: ='Load Group Allocations'!B40 -> Opex Incentive Amount | D17: ='Load Group Allocations'!D40 -> Prior year distribution revenue | E17: ='Load Group Allocations'!E40 -> Passthrough | F17: ='Load Group Allocations'!F40 -> Daily Fixed | G17: ='Load Group Allocations'!G40 -> -27.41561577 | K17: Opex Incentive Amount | L17: Prior year distribution revenue | M17: Prior year distribution revenue | N17: Daily Fixed | O17: Passthrough | P17: Operational costs | Q17: ='Target Revenue'!K32 -> -6549.468 | T17: Sum of Amount | U17: Column Labels
A18: Load group Streetlighting | B18: ='Load Group Allocations'!$G$3 -> Dunedin | C18: ='Load Group Allocations'!B41 -> Capex Incentive Amount | D18: ='Load Group Allocations'!D41 -> Regulated Asset Base | E18: ='Load Group Allocations'!E41 -> Passthrough | F18: ='Load Group Allocations'!F41 -> Capacity | G18: ='Load Group Allocations'!G41 -> -2.795996775 | K18: Capex Incentive Amount | L18: Regulated Asset Base | M18: Regulated Asset Base | N18: Capacity | O18: Passthrough | P18: Capital related costs | Q18: ='Target Revenue'!K33 -> -1352.855021 | U18: Capacity | W18: Daily Fixed | Y18: Distance | Z18: Grand Total
A19: Load group Streetlighting | B19: ='Load Group Allocations'!$G$3 -> Dunedin | C19: ='Load Group Allocations'!B42 -> Transpower - Connection charge | D19: ='Load Group Allocations'!D42 -> MWh | E19: ='Load Group Allocations'!E42 -> Passthrough | F19: ='Load Group Allocations'!F42 -> Capacity | G19: ='Load Group Allocations'!G42 -> 13.92483069 | K19: Transmission costs and ACOT | L19: Transpower connection charge | M19: MWh | N19: Capacity | O19: Passthrough | P19: Passthrough and recoverable costs | Q19: ='Target Revenue'!K34 -> 6938.4463 | T19: Row Labels | U19: Distribution | V19: Passthrough | W19: Distribution | X19: Passthrough | Y19: Distribution
A20: Load group Streetlighting | B20: ='Load Group Allocations'!$G$3 -> Dunedin | C20: ='Load Group Allocations'!B43 -> Transpower - Benefit-based Charge | D20: ='Load Group Allocations'!D43 -> MWh | E20: ='Load Group Allocations'!E43 -> Passthrough | F20: ='Load Group Allocations'!F43 -> Capacity | G20: ='Load Group Allocations'!G43 -> 9.440898913 | K20: Transmission costs and ACOT | L20: Transpower benefit based charge | M20: MWh | N20: Capacity | O20: Passthrough | P20: Passthrough and recoverable costs | Q20: ='Target Revenue'!K35 -> 3075.385392 | T20: Load group 1 (incl residential) | U20: 19879.90998 | V20: 3602.360544 | W20: 11969.22907 | X20: -1337.150441 | Y20: 1230.076642 | Z20: 35344.42579
A21: Load group Streetlighting | B21: ='Load Group Allocations'!$G$3 -> Dunedin | C21: ='Load Group Allocations'!B44 -> Transpower - Residual Charge | D21: ='Load Group Allocations'!D44 -> MWh | E21: ='Load Group Allocations'!E44 -> Passthrough | F21: ='Load Group Allocations'!F44 -> Capacity | G21: ='Load Group Allocations'!G44 -> 78.78733768 | K21: Transmission costs and ACOT | L21: Transpower residual charge | M21: MWh | N21: Capacity | O21: Passthrough | P21: Passthrough and recoverable costs | Q21: ='Target Revenue'!K36 -> 24465.02968 | T21: Load group 2 | U21: 5390.090832 | V21: 2018.953486 | W21: 1283.032732 | X21: -334.7817264 | Y21: 333.5138255 | Z21: 8690.809149
A22: Load group Streetlighting | B22: ='Load Group Allocations'!$G$3 -> Dunedin | C22: ='Load Group Allocations'!B45 -> Transpower - Transitional Price Cap | D22: ='Load Group Allocations'!D45 -> MWh | E22: ='Load Group Allocations'!E45 -> Passthrough | F22: ='Load Group Allocations'!F45 -> Capacity | G22: ='Load Group Allocations'!G45 -> 0.0491230054 | K22: Transmission costs and ACOT | L22: Transpower transitional price cap | M22: MWh | N22: Capacity | O22: Passthrough | P22: Passthrough and recoverable costs | Q22: ='Target Revenue'!K37 -> 15.33373 | T22: Load group 3 | U22: 7647.154492 | V22: 1053.709666 | W22: 91.58065136 | X22: -173.7604415 | Y22: 131.6221008 | Z22: 8750.306468
A23: Load group Streetlighting | B23: ='Load Group Allocations'!$G$3 -> Dunedin | C23: ='Load Group Allocations'!B46 -> Transpower - Interconnection costs | D23: ='Load Group Allocations'!D46 -> MWh | E23: ='Load Group Allocations'!E46 -> Passthrough | F23: ='Load Group Allocations'!F46 -> Capacity | G23: ='Load Group Allocations'!G46 -> 0 | K23: Transmission costs and ACOT | L23: Transpower connection charge | M23: CPD | N23: CPD | O23: Passthrough | P23: Passthrough and recoverable costs | Q23: ='Target Revenue'!K38 -> 0 | T23: Load group 4 | U23: 8635.556308 | V23: 1128.213996 | W23: 24.92323786 | X23: -196.8008636 | Y23: 148.6343795 | Z23: 9740.527058
A24: Load group Streetlighting | B24: ='Load Group Allocations'!$G$3 -> Dunedin | C24: ='Load Group Allocations'!B47 -> Transpower - New investment contract | D24: ='Load Group Allocations'!D47 -> MWh | E24: ='Load Group Allocations'!E47 -> Passthrough | F24: ='Load Group Allocations'!F47 -> Capacity | G24: ='Load Group Allocations'!G47 -> 4.952026172 | K24: Transmission costs and ACOT | L24: Transpower new investment contract | M24: CPD | N24: CPD | O24: Passthrough | P24: Passthrough and recoverable costs | Q24: ='Target Revenue'!K39 -> 2467.48908 | T24: Load group 5 | U24: 2132.249738 | V24: 195.6274041 | W24: 0.7574175874 | X24: -12.7611277 | Y24: 36.70008109 | Z24: 2352.573514
A25: Load group Streetlighting | B25: ='Load Group Allocations'!$G$3 -> Dunedin | C25: ='Load Group Allocations'!B48 -> Distributed Generation Allowance | D25: ='Load Group Allocations'!D48 -> MWh | E25: ='Load Group Allocations'!E48 -> Passthrough | F25: ='Load Group Allocations'!F48 -> Capacity | G25: ='Load Group Allocations'!G48 -> 0 | K25: Transmission costs and ACOT | L25: Distributed Generation Allowance | M25: CPD | N25: CPD | O25: Passthrough | P25: Passthrough and recoverable costs | Q25: ='Target Revenue'!K40 -> 0 | T25: Load group Streetlighting | U25: 124.7603259 | V25: 22.57706764 | W25: 3.973720607 | X25: -6.089571834 | Y25: 7.719590425 | Z25: 152.9411328
A26: Load group Streetlighting | B26: ='Load Group Allocations'!$G$3 -> Dunedin | C26: ='Load Group Allocations'!B49 -> Wash-up Drawdown Amount | D26: ='Load Group Allocations'!D49 -> 0 | E26: ='Load Group Allocations'!E49 -> Passthrough | F26: ='Load Group Allocations'!F49 -> Daily Fixed | G26: ='Load Group Allocations'!G49 -> 0 | K26: Wash-up Drawdown Amount | L26: ICP Count | M26: ICP Count | N26: Daily Fixed | O26: Passthrough | P26: Operational costs | Q26: ='Target Revenue'!K41 -> 0 | T26: Grand Total | U26: 43809.72168 | V26: 8021.442163 | W26: 13373.49683 | X26: -2061.344172 | Y26: 1888.266619 | Z26: 65031.58312
A27: Load group Streetlighting | B27: ='Load Group Allocations'!$G$3 -> Dunedin | C27: ='Load Group Allocations'!B50 -> Quality Incentive Adjustments | D27: ='Load Group Allocations'!D50 -> ICP Count | E27: ='Load Group Allocations'!E50 -> Passthrough | F27: ='Load Group Allocations'!F50 -> Daily Fixed | G27: ='Load Group Allocations'!G50 -> 0.001226636428 | K27: Quality Incentive Adjustments | L27: ICP Count | M27: ICP Count | N27: Daily Fixed | O27: Passthrough | P27: Operational costs | Q27: ='Target Revenue'!K42 -> 29.222
A28: Load group Streetlighting | B28: ='Load Group Allocations'!$G$3 -> Dunedin | C28: ='Load Group Allocations'!B51 -> Capex Wash-up Adjustment | D28: ='Load Group Allocations'!D51 -> Regulated Asset Base | E28: ='Load Group Allocations'!E51 -> Passthrough | F28: ='Load Group Allocations'!F51 -> Capacity | G28: ='Load Group Allocations'!G51 -> 0 | K28: Capex Wash-up Adjustment | L28: Regulated Asset Base | M28: Regulated Asset Base | N28: Capacity | O28: Passthrough | P28: Capital related costs | Q28: ='Target Revenue'!K43 -> 0
A29: Load group Streetlighting | B29: ='Load Group Allocations'!$G$3 -> Dunedin | C29: ='Load Group Allocations'!B52 -> Fire and Emergency Management New Zealand (FENZ) levies | D29: ='Load Group Allocations'!D52 -> Regulated Asset Base | E29: ='Load Group Allocations'!E52 -> Passthrough | F29: ='Load Group Allocations'!F52 -> Capacity | G29: ='Load Group Allocations'!G52 -> 0.0913488241 | K29: Fire and Emergency Management New Zealand (FENZ) levies | L29: Regulated Asset Base | M29: Regulated Asset Base | N29: Capacity | O29: Passthrough | P29: Passthrough and recoverable costs | Q29: ='Target Revenue'!K44 -> 44.19952 | T29: Pricing Area | U29: Queenstown
A30: Load group Streetlighting | B30: ='Load Group Allocations'!$H$3 -> Central Otago | C30: ='Load Group Allocations'!B25 -> Service interruptions and emergencies | D30: ='Load Group Allocations'!D25 -> CPD | E30: ='Load Group Allocations'!E25 -> Distribution | F30: ='Load Group Allocations'!F25 -> Capacity | G30: ='Load Group Allocations'!H25 -> 5.595771624
A31: Load group Streetlighting | B31: ='Load Group Allocations'!$H$3 -> Central Otago | C31: ='Load Group Allocations'!B26 -> Service interruptions and emergencies | D31: ='Load Group Allocations'!D26 -> ICP Count | E31: ='Load Group Allocations'!E26 -> Distribution | F31: ='Load Group Allocations'!F26 -> Daily Fixed | G31: ='Load Group Allocations'!H26 -> 0.2190582794 | Q31: =SUM(Q2:Q29) -> 212313.2427 | T31: Sum of Amount | U31: Column Labels
A32: Load group Streetlighting | B32: ='Load Group Allocations'!$H$3 -> Central Otago | C32: ='Load Group Allocations'!B27 -> Vegetation management | D32: ='Load Group Allocations'!D27 -> CPD | E32: ='Load Group Allocations'!E27 -> Distribution | F32: ='Load Group Allocations'!F27 -> Distance | G32: ='Load Group Allocations'!H27 -> 7.719590425 | U32: Capacity | W32: Daily Fixed | Y32: Distance | Z32: Grand Total
A33: Load group Streetlighting | B33: ='Load Group Allocations'!$H$3 -> Central Otago | C33: ='Load Group Allocations'!B28 -> Routine and corrective maintenance and inspection | D33: ='Load Group Allocations'!D28 -> CPD | E33: ='Load Group Allocations'!E28 -> Distribution | F33: ='Load Group Allocations'!F28 -> Capacity | G33: ='Load Group Allocations'!H28 -> 29.95171595 | K33: Sum of Amount | L33: Column Labels | T33: Row Labels | U33: Distribution | V33: Passthrough | W33: Distribution | X33: Passthrough | Y33: Distribution
A34: Load group Streetlighting | B34: ='Load Group Allocations'!$H$3 -> Central Otago | C34: ='Load Group Allocations'!B29 -> System operations and network support | D34: ='Load Group Allocations'!D29 -> ICP Count | E34: ='Load Group Allocations'!E29 -> Distribution | F34: ='Load Group Allocations'!F29 -> Daily Fixed | G34: ='Load Group Allocations'!H29 -> 0.1591337909 | K34: Row Labels | L34: Central Otago | M34: Dunedin | N34: Queenstown | O34: Grand Total | T34: Load group 1 (incl residential) | U34: 9260.137715 | V34: 4254.666435 | W34: 7252.400931 | X34: -645.2356997 | Y34: 250.2310818 | Z34: 20372.20046
A35: Load group Streetlighting | B35: ='Load Group Allocations'!$H$3 -> Central Otago | C35: ='Load Group Allocations'!B30 -> Business support | D35: ='Load Group Allocations'!D30 -> ICP Count | E35: ='Load Group Allocations'!E30 -> Distribution | F35: ='Load Group Allocations'!F30 -> Daily Fixed | G35: ='Load Group Allocations'!H30 -> 3.595528537 | K35: Distribution | L35: 59071.48512 | M35: 89837.18774 | N35: 31376.93512 | O35: 180285.608 | Q35: =(O35*1000)-[3]PxQ!$J$196 -> 35958248.51 | T35: Load group 2 | U35: 3350.628126 | V35: 2553.438787 | W35: 1142.809386 | X35: -243.8132321 | Y35: 90.54199047 | Z35: 6893.605058
A36: Load group Streetlighting | B36: ='Load Group Allocations'!$H$3 -> Central Otago | C36: ='Load Group Allocations'!B31 -> Depreciation | D36: ='Load Group Allocations'!D31 -> Regulated Asset Base (Depreciation) | E36: ='Load Group Allocations'!E31 -> Distribution | F36: ='Load Group Allocations'!F31 -> Capacity | G36: ='Load Group Allocations'!H31 -> 32.30456852 | K36: Load group 1 (incl residential) | L36: 33079.21569 | M36: 61959.27961 | N36: 16762.76973 | O36: 111801.265 | T36: Load group 3 | U36: 3651.380738 | V36: 904.5919827 | W36: 45.83542858 | X36: -127.2410796 | Y36: 29.23081925 | Z36: 4503.797889
A37: Load group Streetlighting | B37: ='Load Group Allocations'!$H$3 -> Central Otago | C37: ='Load Group Allocations'!B32 -> Asset revaluations and other regulatory revenue | D37: ='Load Group Allocations'!D32 -> Regulated Asset Base | E37: ='Load Group Allocations'!E32 -> Distribution | F37: ='Load Group Allocations'!F32 -> Capacity | G37: ='Load Group Allocations'!H32 -> -20.96683533 | K37: Load group 2 | L37: 7006.63739 | M37: 8339.282105 | N37: 4583.979502 | O37: 19929.899 | T37: Load group 4 | U37: 5811.033208 | V37: 1780.19281 | W37: 20.43627741 | X37: -75.74552377 | Y37: 46.51973419 | Z37: 7582.436506
A38: Load group Streetlighting | B38: ='Load Group Allocations'!$H$3 -> Central Otago | C38: ='Load Group Allocations'!B33 -> Tax | D38: ='Load Group Allocations'!D33 -> Regulated Asset Base | E38: ='Load Group Allocations'!E33 -> Distribution | F38: ='Load Group Allocations'!F33 -> Capacity | G38: ='Load Group Allocations'!H33 -> 15.93386868 | K38: Load group 3 | L38: 7870.357244 | M38: 7759.01056 | N38: 3726.446986 | O38: 19355.81479 | T38: Load group 5 | U38: 366.4994389 | V38: 321.3427297 | W38: 1.135348745 | X38: -2.862337004 | Y38: 2.933980218 | Z38: 689.0491606
A39: Load group Streetlighting | B39: ='Load Group Allocations'!$H$3 -> Central Otago | C39: ='Load Group Allocations'!B34 -> Return on capital | D39: ='Load Group Allocations'!D34 -> Regulated Asset Base | E39: ='Load Group Allocations'!E34 -> Distribution | F39: ='Load Group Allocations'!F34 -> Capacity | G39: ='Load Group Allocations'!H34 -> 61.9412365 | K39: Load group 4 | L39: 8809.113926 | M39: 8449.008958 | N39: 5877.98922 | O39: 23136.1121 | T39: Load group Streetlighting | U39: 52.07081477 | V39: 24.92004515 | W39: 1.703023117 | X39: -3.540418414 | Y39: 1.407078028 | Z39: 76.56054266
A40: Load group Streetlighting | B40: ='Load Group Allocations'!$H$3 -> Central Otago | C40: ='Load Group Allocations'!B35 -> Local Authority rates | D40: ='Load Group Allocations'!D35 -> Regulated Asset Base | E40: ='Load Group Allocations'!E35 -> Passthrough | F40: ='Load Group Allocations'!F35 -> Capacity | G40: ='Load Group Allocations'!H35 -> 1.784499112 | K40: Load group 5 | L40: 2169.707237 | M40: 3049.491271 | N40: 370.5687679 | O40: 5589.767276 | T40: Grand Total | U40: 22491.75004 | V40: 9839.15279 | W40: 8464.320395 | X40: -1098.438291 | Y40: 420.864684 | Z40: 40117.64962
A41: Load group Streetlighting | B41: ='Load Group Allocations'!$H$3 -> Central Otago | C41: ='Load Group Allocations'!B36 -> Commerce Act levies | D41: ='Load Group Allocations'!D36 -> Regulated Asset Base | E41: ='Load Group Allocations'!E36 -> Passthrough | F41: ='Load Group Allocations'!F36 -> Capacity | G41: ='Load Group Allocations'!H36 -> 0.3029523267 | K41: Load group Streetlighting | L41: 136.453637 | M41: 281.1152351 | N41: 55.18091592 | O41: 472.749788
A42: Load group Streetlighting | B42: ='Load Group Allocations'!$H$3 -> Central Otago | C42: ='Load Group Allocations'!B37 -> Electricity Authority levies | D42: ='Load Group Allocations'!D37 -> MWh | E42: ='Load Group Allocations'!E37 -> Passthrough | F42: ='Load Group Allocations'!F37 -> Capacity | G42: ='Load Group Allocations'!H37 -> 0.2250186694 | K42: Passthrough | L42: 5960.097991 | M42: 17326.82219 | N42: 8740.7145 | O42: 32027.63468
A43: Load group Streetlighting | B43: ='Load Group Allocations'!$H$3 -> Central Otago | C43: ='Load Group Allocations'!B38 -> Electricity Authority levies | D43: ='Load Group Allocations'!D38 -> ICP Count | E43: ='Load Group Allocations'!E38 -> Passthrough | F43: ='Load Group Allocations'!F38 -> Daily Fixed | G43: ='Load Group Allocations'!H38 -> 0.006154938546 | K43: Load group 1 (incl residential) | L43: 2265.210103 | M43: 8938.332513 | N43: 3609.430736 | O43: 14812.97335
A44: Load group Streetlighting | B44: ='Load Group Allocations'!$H$3 -> Central Otago | C44: ='Load Group Allocations'!B39 -> Utilities Disputes levies | D44: ='Load Group Allocations'!D39 -> ICP Count | E44: ='Load Group Allocations'!E39 -> Passthrough | F44: ='Load Group Allocations'!F39 -> Daily Fixed | G44: ='Load Group Allocations'!H39 -> 0.005553560539 | K44: Load group 2 | L44: 1684.171759 | M44: 2801.655624 | N44: 2309.625555 | O44: 6795.452938
A45: Load group Streetlighting | B45: ='Load Group Allocations'!$H$3 -> Central Otago | C45: ='Load Group Allocations'!B40 -> Opex Incentive Amount | D45: ='Load Group Allocations'!D40 -> Prior year distribution revenue | E45: ='Load Group Allocations'!E40 -> Passthrough | F45: ='Load Group Allocations'!F40 -> Daily Fixed | G45: ='Load Group Allocations'!H40 -> -6.103426946 | K45: Load group 3 | L45: 879.9492242 | M45: 1931.22545 | N45: 777.3509031 | O45: 3588.525578
A46: Load group Streetlighting | B46: ='Load Group Allocations'!$H$3 -> Central Otago | C46: ='Load Group Allocations'!B41 -> Capex Incentive Amount | D46: ='Load Group Allocations'!D41 -> Regulated Asset Base | E46: ='Load Group Allocations'!E41 -> Passthrough | F46: ='Load Group Allocations'!F41 -> Capacity | G46: ='Load Group Allocations'!H41 -> -1.176521212 | K46: Load group 4 | L46: 931.4131328 | M46: 2438.229971 | N46: 1704.447286 | O46: 5074.090391
A47: Load group Streetlighting | B47: ='Load Group Allocations'!$H$3 -> Central Otago | C47: ='Load Group Allocations'!B42 -> Transpower - Connection charge | D47: ='Load Group Allocations'!D42 -> MWh | E47: ='Load Group Allocations'!E42 -> Passthrough | F47: ='Load Group Allocations'!F42 -> Capacity | G47: ='Load Group Allocations'!H42 -> 3.542459796 | K47: Load group 5 | L47: 182.8662764 | M47: 1134.361052 | N47: 318.4803927 | O47: 1635.707721
A48: Load group Streetlighting | B48: ='Load Group Allocations'!$H$3 -> Central Otago | C48: ='Load Group Allocations'!B43 -> Transpower - Benefit-based Charge | D48: ='Load Group Allocations'!D43 -> MWh | E48: ='Load Group Allocations'!E43 -> Passthrough | F48: ='Load Group Allocations'!F43 -> Capacity | G48: ='Load Group Allocations'!H43 -> 1.390988409 | K48: Load group Streetlighting | L48: 16.4874958 | M48: 83.01757998 | N48: 21.37962674 | O48: 120.8847025
A49: Load group Streetlighting | B49: ='Load Group Allocations'!$H$3 -> Central Otago | C49: ='Load Group Allocations'!B44 -> Transpower - Residual Charge | D49: ='Load Group Allocations'!D44 -> MWh | E49: ='Load Group Allocations'!E44 -> Passthrough | F49: ='Load Group Allocations'!F44 -> Capacity | G49: ='Load Group Allocations'!H44 -> 15.20020519 | K49: Grand Total | L49: 65031.58312 | M49: 107164.0099 | N49: 40117.64962 | O49: 212313.2427
A50: Load group Streetlighting | B50: ='Load Group Allocations'!$H$3 -> Central Otago | C50: ='Load Group Allocations'!B45 -> Transpower - Transitional Price Cap | D50: ='Load Group Allocations'!D45 -> MWh | E50: ='Load Group Allocations'!E45 -> Passthrough | F50: ='Load Group Allocations'!F45 -> Capacity | G50: ='Load Group Allocations'!H45 -> 0.009237510851
A51: Load group Streetlighting | B51: ='Load Group Allocations'!$H$3 -> Central Otago | C51: ='Load Group Allocations'!B46 -> Transpower - Interconnection costs | D51: ='Load Group Allocations'!D46 -> MWh | E51: ='Load Group Allocations'!E46 -> Passthrough | F51: ='Load Group Allocations'!F46 -> Capacity | G51: ='Load Group Allocations'!H46 -> 0
A52: Load group Streetlighting | B52: ='Load Group Allocations'!$H$3 -> Central Otago | C52: ='Load Group Allocations'!B47 -> Transpower - New investment contract | D52: ='Load Group Allocations'!D47 -> MWh | E52: ='Load Group Allocations'!E47 -> Passthrough | F52: ='Load Group Allocations'!F47 -> Capacity | G52: ='Load Group Allocations'!H47 -> 1.259789366
A53: Load group Streetlighting | B53: ='Load Group Allocations'!$H$3 -> Central Otago | C53: ='Load Group Allocations'!B48 -> Distributed Generation Allowance | D53: ='Load Group Allocations'!D48 -> MWh | E53: ='Load Group Allocations'!E48 -> Passthrough | F53: ='Load Group Allocations'!F48 -> Capacity | G53: ='Load Group Allocations'!H48 -> 0
A54: Load group Streetlighting | B54: ='Load Group Allocations'!$H$3 -> Central Otago | C54: ='Load Group Allocations'!B49 -> Wash-up Drawdown Amount | D54: ='Load Group Allocations'!D49 -> 0 | E54: ='Load Group Allocations'!E49 -> Passthrough | F54: ='Load Group Allocations'!F49 -> Daily Fixed | G54: ='Load Group Allocations'!H49 -> 0
A55: Load group Streetlighting | B55: ='Load Group Allocations'!$H$3 -> Central Otago | C55: ='Load Group Allocations'!B50 -> Quality Incentive Adjustments | D55: ='Load Group Allocations'!D50 -> ICP Count | E55: ='Load Group Allocations'!E50 -> Passthrough | F55: ='Load Group Allocations'!F50 -> Daily Fixed | G55: ='Load Group Allocations'!H50 -> 0.002146613749
A56: Load group Streetlighting | B56: ='Load Group Allocations'!$H$3 -> Central Otago | C56: ='Load Group Allocations'!B51 -> Capex Wash-up Adjustment | D56: ='Load Group Allocations'!D51 -> Regulated Asset Base | E56: ='Load Group Allocations'!E51 -> Passthrough | F56: ='Load Group Allocations'!F51 -> Capacity | G56: ='Load Group Allocations'!H51 -> 0
A57: Load group Streetlighting | B57: ='Load Group Allocations'!$H$3 -> Central Otago | C57: ='Load Group Allocations'!B52 -> Fire and Emergency Management New Zealand (FENZ) levies | D57: ='Load Group Allocations'!D52 -> Regulated Asset Base | E57: ='Load Group Allocations'!E52 -> Passthrough | F57: ='Load Group Allocations'!F52 -> Capacity | G57: ='Load Group Allocations'!H52 -> 0.03843846682
A58: Load group Streetlighting | B58: ='Load Group Allocations'!$I$3 -> Queenstown | C58: ='Load Group Allocations'!B25 -> Service interruptions and emergencies | D58: ='Load Group Allocations'!D25 -> CPD | E58: ='Load Group Allocations'!E25 -> Distribution | F58: ='Load Group Allocations'!F25 -> Capacity | G58: ='Load Group Allocations'!I25 -> 1.64316716
A59: Load group Streetlighting | B59: ='Load Group Allocations'!$I$3 -> Queenstown | C59: ='Load Group Allocations'!B26 -> Service interruptions and emergencies | D59: ='Load Group Allocations'!D26 -> ICP Count | E59: ='Load Group Allocations'!E26 -> Distribution | F59: ='Load Group Allocations'!F26 -> Daily Fixed | G59: ='Load Group Allocations'!I26 -> 0.09388211974
A60: Load group Streetlighting | B60: ='Load Group Allocations'!$I$3 -> Queenstown | C60: ='Load Group Allocations'!B27 -> Vegetation management | D60: ='Load Group Allocations'!D27 -> CPD | E60: ='Load Group Allocations'!E27 -> Distribution | F60: ='Load Group Allocations'!F27 -> Distance | G60: ='Load Group Allocations'!I27 -> 1.407078028
A61: Load group Streetlighting | B61: ='Load Group Allocations'!$I$3 -> Queenstown | C61: ='Load Group Allocations'!B28 -> Routine and corrective maintenance and inspection | D61: ='Load Group Allocations'!D28 -> CPD | E61: ='Load Group Allocations'!E28 -> Distribution | F61: ='Load Group Allocations'!F28 -> Capacity | G61: ='Load Group Allocations'!I28 -> 8.795154508
A62: Load group Streetlighting | B62: ='Load Group Allocations'!$I$3 -> Queenstown | C62: ='Load Group Allocations'!B29 -> System operations and network support | D62: ='Load Group Allocations'!D29 -> ICP Count | E62: ='Load Group Allocations'!E29 -> Distribution | F62: ='Load Group Allocations'!F29 -> Daily Fixed | G62: ='Load Group Allocations'!I29 -> 0.06820019611
A63: Load group Streetlighting | B63: ='Load Group Allocations'!$I$3 -> Queenstown | C63: ='Load Group Allocations'!B30 -> Business support | D63: ='Load Group Allocations'!D30 -> ICP Count | E63: ='Load Group Allocations'!E30 -> Distribution | F63: ='Load Group Allocations'!F30 -> Daily Fixed | G63: ='Load Group Allocations'!I30 -> 1.540940802
A64: Load group Streetlighting | B64: ='Load Group Allocations'!$I$3 -> Queenstown | C64: ='Load Group Allocations'!B31 -> Depreciation | D64: ='Load Group Allocations'!D31 -> Regulated Asset Base (Depreciation) | E64: ='Load Group Allocations'!E31 -> Distribution | F64: ='Load Group Allocations'!F31 -> Capacity | G64: ='Load Group Allocations'!I31 -> 16.61674447
A65: Load group Streetlighting | B65: ='Load Group Allocations'!$I$3 -> Queenstown | C65: ='Load Group Allocations'!B32 -> Asset revaluations and other regulatory revenue | D65: ='Load Group Allocations'!D32 -> Regulated Asset Base | E65: ='Load Group Allocations'!E32 -> Distribution | F65: ='Load Group Allocations'!F32 -> Capacity | G65: ='Load Group Allocations'!I32 -> -9.216605664
A66: Load group Streetlighting | B66: ='Load Group Allocations'!$I$3 -> Queenstown | C66: ='Load Group Allocations'!B33 -> Tax | D66: ='Load Group Allocations'!D33 -> Regulated Asset Base | E66: ='Load Group Allocations'!E33 -> Distribution | F66: ='Load Group Allocations'!F33 -> Capacity | G66: ='Load Group Allocations'!I33 -> 7.004213181
A67: Load group Streetlighting | B67: ='Load Group Allocations'!$I$3 -> Queenstown | C67: ='Load Group Allocations'!B34 -> Return on capital | D67: ='Load Group Allocations'!D34 -> Regulated Asset Base | E67: ='Load Group Allocations'!E34 -> Distribution | F67: ='Load Group Allocations'!F34 -> Capacity | G67: ='Load Group Allocations'!I34 -> 27.22814112
A68: =$A$2 -> Load group Streetlighting | B68: ='Load Group Allocations'!$I$3 -> Queenstown | C68: ='Load Group Allocations'!B35 -> Local Authority rates | D68: ='Load Group Allocations'!D35 -> Regulated Asset Base | E68: ='Load Group Allocations'!E35 -> Passthrough | F68: ='Load Group Allocations'!F35 -> Capacity | G68: ='Load Group Allocations'!I35 -> 0.7844304761
A69: Load group Streetlighting | B69: ='Load Group Allocations'!$I$3 -> Queenstown | C69: ='Load Group Allocations'!B36 -> Commerce Act levies | D69: ='Load Group Allocations'!D36 -> Regulated Asset Base | E69: ='Load Group Allocations'!E36 -> Passthrough | F69: ='Load Group Allocations'!F36 -> Capacity | G69: ='Load Group Allocations'!I36 -> 0.1331718443
A70: Load group Streetlighting | B70: ='Load Group Allocations'!$I$3 -> Queenstown | C70: ='Load Group Allocations'!B37 -> Electricity Authority levies | D70: ='Load Group Allocations'!D37 -> MWh | E70: ='Load Group Allocations'!E37 -> Passthrough | F70: ='Load Group Allocations'!F37 -> Capacity | G70: ='Load Group Allocations'!I37 -> 0.1724435616
A71: Load group Streetlighting | B71: ='Load Group Allocations'!$I$3 -> Queenstown | C71: ='Load Group Allocations'!B38 -> Electricity Authority levies | D71: ='Load Group Allocations'!D38 -> ICP Count | E71: ='Load Group Allocations'!E38 -> Passthrough | F71: ='Load Group Allocations'!F38 -> Daily Fixed | G71: ='Load Group Allocations'!I38 -> 0.002637830805
A72: Load group Streetlighting | B72: ='Load Group Allocations'!$I$3 -> Queenstown | C72: ='Load Group Allocations'!B39 -> Utilities Disputes levies | D72: ='Load Group Allocations'!D39 -> ICP Count | E72: ='Load Group Allocations'!E39 -> Passthrough | F72: ='Load Group Allocations'!F39 -> Daily Fixed | G72: ='Load Group Allocations'!I39 -> 0.002380097374
A73: Load group Streetlighting | B73: ='Load Group Allocations'!$I$3 -> Queenstown | C73: ='Load Group Allocations'!B40 -> Opex Incentive Amount | D73: ='Load Group Allocations'!D40 -> Prior year distribution revenue | E73: ='Load Group Allocations'!E40 -> Passthrough | F73: ='Load Group Allocations'!F40 -> Daily Fixed | G73: ='Load Group Allocations'!I40 -> -3.54635632
A74: Load group Streetlighting | B74: ='Load Group Allocations'!$I$3 -> Queenstown | C74: ='Load Group Allocations'!B41 -> Capex Incentive Amount | D74: ='Load Group Allocations'!D41 -> Regulated Asset Base | E74: ='Load Group Allocations'!E41 -> Passthrough | F74: ='Load Group Allocations'!F41 -> Capacity | G74: ='Load Group Allocations'!I41 -> -0.5171754296
A75: Load group Streetlighting | B75: ='Load Group Allocations'!$I$3 -> Queenstown | C75: ='Load Group Allocations'!B42 -> Transpower - Connection charge | D75: ='Load Group Allocations'!D42 -> MWh | E75: ='Load Group Allocations'!E42 -> Passthrough | F75: ='Load Group Allocations'!F42 -> Capacity | G75: ='Load Group Allocations'!I42 -> 7.908822639
A76: Load group Streetlighting | B76: ='Load Group Allocations'!$I$3 -> Queenstown | C76: ='Load Group Allocations'!B43 -> Transpower - Benefit-based Charge | D76: ='Load Group Allocations'!D43 -> MWh | E76: ='Load Group Allocations'!E43 -> Passthrough | F76: ='Load Group Allocations'!F43 -> Capacity | G76: ='Load Group Allocations'!I43 -> 2.127221668
A77: Load group Streetlighting | B77: ='Load Group Allocations'!$I$3 -> Queenstown | C77: ='Load Group Allocations'!B44 -> Transpower - Residual Charge | D77: ='Load Group Allocations'!D44 -> MWh | E77: ='Load Group Allocations'!E44 -> Passthrough | F77: ='Load Group Allocations'!F44 -> Capacity | G77: ='Load Group Allocations'!I44 -> 11.47408104
A78: Load group Streetlighting | B78: ='Load Group Allocations'!$I$3 -> Queenstown | C78: ='Load Group Allocations'!B45 -> Transpower - Transitional Price Cap | D78: ='Load Group Allocations'!D45 -> MWh | E78: ='Load Group Allocations'!E45 -> Passthrough | F78: ='Load Group Allocations'!F45 -> Capacity | G78: ='Load Group Allocations'!I45 -> 0.007572823533
A79: Load group Streetlighting | B79: ='Load Group Allocations'!$I$3 -> Queenstown | C79: ='Load Group Allocations'!B46 -> Transpower - Interconnection costs | D79: ='Load Group Allocations'!D46 -> MWh | E79: ='Load Group Allocations'!E46 -> Passthrough | F79: ='Load Group Allocations'!F46 -> Capacity | G79: ='Load Group Allocations'!I46 -> 0
A80: Load group Streetlighting | B80: ='Load Group Allocations'!$I$3 -> Queenstown | C80: ='Load Group Allocations'!B47 -> Transpower - New investment contract | D80: ='Load Group Allocations'!D47 -> MWh | E80: ='Load Group Allocations'!E47 -> Passthrough | F80: ='Load Group Allocations'!F47 -> Capacity | G80: ='Load Group Allocations'!I47 -> 2.812579741
A81: Load group Streetlighting | B81: ='Load Group Allocations'!$I$3 -> Queenstown | C81: ='Load Group Allocations'!B48 -> Distributed Generation Allowance | D81: ='Load Group Allocations'!D48 -> MWh | E81: ='Load Group Allocations'!E48 -> Passthrough | F81: ='Load Group Allocations'!F48 -> Capacity | G81: ='Load Group Allocations'!I48 -> 0
A82: Load group Streetlighting | B82: ='Load Group Allocations'!$I$3 -> Queenstown | C82: ='Load Group Allocations'!B49 -> Wash-up Drawdown Amount | D82: ='Load Group Allocations'!D49 -> 0 | E82: ='Load Group Allocations'!E49 -> Passthrough | F82: ='Load Group Allocations'!F49 -> Daily Fixed | G82: ='Load Group Allocations'!I49 -> 0
A83: Load group Streetlighting | B83: ='Load Group Allocations'!$I$3 -> Queenstown | C83: ='Load Group Allocations'!B50 -> Quality Incentive Adjustments | D83: ='Load Group Allocations'!D50 -> ICP Count | E83: ='Load Group Allocations'!E50 -> Passthrough | F83: ='Load Group Allocations'!F50 -> Daily Fixed | G83: ='Load Group Allocations'!I50 -> 0.0009199773212
A84: Load group Streetlighting | B84: ='Load Group Allocations'!$I$3 -> Queenstown | C84: ='Load Group Allocations'!B51 -> Capex Wash-up Adjustment | D84: ='Load Group Allocations'!D51 -> Regulated Asset Base | E84: ='Load Group Allocations'!E51 -> Passthrough | F84: ='Load Group Allocations'!F51 -> Capacity | G84: ='Load Group Allocations'!I51 -> 0
A85: Load group Streetlighting | B85: ='Load Group Allocations'!$I$3 -> Queenstown | C85: ='Load Group Allocations'!B52 -> Fire and Emergency Management New Zealand (FENZ) levies | D85: ='Load Group Allocations'!D52 -> Regulated Asset Base | E85: ='Load Group Allocations'!E52 -> Passthrough | F85: ='Load Group Allocations'!F52 -> Capacity | G85: ='Load Group Allocations'!I52 -> 0.01689678893
A86: ='Load Group Allocations'!B58 -> Load group 1 (incl residential) | B86: ='Load Group Allocations'!$G$3 -> Dunedin | C86: ='Load Group Allocations'!B25 -> Service interruptions and emergencies | D86: ='Load Group Allocations'!D25 -> CPD | E86: ='Load Group Allocations'!E25 -> Distribution | F86: ='Load Group Allocations'!F25 -> Capacity | G86: ='Load Group Allocations'!G71 -> 736.3081254
A87: =$A$86 -> Load group 1 (incl residential) | B87: ='Load Group Allocations'!$G$3 -> Dunedin | C87: ='Load Group Allocations'!B26 -> Service interruptions and emergencies | D87: ='Load Group Allocations'!D26 -> ICP Count | E87: ='Load Group Allocations'!E26 -> Distribution | F87: ='Load Group Allocations'!F26 -> Daily Fixed | G87: ='Load Group Allocations'!G72 -> 1669.34515
A88: =$A$86 -> Load group 1 (incl residential) | B88: ='Load Group Allocations'!$G$3 -> Dunedin | C88: ='Load Group Allocations'!B27 -> Vegetation management | D88: ='Load Group Allocations'!D27 -> CPD | E88: ='Load Group Allocations'!E27 -> Distribution | F88: ='Load Group Allocations'!F27 -> Distance | G88: ='Load Group Allocations'!G73 -> 1184.250539
A89: Load group 1 (incl residential) | B89: ='Load Group Allocations'!$G$3 -> Dunedin | C89: ='Load Group Allocations'!B28 -> Routine and corrective maintenance and inspection | D89: ='Load Group Allocations'!D28 -> CPD | E89: ='Load Group Allocations'!E28 -> Distribution | F89: ='Load Group Allocations'!F28 -> Capacity | G89: ='Load Group Allocations'!G74 -> 3941.135075
A90: Load group 1 (incl residential) | B90: ='Load Group Allocations'!$G$3 -> Dunedin | C90: ='Load Group Allocations'!B29 -> System operations and network support | D90: ='Load Group Allocations'!D29 -> ICP Count | E90: ='Load Group Allocations'!E29 -> Distribution | F90: ='Load Group Allocations'!F29 -> Daily Fixed | G90: ='Load Group Allocations'!G75 -> 1212.687431
A91: Load group 1 (incl residential) | B91: ='Load Group Allocations'!$G$3 -> Dunedin | C91: ='Load Group Allocations'!B30 -> Business support | D91: ='Load Group Allocations'!D30 -> ICP Count | E91: ='Load Group Allocations'!E30 -> Distribution | F91: ='Load Group Allocations'!F30 -> Daily Fixed | G91: ='Load Group Allocations'!G76 -> 27399.91449
A92: Load group 1 (incl residential) | B92: ='Load Group Allocations'!$G$3 -> Dunedin | C92: ='Load Group Allocations'!B31 -> Depreciation | D92: ='Load Group Allocations'!D31 -> Regulated Asset Base (Depreciation) | E92: ='Load Group Allocations'!E31 -> Distribution | F92: ='Load Group Allocations'!F31 -> Capacity | G92: ='Load Group Allocations'!G77 -> 10451.83512
A93: Load group 1 (incl residential) | B93: ='Load Group Allocations'!$G$3 -> Dunedin | C93: ='Load Group Allocations'!B32 -> Asset revaluations and other regulatory revenue | D93: ='Load Group Allocations'!D32 -> Regulated Asset Base | E93: ='Load Group Allocations'!E32 -> Distribution | F93: ='Load Group Allocations'!F32 -> Capacity | G93: ='Load Group Allocations'!G78 -> -5660.518982
A94: Load group 1 (incl residential) | B94: ='Load Group Allocations'!$G$3 -> Dunedin | C94: ='Load Group Allocations'!B33 -> Tax | D94: ='Load Group Allocations'!D33 -> Regulated Asset Base | E94: ='Load Group Allocations'!E33 -> Distribution | F94: ='Load Group Allocations'!F33 -> Capacity | G94: ='Load Group Allocations'!G79 -> 4301.744385
A95: Load group 1 (incl residential) | B95: ='Load Group Allocations'!$G$3 -> Dunedin | C95: ='Load Group Allocations'!B34 -> Return on capital | D95: ='Load Group Allocations'!D34 -> Regulated Asset Base | E95: ='Load Group Allocations'!E34 -> Distribution | F95: ='Load Group Allocations'!F34 -> Capacity | G95: ='Load Group Allocations'!G80 -> 16722.57828
A96: Load group 1 (incl residential) | B96: ='Load Group Allocations'!$G$3 -> Dunedin | C96: ='Load Group Allocations'!B35 -> Local Authority rates | D96: ='Load Group Allocations'!D35 -> Regulated Asset Base | E96: ='Load Group Allocations'!E35 -> Passthrough | F96: ='Load Group Allocations'!F35 -> Capacity | G96: ='Load Group Allocations'!G81 -> 481.7699447
A97: Load group 1 (incl residential) | B97: ='Load Group Allocations'!$G$3 -> Dunedin | C97: ='Load Group Allocations'!B36 -> Commerce Act levies | D97: ='Load Group Allocations'!D36 -> Regulated Asset Base | E97: ='Load Group Allocations'!E36 -> Passthrough | F97: ='Load Group Allocations'!F36 -> Capacity | G97: ='Load Group Allocations'!G82 -> 81.78951994
A98: Load group 1 (incl residential) | B98: ='Load Group Allocations'!$G$3 -> Dunedin | C98: ='Load Group Allocations'!B37 -> Electricity Authority levies | D98: ='Load Group Allocations'!D37 -> MWh | E98: ='Load Group Allocations'!E37 -> Passthrough | F98: ='Load Group Allocations'!F37 -> Capacity | G98: ='Load Group Allocations'!G83 -> 101.3922558
A99: Load group 1 (incl residential) | B99: ='Load Group Allocations'!$G$3 -> Dunedin | C99: ='Load Group Allocations'!B38 -> Electricity Authority levies | D99: ='Load Group Allocations'!D38 -> ICP Count | E99: ='Load Group Allocations'!E38 -> Passthrough | F99: ='Load Group Allocations'!F38 -> Daily Fixed | G99: ='Load Group Allocations'!G84 -> 46.9040332
A100: Load group 1 (incl residential) | B100: ='Load Group Allocations'!$G$3 -> Dunedin | C100: ='Load Group Allocations'!B39 -> Utilities Disputes levies | D100: ='Load Group Allocations'!D39 -> ICP Count | E100: ='Load Group Allocations'!E39 -> Passthrough | F100: ='Load Group Allocations'!F39 -> Daily Fixed | G100: ='Load Group Allocations'!G85 -> 42.32120044
A101: Load group 1 (incl residential) | B101: ='Load Group Allocations'!$G$3 -> Dunedin | C101: ='Load Group Allocations'!B40 -> Opex Incentive Amount | D101: ='Load Group Allocations'!D40 -> Prior year distribution revenue | E101: ='Load Group Allocations'!E40 -> Passthrough | F101: ='Load Group Allocations'!F40 -> Daily Fixed | G101: ='Load Group Allocations'!G86 -> -2230.133745
A102: Load group 1 (incl residential) | B102: ='Load Group Allocations'!$G$3 -> Dunedin | C102: ='Load Group Allocations'!B41 -> Capex Incentive Amount | D102: ='Load Group Allocations'!D41 -> Regulated Asset Base | E102: ='Load Group Allocations'!E41 -> Passthrough | F102: ='Load Group Allocations'!F41 -> Capacity | G102: ='Load Group Allocations'!G87 -> -317.6311804
A103: Load group 1 (incl residential) | B103: ='Load Group Allocations'!$G$3 -> Dunedin | C103: ='Load Group Allocations'!B42 -> Transpower - Connection charge | D103: ='Load Group Allocations'!D42 -> MWh | E103: ='Load Group Allocations'!E42 -> Passthrough | F103: ='Load Group Allocations'!F42 -> Capacity | G103: ='Load Group Allocations'!G88 -> 1391.152762
A104: Load group 1 (incl residential) | B104: ='Load Group Allocations'!$G$3 -> Dunedin | C104: ='Load Group Allocations'!B43 -> Transpower - Benefit-based Charge | D104: ='Load Group Allocations'!D43 -> MWh | E104: ='Load Group Allocations'!E43 -> Passthrough | F104: ='Load Group Allocations'!F43 -> Capacity | G104: ='Load Group Allocations'!G89 -> 943.1879561
A105: Load group 1 (incl residential) | B105: ='Load Group Allocations'!$G$3 -> Dunedin | C105: ='Load Group Allocations'!B44 -> Transpower - Residual Charge | D105: ='Load Group Allocations'!D44 -> MWh | E105: ='Load Group Allocations'!E44 -> Passthrough | F105: ='Load Group Allocations'!F44 -> Capacity | G105: ='Load Group Allocations'!G90 -> 7871.206829
A106: Load group 1 (incl residential) | B106: ='Load Group Allocations'!$G$3 -> Dunedin | C106: ='Load Group Allocations'!B45 -> Transpower - Transitional Price Cap | D106: ='Load Group Allocations'!D45 -> MWh | E106: ='Load Group Allocations'!E45 -> Passthrough | F106: ='Load Group Allocations'!F45 -> Capacity | G106: ='Load Group Allocations'!G91 -> 4.907607579
A107: Load group 1 (incl residential) | B107: ='Load Group Allocations'!$G$3 -> Dunedin | C107: ='Load Group Allocations'!B46 -> Transpower - Interconnection costs | D107: ='Load Group Allocations'!D46 -> MWh | E107: ='Load Group Allocations'!E46 -> Passthrough | F107: ='Load Group Allocations'!F46 -> Capacity | G107: ='Load Group Allocations'!G92 -> 0
A108: Load group 1 (incl residential) | B108: ='Load Group Allocations'!$G$3 -> Dunedin | C108: ='Load Group Allocations'!B47 -> Transpower - New investment contract | D108: ='Load Group Allocations'!D47 -> MWh | E108: ='Load Group Allocations'!E47 -> Passthrough | F108: ='Load Group Allocations'!F47 -> Capacity | G108: ='Load Group Allocations'!G93 -> 494.729526
A109: Load group 1 (incl residential) | B109: ='Load Group Allocations'!$G$3 -> Dunedin | C109: ='Load Group Allocations'!B48 -> Distributed Generation Allowance | D109: ='Load Group Allocations'!D48 -> MWh | E109: ='Load Group Allocations'!E48 -> Passthrough | F109: ='Load Group Allocations'!F48 -> Capacity | G109: ='Load Group Allocations'!G94 -> 0
A110: Load group 1 (incl residential) | B110: ='Load Group Allocations'!$G$3 -> Dunedin | C110: ='Load Group Allocations'!B49 -> Wash-up Drawdown Amount | D110: ='Load Group Allocations'!D49 -> 0 | E110: ='Load Group Allocations'!E49 -> Passthrough | F110: ='Load Group Allocations'!F49 -> Daily Fixed | G110: ='Load Group Allocations'!G95 -> 0
A111: Load group 1 (incl residential) | B111: ='Load Group Allocations'!$G$3 -> Dunedin | C111: ='Load Group Allocations'!B50 -> Quality Incentive Adjustments | D111: ='Load Group Allocations'!D50 -> ICP Count | E111: ='Load Group Allocations'!E50 -> Passthrough | F111: ='Load Group Allocations'!F50 -> Daily Fixed | G111: ='Load Group Allocations'!G96 -> 16.35838308
A112: Load group 1 (incl residential) | B112: ='Load Group Allocations'!$G$3 -> Dunedin | C112: ='Load Group Allocations'!B51 -> Capex Wash-up Adjustment | D112: ='Load Group Allocations'!D51 -> Regulated Asset Base | E112: ='Load Group Allocations'!E51 -> Passthrough | F112: ='Load Group Allocations'!F51 -> Capacity | G112: ='Load Group Allocations'!G97 -> 0
A113: Load group 1 (incl residential) | B113: ='Load Group Allocations'!$G$3 -> Dunedin | C113: ='Load Group Allocations'!B52 -> Fire and Emergency Management New Zealand (FENZ) levies | D113: ='Load Group Allocations'!D52 -> Regulated Asset Base | E113: ='Load Group Allocations'!E52 -> Passthrough | F113: ='Load Group Allocations'!F52 -> Capacity | G113: ='Load Group Allocations'!G98 -> 10.37742071
A114: Load group 1 (incl residential) | B114: ='Load Group Allocations'!$H$3 -> Central Otago | C114: ='Load Group Allocations'!B25 -> Service interruptions and emergencies | D114: ='Load Group Allocations'!D25 -> CPD | E114: ='Load Group Allocations'!E25 -> Distribution | F114: ='Load Group Allocations'!F25 -> Capacity | G114: ='Load Group Allocations'!H71 -> 891.6571461
A115: Load group 1 (incl residential) | B115: ='Load Group Allocations'!$H$3 -> Central Otago | C115: ='Load Group Allocations'!B26 -> Service interruptions and emergencies | D115: ='Load Group Allocations'!D26 -> ICP Count | E115: ='Load Group Allocations'!E26 -> Distribution | F115: ='Load Group Allocations'!F26 -> Daily Fixed | G115: ='Load Group Allocations'!H72 -> 659.8246288
A116: Load group 1 (incl residential) | B116: ='Load Group Allocations'!$H$3 -> Central Otago | C116: ='Load Group Allocations'!B27 -> Vegetation management | D116: ='Load Group Allocations'!D27 -> CPD | E116: ='Load Group Allocations'!E27 -> Distribution | F116: ='Load Group Allocations'!F27 -> Distance | G116: ='Load Group Allocations'!H73 -> 1230.076642
A117: Load group 1 (incl residential) | B117: ='Load Group Allocations'!$H$3 -> Central Otago | C117: ='Load Group Allocations'!B28 -> Routine and corrective maintenance and inspection | D117: ='Load Group Allocations'!D28 -> CPD | E117: ='Load Group Allocations'!E28 -> Distribution | F117: ='Load Group Allocations'!F28 -> Capacity | G117: ='Load Group Allocations'!H74 -> 4772.650379
A118: Load group 1 (incl residential) | B118: ='Load Group Allocations'!$H$3 -> Central Otago | C118: ='Load Group Allocations'!B29 -> System operations and network support | D118: ='Load Group Allocations'!D29 -> ICP Count | E118: ='Load Group Allocations'!E29 -> Distribution | F118: ='Load Group Allocations'!F29 -> Daily Fixed | G118: ='Load Group Allocations'!H75 -> 479.3262999
A119: Load group 1 (incl residential) | B119: ='Load Group Allocations'!$H$3 -> Central Otago | C119: ='Load Group Allocations'!B30 -> Business support | D119: ='Load Group Allocations'!D30 -> ICP Count | E119: ='Load Group Allocations'!E30 -> Distribution | F119: ='Load Group Allocations'!F30 -> Daily Fixed | G119: ='Load Group Allocations'!H76 -> 10830.07814
A120: Load group 1 (incl residential) | B120: ='Load Group Allocations'!$H$3 -> Central Otago | C120: ='Load Group Allocations'!B31 -> Depreciation | D120: ='Load Group Allocations'!D31 -> Regulated Asset Base (Depreciation) | E120: ='Load Group Allocations'!E31 -> Distribution | F120: ='Load Group Allocations'!F31 -> Capacity | G120: ='Load Group Allocations'!H77 -> 5147.565216
A121: Load group 1 (incl residential) | B121: ='Load Group Allocations'!$H$3 -> Central Otago | C121: ='Load Group Allocations'!B32 -> Asset revaluations and other regulatory revenue | D121: ='Load Group Allocations'!D32 -> Regulated Asset Base | E121: ='Load Group Allocations'!E32 -> Distribution | F121: ='Load Group Allocations'!F32 -> Capacity | G121: ='Load Group Allocations'!H78 -> -3340.956316
A122: Load group 1 (incl residential) | B122: ='Load Group Allocations'!$H$3 -> Central Otago | C122: ='Load Group Allocations'!B33 -> Tax | D122: ='Load Group Allocations'!D33 -> Regulated Asset Base | E122: ='Load Group Allocations'!E33 -> Distribution | F122: ='Load Group Allocations'!F33 -> Capacity | G122: ='Load Group Allocations'!H79 -> 2538.979221
A123: Load group 1 (incl residential) | B123: ='Load Group Allocations'!$H$3 -> Central Otago | C123: ='Load Group Allocations'!B34 -> Return on capital | D123: ='Load Group Allocations'!D34 -> Regulated Asset Base | E123: ='Load Group Allocations'!E34 -> Distribution | F123: ='Load Group Allocations'!F34 -> Capacity | G123: ='Load Group Allocations'!H80 -> 9870.014338
A124: Load group 1 (incl residential) | B124: ='Load Group Allocations'!$H$3 -> Central Otago | C124: ='Load Group Allocations'!B35 -> Local Authority rates | D124: ='Load Group Allocations'!D35 -> Regulated Asset Base | E124: ='Load Group Allocations'!E35 -> Passthrough | F124: ='Load Group Allocations'!F35 -> Capacity | G124: ='Load Group Allocations'!H81 -> 284.3506655
A125: Load group 1 (incl residential) | B125: ='Load Group Allocations'!$H$3 -> Central Otago | C125: ='Load Group Allocations'!B36 -> Commerce Act levies | D125: ='Load Group Allocations'!D36 -> Regulated Asset Base | E125: ='Load Group Allocations'!E36 -> Passthrough | F125: ='Load Group Allocations'!F36 -> Capacity | G125: ='Load Group Allocations'!H82 -> 48.27387984
A126: Load group 1 (incl residential) | B126: ='Load Group Allocations'!$H$3 -> Central Otago | C126: ='Load Group Allocations'!B37 -> Electricity Authority levies | D126: ='Load Group Allocations'!D37 -> MWh | E126: ='Load Group Allocations'!E37 -> Passthrough | F126: ='Load Group Allocations'!F37 -> Capacity | G126: ='Load Group Allocations'!H83 -> 35.90572607
A127: Load group 1 (incl residential) | B127: ='Load Group Allocations'!$H$3 -> Central Otago | C127: ='Load Group Allocations'!B38 -> Electricity Authority levies | D127: ='Load Group Allocations'!D38 -> ICP Count | E127: ='Load Group Allocations'!E38 -> Passthrough | F127: ='Load Group Allocations'!F38 -> Daily Fixed | G127: ='Load Group Allocations'!H84 -> 18.53926751
A128: Load group 1 (incl residential) | B128: ='Load Group Allocations'!$H$3 -> Central Otago | C128: ='Load Group Allocations'!B39 -> Utilities Disputes levies | D128: ='Load Group Allocations'!D39 -> ICP Count | E128: ='Load Group Allocations'!E39 -> Passthrough | F128: ='Load Group Allocations'!F39 -> Daily Fixed | G128: ='Load Group Allocations'!H85 -> 16.72785905
A129: Load group 1 (incl residential) | B129: ='Load Group Allocations'!$H$3 -> Central Otago | C129: ='Load Group Allocations'!B40 -> Opex Incentive Amount | D129: ='Load Group Allocations'!D40 -> Prior year distribution revenue | E129: ='Load Group Allocations'!E40 -> Passthrough | F129: ='Load Group Allocations'!F40 -> Daily Fixed | G129: ='Load Group Allocations'!H86 -> -1378.883375
A130: Load group 1 (incl residential) | B130: ='Load Group Allocations'!$H$3 -> Central Otago | C130: ='Load Group Allocations'!B41 -> Capex Incentive Amount | D130: ='Load Group Allocations'!D41 -> Regulated Asset Base | E130: ='Load Group Allocations'!E41 -> Passthrough | F130: ='Load Group Allocations'!F41 -> Capacity | G130: ='Load Group Allocations'!H87 -> -187.4725448
A131: Load group 1 (incl residential) | B131: ='Load Group Allocations'!$H$3 -> Central Otago | C131: ='Load Group Allocations'!B42 -> Transpower - Connection charge | D131: ='Load Group Allocations'!D42 -> MWh | E131: ='Load Group Allocations'!E42 -> Passthrough | F131: ='Load Group Allocations'!F42 -> Capacity | G131: ='Load Group Allocations'!H88 -> 565.2623908
A132: Load group 1 (incl residential) | B132: ='Load Group Allocations'!$H$3 -> Central Otago | C132: ='Load Group Allocations'!B43 -> Transpower - Benefit-based Charge | D132: ='Load Group Allocations'!D43 -> MWh | E132: ='Load Group Allocations'!E43 -> Passthrough | F132: ='Load Group Allocations'!F43 -> Capacity | G132: ='Load Group Allocations'!H89 -> 221.956911
A133: Load group 1 (incl residential) | B133: ='Load Group Allocations'!$H$3 -> Central Otago | C133: ='Load Group Allocations'!B44 -> Transpower - Residual Charge | D133: ='Load Group Allocations'!D44 -> MWh | E133: ='Load Group Allocations'!E44 -> Passthrough | F133: ='Load Group Allocations'!F44 -> Capacity | G133: ='Load Group Allocations'!H90 -> 2425.462763
A134: Load group 1 (incl residential) | B134: ='Load Group Allocations'!$H$3 -> Central Otago | C134: ='Load Group Allocations'!B45 -> Transpower - Transitional Price Cap | D134: ='Load Group Allocations'!D45 -> MWh | E134: ='Load Group Allocations'!E45 -> Passthrough | F134: ='Load Group Allocations'!F45 -> Capacity | G134: ='Load Group Allocations'!H91 -> 1.474008957
A135: Load group 1 (incl residential) | B135: ='Load Group Allocations'!$H$3 -> Central Otago | C135: ='Load Group Allocations'!B46 -> Transpower - Interconnection costs | D135: ='Load Group Allocations'!D46 -> MWh | E135: ='Load Group Allocations'!E46 -> Passthrough | F135: ='Load Group Allocations'!F46 -> Capacity | G135: ='Load Group Allocations'!H92 -> 0
A136: Load group 1 (incl residential) | B136: ='Load Group Allocations'!$H$3 -> Central Otago | C136: ='Load Group Allocations'!B47 -> Transpower - New investment contract | D136: ='Load Group Allocations'!D47 -> MWh | E136: ='Load Group Allocations'!E47 -> Passthrough | F136: ='Load Group Allocations'!F47 -> Capacity | G136: ='Load Group Allocations'!H93 -> 201.0217729
A137: Load group 1 (incl residential) | B137: ='Load Group Allocations'!$H$3 -> Central Otago | C137: ='Load Group Allocations'!B48 -> Distributed Generation Allowance | D137: ='Load Group Allocations'!D48 -> MWh | E137: ='Load Group Allocations'!E48 -> Passthrough | F137: ='Load Group Allocations'!F48 -> Capacity | G137: ='Load Group Allocations'!H94 -> 0
A138: Load group 1 (incl residential) | B138: ='Load Group Allocations'!$H$3 -> Central Otago | C138: ='Load Group Allocations'!B49 -> Wash-up Drawdown Amount | D138: ='Load Group Allocations'!D49 -> 0 | E138: ='Load Group Allocations'!E49 -> Passthrough | F138: ='Load Group Allocations'!F49 -> Daily Fixed | G138: ='Load Group Allocations'!H95 -> 0
A139: Load group 1 (incl residential) | B139: ='Load Group Allocations'!$H$3 -> Central Otago | C139: ='Load Group Allocations'!B50 -> Quality Incentive Adjustments | D139: ='Load Group Allocations'!D50 -> ICP Count | E139: ='Load Group Allocations'!E50 -> Passthrough | F139: ='Load Group Allocations'!F50 -> Daily Fixed | G139: ='Load Group Allocations'!H96 -> 6.465807293
A140: Load group 1 (incl residential) | B140: ='Load Group Allocations'!$H$3 -> Central Otago | C140: ='Load Group Allocations'!B51 -> Capex Wash-up Adjustment | D140: ='Load Group Allocations'!D51 -> Regulated Asset Base | E140: ='Load Group Allocations'!E51 -> Passthrough | F140: ='Load Group Allocations'!F51 -> Capacity | G140: ='Load Group Allocations'!H97 -> 0
A141: Load group 1 (incl residential) | B141: ='Load Group Allocations'!$H$3 -> Central Otago | C141: ='Load Group Allocations'!B52 -> Fire and Emergency Management New Zealand (FENZ) levies | D141: ='Load Group Allocations'!D52 -> Regulated Asset Base | E141: ='Load Group Allocations'!E52 -> Passthrough | F141: ='Load Group Allocations'!F52 -> Capacity | G141: ='Load Group Allocations'!H98 -> 6.124970053
A142: Load group 1 (incl residential) | B142: ='Load Group Allocations'!$I$3 -> Queenstown | C142: ='Load Group Allocations'!B25 -> Service interruptions and emergencies | D142: ='Load Group Allocations'!D25 -> CPD | E142: ='Load Group Allocations'!E25 -> Distribution | F142: ='Load Group Allocations'!F25 -> Capacity | G142: ='Load Group Allocations'!I71 -> 292.2165565
A143: Load group 1 (incl residential) | B143: ='Load Group Allocations'!$I$3 -> Queenstown | C143: ='Load Group Allocations'!B26 -> Service interruptions and emergencies | D143: ='Load Group Allocations'!D26 -> ICP Count | E143: ='Load Group Allocations'!E26 -> Distribution | F143: ='Load Group Allocations'!F26 -> Daily Fixed | G143: ='Load Group Allocations'!I72 -> 399.8012509
A144: Load group 1 (incl residential) | B144: ='Load Group Allocations'!$I$3 -> Queenstown | C144: ='Load Group Allocations'!B27 -> Vegetation management | D144: ='Load Group Allocations'!D27 -> CPD | E144: ='Load Group Allocations'!E27 -> Distribution | F144: ='Load Group Allocations'!F27 -> Distance | G144: ='Load Group Allocations'!I73 -> 250.2310818
A145: Load group 1 (incl residential) | B145: ='Load Group Allocations'!$I$3 -> Queenstown | C145: ='Load Group Allocations'!B28 -> Routine and corrective maintenance and inspection | D145: ='Load Group Allocations'!D28 -> CPD | E145: ='Load Group Allocations'!E28 -> Distribution | F145: ='Load Group Allocations'!F28 -> Capacity | G145: ='Load Group Allocations'!I74 -> 1564.107309
A146: Load group 1 (incl residential) | B146: ='Load Group Allocations'!$I$3 -> Queenstown | C146: ='Load Group Allocations'!B29 -> System operations and network support | D146: ='Load Group Allocations'!D29 -> ICP Count | E146: ='Load Group Allocations'!E29 -> Distribution | F146: ='Load Group Allocations'!F29 -> Daily Fixed | G146: ='Load Group Allocations'!I75 -> 290.4336182
A147: Load group 1 (incl residential) | B147: ='Load Group Allocations'!$I$3 -> Queenstown | C147: ='Load Group Allocations'!B30 -> Business support | D147: ='Load Group Allocations'!D30 -> ICP Count | E147: ='Load Group Allocations'!E30 -> Distribution | F147: ='Load Group Allocations'!F30 -> Daily Fixed | G147: ='Load Group Allocations'!I76 -> 6562.166062
A148: Load group 1 (incl residential) | B148: ='Load Group Allocations'!$I$3 -> Queenstown | C148: ='Load Group Allocations'!B31 -> Depreciation | D148: ='Load Group Allocations'!D31 -> Regulated Asset Base (Depreciation) | E148: ='Load Group Allocations'!E31 -> Distribution | F148: ='Load Group Allocations'!F31 -> Capacity | G148: ='Load Group Allocations'!I77 -> 2955.078441
A149: Load group 1 (incl residential) | B149: ='Load Group Allocations'!$I$3 -> Queenstown | C149: ='Load Group Allocations'!B32 -> Asset revaluations and other regulatory revenue | D149: ='Load Group Allocations'!D32 -> Regulated Asset Base | E149: ='Load Group Allocations'!E32 -> Distribution | F149: ='Load Group Allocations'!F32 -> Capacity | G149: ='Load Group Allocations'!I78 -> -1639.057082
A150: Load group 1 (incl residential) | B150: ='Load Group Allocations'!$I$3 -> Queenstown | C150: ='Load Group Allocations'!B33 -> Tax | D150: ='Load Group Allocations'!D33 -> Regulated Asset Base | E150: ='Load Group Allocations'!E33 -> Distribution | F150: ='Load Group Allocations'!F33 -> Capacity | G150: ='Load Group Allocations'!I79 -> 1245.61098
A151: Load group 1 (incl residential) | B151: ='Load Group Allocations'!$I$3 -> Queenstown | C151: ='Load Group Allocations'!B34 -> Return on capital | D151: ='Load Group Allocations'!D34 -> Regulated Asset Base | E151: ='Load Group Allocations'!E34 -> Distribution | F151: ='Load Group Allocations'!F34 -> Capacity | G151: ='Load Group Allocations'!I80 -> 4842.18151
A152: =$A$86 -> Load group 1 (incl residential) | B152: ='Load Group Allocations'!$I$3 -> Queenstown | C152: ='Load Group Allocations'!B35 -> Local Authority rates | D152: ='Load Group Allocations'!D35 -> Regulated Asset Base | E152: ='Load Group Allocations'!E35 -> Passthrough | F152: ='Load Group Allocations'!F35 -> Capacity | G152: ='Load Group Allocations'!I81 -> 139.5010673
A153: Load group 1 (incl residential) | B153: ='Load Group Allocations'!$I$3 -> Queenstown | C153: ='Load Group Allocations'!B36 -> Commerce Act levies | D153: ='Load Group Allocations'!D36 -> Regulated Asset Base | E153: ='Load Group Allocations'!E36 -> Passthrough | F153: ='Load Group Allocations'!F36 -> Capacity | G153: ='Load Group Allocations'!I82 -> 23.68293301
A154: Load group 1 (incl residential) | B154: ='Load Group Allocations'!$I$3 -> Queenstown | C154: ='Load Group Allocations'!B37 -> Electricity Authority levies | D154: ='Load Group Allocations'!D37 -> MWh | E154: ='Load Group Allocations'!E37 -> Passthrough | F154: ='Load Group Allocations'!F37 -> Capacity | G154: ='Load Group Allocations'!I83 -> 29.42088721
A155: Load group 1 (incl residential) | B155: ='Load Group Allocations'!$I$3 -> Queenstown | C155: ='Load Group Allocations'!B38 -> Electricity Authority levies | D155: ='Load Group Allocations'!D38 -> ICP Count | E155: ='Load Group Allocations'!E38 -> Passthrough | F155: ='Load Group Allocations'!F38 -> Daily Fixed | G155: ='Load Group Allocations'!I84 -> 11.23332173
A156: Load group 1 (incl residential) | B156: ='Load Group Allocations'!$I$3 -> Queenstown | C156: ='Load Group Allocations'!B39 -> Utilities Disputes levies | D156: ='Load Group Allocations'!D39 -> ICP Count | E156: ='Load Group Allocations'!E39 -> Passthrough | F156: ='Load Group Allocations'!F39 -> Daily Fixed | G156: ='Load Group Allocations'!I85 -> 10.13575226
A157: Load group 1 (incl residential) | B157: ='Load Group Allocations'!$I$3 -> Queenstown | C157: ='Load Group Allocations'!B40 -> Opex Incentive Amount | D157: ='Load Group Allocations'!D40 -> Prior year distribution revenue | E157: ='Load Group Allocations'!E40 -> Passthrough | F157: ='Load Group Allocations'!F40 -> Daily Fixed | G157: ='Load Group Allocations'!I86 -> -670.5225387
A158: Load group 1 (incl residential) | B158: ='Load Group Allocations'!$I$3 -> Queenstown | C158: ='Load Group Allocations'!B41 -> Capex Incentive Amount | D158: ='Load Group Allocations'!D41 -> Regulated Asset Base | E158: ='Load Group Allocations'!E41 -> Passthrough | F158: ='Load Group Allocations'!F41 -> Capacity | G158: ='Load Group Allocations'!I87 -> -91.97312778
A159: Load group 1 (incl residential) | B159: ='Load Group Allocations'!$I$3 -> Queenstown | C159: ='Load Group Allocations'!B42 -> Transpower - Connection charge | D159: ='Load Group Allocations'!D42 -> MWh | E159: ='Load Group Allocations'!E42 -> Passthrough | F159: ='Load Group Allocations'!F42 -> Capacity | G159: ='Load Group Allocations'!I88 -> 1349.337584
A160: Load group 1 (incl residential) | B160: ='Load Group Allocations'!$I$3 -> Queenstown | C160: ='Load Group Allocations'!B43 -> Transpower - Benefit-based Charge | D160: ='Load Group Allocations'!D43 -> MWh | E160: ='Load Group Allocations'!E43 -> Passthrough | F160: ='Load Group Allocations'!F43 -> Capacity | G160: ='Load Group Allocations'!I89 -> 362.9288804
A161: Load group 1 (incl residential) | B161: ='Load Group Allocations'!$I$3 -> Queenstown | C161: ='Load Group Allocations'!B44 -> Transpower - Residual Charge | D161: ='Load Group Allocations'!D44 -> MWh | E161: ='Load Group Allocations'!E44 -> Passthrough | F161: ='Load Group Allocations'!F44 -> Capacity | G161: ='Load Group Allocations'!I90 -> 1957.61234
A162: Load group 1 (incl residential) | B162: ='Load Group Allocations'!$I$3 -> Queenstown | C162: ='Load Group Allocations'!B45 -> Transpower - Transitional Price Cap | D162: ='Load Group Allocations'!D45 -> MWh | E162: ='Load Group Allocations'!E45 -> Passthrough | F162: ='Load Group Allocations'!F45 -> Capacity | G162: ='Load Group Allocations'!I91 -> 1.292012209
A163: Load group 1 (incl residential) | B163: ='Load Group Allocations'!$I$3 -> Queenstown | C163: ='Load Group Allocations'!B46 -> Transpower - Interconnection costs | D163: ='Load Group Allocations'!D46 -> MWh | E163: ='Load Group Allocations'!E46 -> Passthrough | F163: ='Load Group Allocations'!F46 -> Capacity | G163: ='Load Group Allocations'!I92 -> 0
A164: Load group 1 (incl residential) | B164: ='Load Group Allocations'!$I$3 -> Queenstown | C164: ='Load Group Allocations'!B47 -> Transpower - New investment contract | D164: ='Load Group Allocations'!D47 -> MWh | E164: ='Load Group Allocations'!E47 -> Passthrough | F164: ='Load Group Allocations'!F47 -> Capacity | G164: ='Load Group Allocations'!I93 -> 479.8589785
A165: Load group 1 (incl residential) | B165: ='Load Group Allocations'!$I$3 -> Queenstown | C165: ='Load Group Allocations'!B48 -> Distributed Generation Allowance | D165: ='Load Group Allocations'!D48 -> MWh | E165: ='Load Group Allocations'!E48 -> Passthrough | F165: ='Load Group Allocations'!F48 -> Capacity | G165: ='Load Group Allocations'!I94 -> 0
A166: Load group 1 (incl residential) | B166: ='Load Group Allocations'!$I$3 -> Queenstown | C166: ='Load Group Allocations'!B49 -> Wash-up Drawdown Amount | D166: ='Load Group Allocations'!D49 -> 0 | E166: ='Load Group Allocations'!E49 -> Passthrough | F166: ='Load Group Allocations'!F49 -> Daily Fixed | G166: ='Load Group Allocations'!I95 -> 0
A167: Load group 1 (incl residential) | B167: ='Load Group Allocations'!$I$3 -> Queenstown | C167: ='Load Group Allocations'!B50 -> Quality Incentive Adjustments | D167: ='Load Group Allocations'!D50 -> ICP Count | E167: ='Load Group Allocations'!E50 -> Passthrough | F167: ='Load Group Allocations'!F50 -> Daily Fixed | G167: ='Load Group Allocations'!I96 -> 3.91776501
A168: Load group 1 (incl residential) | B168: ='Load Group Allocations'!$I$3 -> Queenstown | C168: ='Load Group Allocations'!B51 -> Capex Wash-up Adjustment | D168: ='Load Group Allocations'!D51 -> Regulated Asset Base | E168: ='Load Group Allocations'!E51 -> Passthrough | F168: ='Load Group Allocations'!F51 -> Capacity | G168: ='Load Group Allocations'!I97 -> 0
A169: Load group 1 (incl residential) | B169: ='Load Group Allocations'!$I$3 -> Queenstown | C169: ='Load Group Allocations'!B52 -> Fire and Emergency Management New Zealand (FENZ) levies | D169: ='Load Group Allocations'!D52 -> Regulated Asset Base | E169: ='Load Group Allocations'!E52 -> Passthrough | F169: ='Load Group Allocations'!F52 -> Capacity | G169: ='Load Group Allocations'!I98 -> 3.004880816
A170: ='Load Group Allocations'!$B$104 -> Load group 2 | B170: ='Load Group Allocations'!$G$3 -> Dunedin | C170: ='Load Group Allocations'!B25 -> Service interruptions and emergencies | D170: ='Load Group Allocations'!D25 -> CPD | E170: ='Load Group Allocations'!E25 -> Distribution | F170: ='Load Group Allocations'!F25 -> Capacity | G170: ='Load Group Allocations'!G117 -> 151.8883733
A171: ='Load Group Allocations'!$B$104 -> Load group 2 | B171: ='Load Group Allocations'!$G$3 -> Dunedin | C171: ='Load Group Allocations'!B26 -> Service interruptions and emergencies | D171: ='Load Group Allocations'!D26 -> ICP Count | E171: ='Load Group Allocations'!E26 -> Distribution | F171: ='Load Group Allocations'!F26 -> Daily Fixed | G171: ='Load Group Allocations'!G118 -> 99.49078332
A172: ='Load Group Allocations'!$B$104 -> Load group 2 | B172: ='Load Group Allocations'!$G$3 -> Dunedin | C172: ='Load Group Allocations'!B27 -> Vegetation management | D172: ='Load Group Allocations'!D27 -> CPD | E172: ='Load Group Allocations'!E27 -> Distribution | F172: ='Load Group Allocations'!F27 -> Distance | G172: ='Load Group Allocations'!G119 -> 244.2915972
A173: ='Load Group Allocations'!$B$104 -> Load group 2 | B173: ='Load Group Allocations'!$G$3 -> Dunedin | C173: ='Load Group Allocations'!B28 -> Routine and corrective maintenance and inspection | D173: ='Load Group Allocations'!D28 -> CPD | E173: ='Load Group Allocations'!E28 -> Distribution | F173: ='Load Group Allocations'!F28 -> Capacity | G173: ='Load Group Allocations'!G120 -> 812.991973
A174: ='Load Group Allocations'!$B$104 -> Load group 2 | B174: ='Load Group Allocations'!$G$3 -> Dunedin | C174: ='Load Group Allocations'!B29 -> System operations and network support | D174: ='Load Group Allocations'!D29 -> ICP Count | E174: ='Load Group Allocations'!E29 -> Distribution | F174: ='Load Group Allocations'!F29 -> Daily Fixed | G174: ='Load Group Allocations'!G121 -> 72.27458171
A175: ='Load Group Allocations'!$B$104 -> Load group 2 | B175: ='Load Group Allocations'!$G$3 -> Dunedin | C175: ='Load Group Allocations'!B30 -> Business support | D175: ='Load Group Allocations'!D30 -> ICP Count | E175: ='Load Group Allocations'!E30 -> Distribution | F175: ='Load Group Allocations'!F30 -> Daily Fixed | G175: ='Load Group Allocations'!G122 -> 1632.998997
A176: ='Load Group Allocations'!$B$104 -> Load group 2 | B176: ='Load Group Allocations'!$G$3 -> Dunedin | C176: ='Load Group Allocations'!B31 -> Depreciation | D176: ='Load Group Allocations'!D31 -> Regulated Asset Base (Depreciation) | E176: ='Load Group Allocations'!E31 -> Distribution | F176: ='Load Group Allocations'!F31 -> Capacity | G176: ='Load Group Allocations'!G123 -> 2156.043345
A177: ='Load Group Allocations'!$B$104 -> Load group 2 | B177: ='Load Group Allocations'!$G$3 -> Dunedin | C177: ='Load Group Allocations'!B32 -> Asset revaluations and other regulatory revenue | D177: ='Load Group Allocations'!D32 -> Regulated Asset Base | E177: ='Load Group Allocations'!E32 -> Distribution | F177: ='Load Group Allocations'!F32 -> Capacity | G177: ='Load Group Allocations'!G124 -> -1167.672868
A178: ='Load Group Allocations'!$B$104 -> Load group 2 | B178: ='Load Group Allocations'!$G$3 -> Dunedin | C178: ='Load Group Allocations'!B33 -> Tax | D178: ='Load Group Allocations'!D33 -> Regulated Asset Base | E178: ='Load Group Allocations'!E33 -> Distribution | F178: ='Load Group Allocations'!F33 -> Capacity | G178: ='Load Group Allocations'!G125 -> 887.3798
A179: ='Load Group Allocations'!$B$104 -> Load group 2 | B179: ='Load Group Allocations'!$G$3 -> Dunedin | C179: ='Load Group Allocations'!B34 -> Return on capital | D179: ='Load Group Allocations'!D34 -> Regulated Asset Base | E179: ='Load Group Allocations'!E34 -> Distribution | F179: ='Load Group Allocations'!F34 -> Capacity | G179: ='Load Group Allocations'!G126 -> 3449.595522
A180: ='Load Group Allocations'!$B$104 -> Load group 2 | B180: ='Load Group Allocations'!$G$3 -> Dunedin | C180: ='Load Group Allocations'!B35 -> Local Authority rates | D180: ='Load Group Allocations'!D35 -> Regulated Asset Base | E180: ='Load Group Allocations'!E35 -> Passthrough | F180: ='Load Group Allocations'!F35 -> Capacity | G180: ='Load Group Allocations'!G127 -> 99.38129253
A181: ='Load Group Allocations'!$B$104 -> Load group 2 | B181: ='Load Group Allocations'!$G$3 -> Dunedin | C181: ='Load Group Allocations'!B36 -> Commerce Act levies | D181: ='Load Group Allocations'!D36 -> Regulated Asset Base | E181: ='Load Group Allocations'!E36 -> Passthrough | F181: ='Load Group Allocations'!F36 -> Capacity | G181: ='Load Group Allocations'!G128 -> 16.87184578
A182: ='Load Group Allocations'!$B$104 -> Load group 2 | B182: ='Load Group Allocations'!$G$3 -> Dunedin | C182: ='Load Group Allocations'!B37 -> Electricity Authority levies | D182: ='Load Group Allocations'!D37 -> MWh | E182: ='Load Group Allocations'!E37 -> Passthrough | F182: ='Load Group Allocations'!F37 -> Capacity | G182: ='Load Group Allocations'!G129 -> 30.80588092
A183: ='Load Group Allocations'!$B$104 -> Load group 2 | B183: ='Load Group Allocations'!$G$3 -> Dunedin | C183: ='Load Group Allocations'!B38 -> Electricity Authority levies | D183: ='Load Group Allocations'!D38 -> ICP Count | E183: ='Load Group Allocations'!E38 -> Passthrough | F183: ='Load Group Allocations'!F38 -> Daily Fixed | G183: ='Load Group Allocations'!G130 -> 2.795418913
A184: ='Load Group Allocations'!$B$104 -> Load group 2 | B184: ='Load Group Allocations'!$G$3 -> Dunedin | C184: ='Load Group Allocations'!B39 -> Utilities Disputes levies | D184: ='Load Group Allocations'!D39 -> ICP Count | E184: ='Load Group Allocations'!E39 -> Passthrough | F184: ='Load Group Allocations'!F39 -> Daily Fixed | G184: ='Load Group Allocations'!G131 -> 2.522288086
A185: ='Load Group Allocations'!$B$104 -> Load group 2 | B185: ='Load Group Allocations'!$G$3 -> Dunedin | C185: ='Load Group Allocations'!B40 -> Opex Incentive Amount | D185: ='Load Group Allocations'!D40 -> Prior year distribution revenue | E185: ='Load Group Allocations'!E40 -> Passthrough | F185: ='Load Group Allocations'!F40 -> Daily Fixed | G185: ='Load Group Allocations'!G132 -> -540.8573231
A186: ='Load Group Allocations'!$B$104 -> Load group 2 | B186: ='Load Group Allocations'!$G$3 -> Dunedin | C186: ='Load Group Allocations'!B41 -> Capex Incentive Amount | D186: ='Load Group Allocations'!D41 -> Regulated Asset Base | E186: ='Load Group Allocations'!E41 -> Passthrough | F186: ='Load Group Allocations'!F41 -> Capacity | G186: ='Load Group Allocations'!G133 -> -65.52213895
A187: ='Load Group Allocations'!$B$104 -> Load group 2 | B187: ='Load Group Allocations'!$G$3 -> Dunedin | C187: ='Load Group Allocations'!B42 -> Transpower - Connection charge | D187: ='Load Group Allocations'!D42 -> MWh | E187: ='Load Group Allocations'!E42 -> Passthrough | F187: ='Load Group Allocations'!F42 -> Capacity | G187: ='Load Group Allocations'!G134 -> 422.6721851
A188: ='Load Group Allocations'!$B$104 -> Load group 2 | B188: ='Load Group Allocations'!$G$3 -> Dunedin | C188: ='Load Group Allocations'!B43 -> Transpower - Benefit-based Charge | D188: ='Load Group Allocations'!D43 -> MWh | E188: ='Load Group Allocations'!E43 -> Passthrough | F188: ='Load Group Allocations'!F43 -> Capacity | G188: ='Load Group Allocations'!G135 -> 286.5676043
A189: ='Load Group Allocations'!$B$104 -> Load group 2 | B189: ='Load Group Allocations'!$G$3 -> Dunedin | C189: ='Load Group Allocations'!B44 -> Transpower - Residual Charge | D189: ='Load Group Allocations'!D44 -> MWh | E189: ='Load Group Allocations'!E44 -> Passthrough | F189: ='Load Group Allocations'!F44 -> Capacity | G189: ='Load Group Allocations'!G136 -> 2391.49882
A190: ='Load Group Allocations'!$B$104 -> Load group 2 | B190: ='Load Group Allocations'!$G$3 -> Dunedin | C190: ='Load Group Allocations'!B45 -> Transpower - Transitional Price Cap | D190: ='Load Group Allocations'!D45 -> MWh | E190: ='Load Group Allocations'!E45 -> Passthrough | F190: ='Load Group Allocations'!F45 -> Capacity | G190: ='Load Group Allocations'!G137 -> 1.491072207
A191: ='Load Group Allocations'!$B$104 -> Load group 2 | B191: ='Load Group Allocations'!$G$3 -> Dunedin | C191: ='Load Group Allocations'!B46 -> Transpower - Interconnection costs | D191: ='Load Group Allocations'!D46 -> MWh | E191: ='Load Group Allocations'!E46 -> Passthrough | F191: ='Load Group Allocations'!F46 -> Capacity | G191: ='Load Group Allocations'!G138 -> 0
A192: ='Load Group Allocations'!$B$104 -> Load group 2 | B192: ='Load Group Allocations'!$G$3 -> Dunedin | C192: ='Load Group Allocations'!B47 -> Transpower - New investment contract | D192: ='Load Group Allocations'!D47 -> MWh | E192: ='Load Group Allocations'!E47 -> Passthrough | F192: ='Load Group Allocations'!F47 -> Capacity | G192: ='Load Group Allocations'!G139 -> 150.3130465
A193: ='Load Group Allocations'!$B$104 -> Load group 2 | B193: ='Load Group Allocations'!$G$3 -> Dunedin | C193: ='Load Group Allocations'!B48 -> Distributed Generation Allowance | D193: ='Load Group Allocations'!D48 -> MWh | E193: ='Load Group Allocations'!E48 -> Passthrough | F193: ='Load Group Allocations'!F48 -> Capacity | G193: ='Load Group Allocations'!G140 -> 0
A194: ='Load Group Allocations'!$B$104 -> Load group 2 | B194: ='Load Group Allocations'!$G$3 -> Dunedin | C194: ='Load Group Allocations'!B49 -> Wash-up Drawdown Amount | D194: ='Load Group Allocations'!D49 -> 0 | E194: ='Load Group Allocations'!E49 -> Passthrough | F194: ='Load Group Allocations'!F49 -> Daily Fixed | G194: ='Load Group Allocations'!G141 -> 0
A195: ='Load Group Allocations'!$B$104 -> Load group 2 | B195: ='Load Group Allocations'!$G$3 -> Dunedin | C195: ='Load Group Allocations'!B50 -> Quality Incentive Adjustments | D195: ='Load Group Allocations'!D50 -> ICP Count | E195: ='Load Group Allocations'!E50 -> Passthrough | F195: ='Load Group Allocations'!F50 -> Daily Fixed | G195: ='Load Group Allocations'!G142 -> 0.9749381946
A196: ='Load Group Allocations'!$B$104 -> Load group 2 | B196: ='Load Group Allocations'!$G$3 -> Dunedin | C196: ='Load Group Allocations'!B51 -> Capex Wash-up Adjustment | D196: ='Load Group Allocations'!D51 -> Regulated Asset Base | E196: ='Load Group Allocations'!E51 -> Passthrough | F196: ='Load Group Allocations'!F51 -> Capacity | G196: ='Load Group Allocations'!G143 -> 0
A197: ='Load Group Allocations'!$B$104 -> Load group 2 | B197: ='Load Group Allocations'!$G$3 -> Dunedin | C197: ='Load Group Allocations'!B52 -> Fire and Emergency Management New Zealand (FENZ) levies | D197: ='Load Group Allocations'!D52 -> Regulated Asset Base | E197: ='Load Group Allocations'!E52 -> Passthrough | F197: ='Load Group Allocations'!F52 -> Capacity | G197: ='Load Group Allocations'!G144 -> 2.140692864
A198: ='Load Group Allocations'!$B$104 -> Load group 2 | B198: ='Load Group Allocations'!$H$3 -> Central Otago | C198: ='Load Group Allocations'!B25 -> Service interruptions and emergencies | D198: ='Load Group Allocations'!D25 -> CPD | E198: ='Load Group Allocations'!E25 -> Distribution | F198: ='Load Group Allocations'!F25 -> Capacity | G198: ='Load Group Allocations'!H117 -> 241.7572822
A199: ='Load Group Allocations'!$B$104 -> Load group 2 | B199: ='Load Group Allocations'!$H$3 -> Central Otago | C199: ='Load Group Allocations'!B26 -> Service interruptions and emergencies | D199: ='Load Group Allocations'!D26 -> ICP Count | E199: ='Load Group Allocations'!E26 -> Distribution | F199: ='Load Group Allocations'!F26 -> Daily Fixed | G199: ='Load Group Allocations'!H118 -> 70.72941722
A200: ='Load Group Allocations'!$B$104 -> Load group 2 | B200: ='Load Group Allocations'!$H$3 -> Central Otago | C200: ='Load Group Allocations'!B27 -> Vegetation management | D200: ='Load Group Allocations'!D27 -> CPD | E200: ='Load Group Allocations'!E27 -> Distribution | F200: ='Load Group Allocations'!F27 -> Distance | G200: ='Load Group Allocations'!H119 -> 333.5138255
... 305 more rows

Sheet Raw Data v2 (hidden)
A1: Load group | B1: Pricing Area | C1: Componants | D1: Allocator | E1: Passthrough/Dist | F1: Tariff types | G1: Amount | I1: =SUM('Target Revenue'!J17:J26)/SUM('Target Revenue'!K17:K26) -> 0.8008515023 | K1: Componants | L1: Pricing Area Allocator | M1: Load group Allocator | N1: Tariff types | O1: Passthrough/Dist | P1: Cost Type | Q1: Amount | T1: Pricing Area | U1: Dunedin
A2: ='Load Group Allocations'!B12 -> Load group Streetlighting | B2: ='Load Group Allocations'!$G$3 -> Dunedin | C2: ='Load Group Allocations'!B25 -> Service interruptions and emergencies | D2: ='Load Group Allocations'!D25 -> CPD | E2: ='Load Group Allocations'!E25 -> Distribution | F2: ='Load Group Allocations'!F25 -> Capacity | G2: =IF(E2="distribution",'Raw data'!G2*'Raw Data v2'!I$1,'Raw data'!G2) -> 5.190690391 | H2: chk | I2: =SUM('Raw data'!G:G)-SUM('Raw Data v2'!G:G) -> 2.328306437e-10 | K2: Service interruptions and emergencies | L2: Total Circuit Length | M2: CPD | N2: Distance | O2: Distribution | P2: Operational costs | Q2: ='Target Revenue'!K17 -> 2982.055361
A3: =$A$2 -> Load group Streetlighting | B3: ='Load Group Allocations'!$G$3 -> Dunedin | C3: ='Load Group Allocations'!B26 -> Service interruptions and emergencies | D3: ='Load Group Allocations'!D26 -> ICP Count | E3: ='Load Group Allocations'!E26 -> Distribution | F3: ='Load Group Allocations'!F26 -> Daily Fixed | G3: =IF(E3="distribution",'Raw data'!G3*'Raw Data v2'!I$1,'Raw data'!G3) -> 0.1002475155 | K3: Service interruptions and emergencies | L3: ICP Count | M3: ICP Count | N3: Daily Fixed | O3: Distribution | P3: Operational costs | Q3: ='Target Revenue'!K18 -> 2982.055361 | T3: Sum of Amount | U3: Column Labels
A4: =$A$2 -> Load group Streetlighting | B4: ='Load Group Allocations'!$G$3 -> Dunedin | C4: ='Load Group Allocations'!B27 -> Vegetation management | D4: ='Load Group Allocations'!D27 -> CPD | E4: ='Load Group Allocations'!E27 -> Distribution | F4: ='Load Group Allocations'!F27 -> Distance | G4: =IF(E4="distribution",'Raw data'!G4*'Raw Data v2'!I$1,'Raw data'!G4) -> 8.348512915 | K4: Vegetation management | L4: Overhead Circuit Length | M4: CPD | N4: Distance | O4: Distribution | P4: Operational costs | Q4: ='Target Revenue'!K19 -> 4113.408157 | U4: Capacity | W4: Daily Fixed | Y4: Distance | AA4: Grand Total
A5: Load group Streetlighting | B5: ='Load Group Allocations'!$G$3 -> Dunedin | C5: ='Load Group Allocations'!B28 -> Routine and corrective maintenance and inspection | D5: ='Load Group Allocations'!D28 -> CPD | E5: ='Load Group Allocations'!E28 -> Distribution | F5: ='Load Group Allocations'!F28 -> Capacity | G5: =IF(E5="distribution",'Raw data'!G5*'Raw Data v2'!I$1,'Raw data'!G5) -> 27.78349343 | K5: Routine and corrective maintenance and inspection | L5: Total Circuit Length | M5: CPD | N5: Distance | O5: Distribution | P5: Operational costs | Q5: ='Target Revenue'!K20 -> 15961.63695 | T5: Row Labels | U5: Distribution | V5: Passthrough | W5: Distribution | X5: Passthrough | Y5: Distribution | Z5: Passthrough
A6: Load group Streetlighting | B6: ='Load Group Allocations'!$G$3 -> Dunedin | C6: ='Load Group Allocations'!B29 -> System operations and network support | D6: ='Load Group Allocations'!D29 -> ICP Count | E6: ='Load Group Allocations'!E29 -> Distribution | F6: ='Load Group Allocations'!F29 -> Daily Fixed | G6: =IF(E6="distribution",'Raw data'!G6*'Raw Data v2'!I$1,'Raw data'!G6) -> 0.07282430602 | K6: System operations and network support | L6: ICP Count | M6: ICP Count | N6: Daily Fixed | O6: Distribution | P6: Operational costs | Q6: ='Target Revenue'!K21 -> 2166.299195 | T6: Load group 1 (incl residential) | U6: 24420.43053 | V6: 17135.53411 | W6: 24251.3428 | X6: 3906.054137 | Y6: 948.4088234 | Z6: 235.8417157 | AA6: 70897.61212
A7: Load group Streetlighting | B7: ='Load Group Allocations'!$G$3 -> Dunedin | C7: ='Load Group Allocations'!B30 -> Business support | D7: ='Load Group Allocations'!D30 -> ICP Count | E7: ='Load Group Allocations'!E30 -> Distribution | F7: ='Load Group Allocations'!F30 -> Daily Fixed | G7: =IF(E7="distribution",'Raw data'!G7*'Raw Data v2'!I$1,'Raw data'!G7) -> 1.645419674 | K7: Business support | L7: ICP Count | M7: ICP Count | N7: Daily Fixed | O7: Distribution | P7: Operational costs | Q7: ='Target Revenue'!K22 -> 48946.17624 | T7: Load group 2 | U7: 5037.537059 | V7: 4588.909388 | W7: 1445.348251 | X7: -175.1485665 | Y7: 195.6412926 | Z7: 48.65030457 | AA7: 11140.93773
A8: Load group Streetlighting | B8: ='Load Group Allocations'!$G$3 -> Dunedin | C8: ='Load Group Allocations'!B31 -> Depreciation | D8: ='Load Group Allocations'!D31 -> Regulated Asset Base (Depreciation) | E8: ='Load Group Allocations'!E31 -> Distribution | F8: ='Load Group Allocations'!F31 -> Capacity | G8: =IF(E8="distribution",'Raw data'!G8*'Raw Data v2'!I$1,'Raw data'!G8) -> 73.68143613 | K8: Depreciation | L8: Regulated Asset Base (Depreciation) | M8: Regulated Asset Base (Depreciation) | N8: Capacity | O8: Distribution | P8: Capital related costs | Q8: ='Target Revenue'!K23 -> 37696.44967 | T8: Load group 3 | U8: 6000.687004 | V8: 3694.909301 | W8: 96.05620834 | X8: -247.6009712 | Y8: 117.0720507 | Z8: 29.11241717 | AA8: 9690.23601
A9: Load group Streetlighting | B9: ='Load Group Allocations'!$G$3 -> Dunedin | C9: ='Load Group Allocations'!B32 -> Asset revaluations and other regulatory revenue | D9: ='Load Group Allocations'!D32 -> Regulated Asset Base | E9: ='Load Group Allocations'!E32 -> Distribution | F9: ='Load Group Allocations'!F32 -> Capacity | G9: =IF(E9="distribution",'Raw data'!G9*'Raw Data v2'!I$1,'Raw data'!G9) -> -39.90449172 | K9: Asset revaluations and other regulatory revenue | L9: Regulated Asset Base | M9: Regulated Asset Base | N9: Capacity | O9: Distribution | P9: Capital related costs | Q9: ='Target Revenue'!K24 -> -24109.28776 | T9: Load group 4 | U9: 6601.681519 | V9: 4274.729065 | W9: 35.9226803 | X9: -185.919803 | Y9: 128.7973182 | Z9: 32.02815048 | AA9: 10887.23893
A10: Load group Streetlighting | B10: ='Load Group Allocations'!$G$3 -> Dunedin | C10: ='Load Group Allocations'!B33 -> Tax | D10: ='Load Group Allocations'!D33 -> Regulated Asset Base | E10: ='Load Group Allocations'!E33 -> Distribution | F10: ='Load Group Allocations'!F33 -> Capacity | G10: =IF(E10="distribution",'Raw data'!G10*'Raw Data v2'!I$1,'Raw data'!G10) -> 30.32565101 | K10: Tax | L10: Regulated Asset Base | M10: Regulated Asset Base | N10: Capacity | O10: Distribution | P10: Capital related costs | Q10: ='Target Revenue'!K25 -> 18321.99372 | T10: Load group 5 | U10: 2393.150741 | V10: 1777.680445 | W10: 2.349092439 | X10: -47.62819242 | Y10: 46.68983149 | Z10: 11.61040439 | AA10: 4183.852322
A11: Load group Streetlighting | B11: ='Load Group Allocations'!$G$3 -> Dunedin | C11: ='Load Group Allocations'!B34 -> Return on capital | D11: ='Load Group Allocations'!D34 -> Regulated Asset Base | E11: ='Load Group Allocations'!E34 -> Distribution | F11: ='Load Group Allocations'!F34 -> Capacity | G11: =IF(E11="distribution",'Raw data'!G11*'Raw Data v2'!I$1,'Raw data'!G11) -> 117.8877747 | K11: Return on capital | L11: Regulated Asset Base | M11: Regulated Asset Base | N11: Capacity | O11: Distribution | P11: Capital related costs | Q11: ='Target Revenue'!K26 -> 71224.82108 | T11: Load group Streetlighting | U11: 214.9645539 | V11: 163.8807167 | W11: 1.818491496 | X11: -26.95549257 | Y11: 8.348512915 | Z11: 2.076032573 | AA11: 364.1328151
A12: Load group Streetlighting | B12: ='Load Group Allocations'!$G$3 -> Dunedin | C12: ='Load Group Allocations'!B35 -> Local Authority rates | D12: ='Load Group Allocations'!D35 -> Regulated Asset Base | E12: ='Load Group Allocations'!E35 -> Passthrough | F12: ='Load Group Allocations'!F35 -> Capacity | G12: =IF(E12="distribution",'Raw data'!G12*'Raw Data v2'!I$1,'Raw data'!G12) -> 4.240853212 | K12: Local Authority rates | L12: Regulated Asset Base | M12: Regulated Asset Base | N12: Capacity | O12: Passthrough | P12: Passthrough and recoverable costs | Q12: ='Target Revenue'!K27 -> 2051.955 | T12: Grand Total | U12: 44668.45141 | V12: 31635.64303 | W12: 25832.83753 | X12: 3222.801112 | Y12: 1444.957829 | Z12: 359.3190249 | AA12: 107164.0099
A13: Load group Streetlighting | B13: ='Load Group Allocations'!$G$3 -> Dunedin | C13: ='Load Group Allocations'!B36 -> Commerce Act levies | D13: ='Load Group Allocations'!D36 -> Regulated Asset Base | E13: ='Load Group Allocations'!E36 -> Passthrough | F13: ='Load Group Allocations'!F36 -> Capacity | G13: =IF(E13="distribution",'Raw data'!G13*'Raw Data v2'!I$1,'Raw data'!G13) -> 0.7199646889 | K13: Commerce Act levies | L13: Regulated Asset Base | M13: Regulated Asset Base | N13: Capacity | O13: Passthrough | P13: Passthrough and recoverable costs | Q13: ='Target Revenue'!K28 -> 348.358
A14: Load group Streetlighting | B14: ='Load Group Allocations'!$G$3 -> Dunedin | C14: ='Load Group Allocations'!B37 -> Electricity Authority levies | D14: ='Load Group Allocations'!D37 -> MWh | E14: ='Load Group Allocations'!E37 -> Passthrough | F14: ='Load Group Allocations'!F37 -> Capacity | G14: =IF(E14="distribution",'Raw data'!G14*'Raw Data v2'!I$1,'Raw data'!G14) -> 1.014892134 | K14: Electricity Authority levies | L14: MWh | M14: MWh | N14: Capacity | O14: Passthrough | P14: Passthrough and recoverable costs | Q14: ='Target Revenue'!K29 -> 335.1504
A15: Load group Streetlighting | B15: ='Load Group Allocations'!$G$3 -> Dunedin | C15: ='Load Group Allocations'!B38 -> Electricity Authority levies | D15: ='Load Group Allocations'!D38 -> ICP Count | E15: ='Load Group Allocations'!E38 -> Passthrough | F15: ='Load Group Allocations'!F38 -> Daily Fixed | G15: =IF(E15="distribution",'Raw data'!G15*'Raw Data v2'!I$1,'Raw data'!G15) -> 0.003517107741 | K15: Electricity Authority levies | L15: ICP Count | M15: ICP Count | N15: Daily Fixed | O15: Passthrough | P15: Passthrough and recoverable costs | Q15: ='Target Revenue'!K30 -> 83.7876 | T15: Pricing Area | U15: Central Otago
A16: Load group Streetlighting | B16: ='Load Group Allocations'!$G$3 -> Dunedin | C16: ='Load Group Allocations'!B39 -> Utilities Disputes levies | D16: ='Load Group Allocations'!D39 -> ICP Count | E16: ='Load Group Allocations'!E39 -> Passthrough | F16: ='Load Group Allocations'!F39 -> Daily Fixed | G16: =IF(E16="distribution",'Raw data'!G16*'Raw Data v2'!I$1,'Raw data'!G16) -> 0.003173463165 | K16: Utilities Disputes levies | L16: ICP Count | M16: ICP Count | N16: Daily Fixed | O16: Passthrough | P16: Passthrough and recoverable costs | Q16: ='Target Revenue'!K31 -> 75.601
A17: Load group Streetlighting | B17: ='Load Group Allocations'!$G$3 -> Dunedin | C17: ='Load Group Allocations'!B40 -> Opex Incentive Amount | D17: ='Load Group Allocations'!D40 -> Prior year distribution revenue | E17: ='Load Group Allocations'!E40 -> Passthrough | F17: ='Load Group Allocations'!F40 -> Daily Fixed | G17: =IF(E17="distribution",'Raw data'!G17*'Raw Data v2'!I$1,'Raw data'!G17) -> -27.41561577 | K17: Opex Incentive Amount | L17: Prior year distribution revenue | M17: Prior year distribution revenue | N17: Daily Fixed | O17: Passthrough | P17: Operational costs | Q17: ='Target Revenue'!K32 -> -6549.468 | T17: Sum of Amount | U17: Column Labels
A18: Load group Streetlighting | B18: ='Load Group Allocations'!$G$3 -> Dunedin | C18: ='Load Group Allocations'!B41 -> Capex Incentive Amount | D18: ='Load Group Allocations'!D41 -> Regulated Asset Base | E18: ='Load Group Allocations'!E41 -> Passthrough | F18: ='Load Group Allocations'!F41 -> Capacity | G18: =IF(E18="distribution",'Raw data'!G18*'Raw Data v2'!I$1,'Raw data'!G18) -> -2.795996775 | K18: Capex Incentive Amount | L18: Regulated Asset Base | M18: Regulated Asset Base | N18: Capacity | O18: Passthrough | P18: Capital related costs | Q18: ='Target Revenue'!K33 -> -1352.855021 | U18: Capacity | W18: Daily Fixed | Y18: Distance | AA18: Grand Total
A19: Load group Streetlighting | B19: ='Load Group Allocations'!$G$3 -> Dunedin | C19: ='Load Group Allocations'!B42 -> Transpower - Connection charge | D19: ='Load Group Allocations'!D42 -> MWh | E19: ='Load Group Allocations'!E42 -> Passthrough | F19: ='Load Group Allocations'!F42 -> Capacity | G19: =IF(E19="distribution",'Raw data'!G19*'Raw Data v2'!I$1,'Raw data'!G19) -> 13.92483069 | K19: Transmission costs and ACOT | L19: Transpower connection charge | M19: MWh | N19: Capacity | O19: Passthrough | P19: Passthrough and recoverable costs | Q19: ='Target Revenue'!K34 -> 6938.4463 | T19: Row Labels | U19: Distribution | V19: Passthrough | W19: Distribution | X19: Passthrough | Y19: Distribution | Z19: Passthrough
A20: Load group Streetlighting | B20: ='Load Group Allocations'!$G$3 -> Dunedin | C20: ='Load Group Allocations'!B43 -> Transpower - Benefit-based Charge | D20: ='Load Group Allocations'!D43 -> MWh | E20: ='Load Group Allocations'!E43 -> Passthrough | F20: ='Load Group Allocations'!F43 -> Capacity | G20: =IF(E20="distribution",'Raw data'!G20*'Raw Data v2'!I$1,'Raw data'!G20) -> 9.440898913 | K20: Transmission costs and ACOT | L20: Transpower benefit based charge | M20: MWh | N20: Capacity | O20: Passthrough | P20: Passthrough and recoverable costs | Q20: ='Target Revenue'!K35 -> 3075.385392 | T20: Load group 1 (incl residential) | U20: 15920.85578 | V20: 7561.414751 | W20: 9585.575079 | X20: 1046.503546 | Y20: 985.1087265 | Z20: 244.9679152 | AA20: 35344.42579
A21: Load group Streetlighting | B21: ='Load Group Allocations'!$G$3 -> Dunedin | C21: ='Load Group Allocations'!B44 -> Transpower - Residual Charge | D21: ='Load Group Allocations'!D44 -> MWh | E21: ='Load Group Allocations'!E44 -> Passthrough | F21: ='Load Group Allocations'!F44 -> Capacity | G21: =IF(E21="distribution",'Raw data'!G21*'Raw Data v2'!I$1,'Raw data'!G21) -> 78.78733768 | K21: Transmission costs and ACOT | L21: Transpower residual charge | M21: MWh | N21: Capacity | O21: Passthrough | P21: Passthrough and recoverable costs | Q21: ='Target Revenue'!K36 -> 24465.02968 | T21: Load group 2 | U21: 4316.66234 | V21: 3092.381977 | W21: 1027.518691 | X21: -79.26768532 | Y21: 267.0950482 | Z21: 66.4187773 | AA21: 8690.809149
A22: Load group Streetlighting | B22: ='Load Group Allocations'!$G$3 -> Dunedin | C22: ='Load Group Allocations'!B45 -> Transpower - Transitional Price Cap | D22: ='Load Group Allocations'!D45 -> MWh | E22: ='Load Group Allocations'!E45 -> Passthrough | F22: ='Load Group Allocations'!F45 -> Capacity | G22: =IF(E22="distribution",'Raw data'!G22*'Raw Data v2'!I$1,'Raw data'!G22) -> 0.0491230054 | K22: Transmission costs and ACOT | L22: Transpower transitional price cap | M22: MWh | N22: Capacity | O22: Passthrough | P22: Passthrough and recoverable costs | Q22: ='Target Revenue'!K37 -> 15.33373 | T22: Load group 3 | U22: 6124.235163 | V22: 2576.628994 | W22: 73.34250223 | X22: -155.5222924 | Y22: 105.4097572 | Z22: 26.21234363 | AA22: 8750.306468
A23: Load group Streetlighting | B23: ='Load Group Allocations'!$G$3 -> Dunedin | C23: ='Load Group Allocations'!B46 -> Transpower - Interconnection costs | D23: ='Load Group Allocations'!D46 -> MWh | E23: ='Load Group Allocations'!E46 -> Passthrough | F23: ='Load Group Allocations'!F46 -> Capacity | G23: =IF(E23="distribution",'Raw data'!G23*'Raw Data v2'!I$1,'Raw data'!G23) -> 0 | K23: Transmission costs and ACOT | L23: Transpower connection charge | M23: CPD | N23: CPD | O23: Passthrough | P23: Passthrough and recoverable costs | Q23: ='Target Revenue'!K38 -> 0 | T23: Load group 4 | U23: 6915.798243 | V23: 2847.972062 | W23: 19.95981248 | X23: -191.8374383 | Y23: 119.0340661 | Z23: 29.60031338 | AA23: 9740.527058
A24: Load group Streetlighting | B24: ='Load Group Allocations'!$G$3 -> Dunedin | C24: ='Load Group Allocations'!B47 -> Transpower - New investment contract | D24: ='Load Group Allocations'!D47 -> MWh | E24: ='Load Group Allocations'!E47 -> Passthrough | F24: ='Load Group Allocations'!F47 -> Capacity | G24: =IF(E24="distribution",'Raw data'!G24*'Raw Data v2'!I$1,'Raw data'!G24) -> 4.952026172 | K24: Transmission costs and ACOT | L24: Transpower new investment contract | M24: CPD | N24: CPD | O24: Passthrough | P24: Passthrough and recoverable costs | Q24: ='Target Revenue'!K39 -> 2467.48908 | T24: Load group 5 | U24: 1707.615406 | V24: 620.2617362 | W24: 0.6065790127 | X24: -12.61028913 | Y24: 29.39131508 | Z24: 7.308766014 | AA24: 2352.573514
A25: Load group Streetlighting | B25: ='Load Group Allocations'!$G$3 -> Dunedin | C25: ='Load Group Allocations'!B48 -> Distributed Generation Allowance | D25: ='Load Group Allocations'!D48 -> MWh | E25: ='Load Group Allocations'!E48 -> Passthrough | F25: ='Load Group Allocations'!F48 -> Capacity | G25: =IF(E25="distribution",'Raw data'!G25*'Raw Data v2'!I$1,'Raw data'!G25) -> 0 | K25: Transmission costs and ACOT | L25: Distributed Generation Allowance | M25: CPD | N25: CPD | O25: Passthrough | P25: Passthrough and recoverable costs | Q25: ='Target Revenue'!K40 -> 0 | T25: Load group Streetlighting | U25: 99.91449446 | V25: 47.42289912 | W25: 3.182360118 | X25: -5.298211344 | Y25: 6.182245589 | Z25: 1.537344836 | AA25: 152.9411328
A26: Load group Streetlighting | B26: ='Load Group Allocations'!$G$3 -> Dunedin | C26: ='Load Group Allocations'!B49 -> Wash-up Drawdown Amount | D26: ='Load Group Allocations'!D49 -> 0 | E26: ='Load Group Allocations'!E49 -> Passthrough | F26: ='Load Group Allocations'!F49 -> Daily Fixed | G26: =IF(E26="distribution",'Raw data'!G26*'Raw Data v2'!I$1,'Raw data'!G26) -> 0 | K26: Wash-up Drawdown Amount | L26: ICP Count | M26: ICP Count | N26: Daily Fixed | O26: Passthrough | P26: Operational costs | Q26: ='Target Revenue'!K41 -> 0 | T26: Grand Total | U26: 35085.08142 | V26: 16746.08242 | W26: 10710.18502 | X26: 601.9676292 | Y26: 1512.221159 | Z26: 376.0454604 | AA26: 65031.58312
A27: Load group Streetlighting | B27: ='Load Group Allocations'!$G$3 -> Dunedin | C27: ='Load Group Allocations'!B50 -> Quality Incentive Adjustments | D27: ='Load Group Allocations'!D50 -> ICP Count | E27: ='Load Group Allocations'!E50 -> Passthrough | F27: ='Load Group Allocations'!F50 -> Daily Fixed | G27: =IF(E27="distribution",'Raw data'!G27*'Raw Data v2'!I$1,'Raw data'!G27) -> 0.001226636428 | K27: Quality Incentive Adjustments | L27: ICP Count | M27: ICP Count | N27: Daily Fixed | O27: Passthrough | P27: Operational costs | Q27: ='Target Revenue'!K42 -> 29.222
A28: Load group Streetlighting | B28: ='Load Group Allocations'!$G$3 -> Dunedin | C28: ='Load Group Allocations'!B51 -> Capex Wash-up Adjustment | D28: ='Load Group Allocations'!D51 -> Regulated Asset Base | E28: ='Load Group Allocations'!E51 -> Passthrough | F28: ='Load Group Allocations'!F51 -> Capacity | G28: =IF(E28="distribution",'Raw data'!G28*'Raw Data v2'!I$1,'Raw data'!G28) -> 0 | K28: Capex Wash-up Adjustment | L28: Regulated Asset Base | M28: Regulated Asset Base | N28: Capacity | O28: Passthrough | P28: Capital related costs | Q28: ='Target Revenue'!K43 -> 0
A29: Load group Streetlighting | B29: ='Load Group Allocations'!$G$3 -> Dunedin | C29: ='Load Group Allocations'!B52 -> Fire and Emergency Management New Zealand (FENZ) levies | D29: ='Load Group Allocations'!D52 -> Regulated Asset Base | E29: ='Load Group Allocations'!E52 -> Passthrough | F29: ='Load Group Allocations'!F52 -> Capacity | G29: =IF(E29="distribution",'Raw data'!G29*'Raw Data v2'!I$1,'Raw data'!G29) -> 0.0913488241 | K29: Fire and Emergency Management New Zealand (FENZ) levies | L29: Regulated Asset Base | M29: Regulated Asset Base | N29: Capacity | O29: Passthrough | P29: Passthrough and recoverable costs | Q29: ='Target Revenue'!K44 -> 44.19952 | T29: Pricing Area | U29: Queenstown
A30: Load group Streetlighting | B30: ='Load Group Allocations'!$H$3 -> Central Otago | C30: ='Load Group Allocations'!B25 -> Service interruptions and emergencies | D30: ='Load Group Allocations'!D25 -> CPD | E30: ='Load Group Allocations'!E25 -> Distribution | F30: ='Load Group Allocations'!F25 -> Capacity | G30: =IF(E30="distribution",'Raw data'!G30*'Raw Data v2'!I$1,'Raw data'!G30) -> 4.481382112
A31: Load group Streetlighting | B31: ='Load Group Allocations'!$H$3 -> Central Otago | C31: ='Load Group Allocations'!B26 -> Service interruptions and emergencies | D31: ='Load Group Allocations'!D26 -> ICP Count | E31: ='Load Group Allocations'!E26 -> Distribution | F31: ='Load Group Allocations'!F26 -> Daily Fixed | G31: =IF(E31="distribution",'Raw data'!G31*'Raw Data v2'!I$1,'Raw data'!G31) -> 0.1754331521 | Q31: =SUM(Q2:Q29) -> 212313.2427 | T31: Sum of Amount | U31: Column Labels
A32: Load group Streetlighting | B32: ='Load Group Allocations'!$H$3 -> Central Otago | C32: ='Load Group Allocations'!B27 -> Vegetation management | D32: ='Load Group Allocations'!D27 -> CPD | E32: ='Load Group Allocations'!E27 -> Distribution | F32: ='Load Group Allocations'!F27 -> Distance | G32: =IF(E32="distribution",'Raw data'!G32*'Raw Data v2'!I$1,'Raw data'!G32) -> 6.182245589 | U32: Capacity | W32: Daily Fixed | Y32: Distance | AA32: Grand Total
A33: Load group Streetlighting | B33: ='Load Group Allocations'!$H$3 -> Central Otago | C33: ='Load Group Allocations'!B28 -> Routine and corrective maintenance and inspection | D33: ='Load Group Allocations'!D28 -> CPD | E33: ='Load Group Allocations'!E28 -> Distribution | F33: ='Load Group Allocations'!F28 -> Capacity | G33: =IF(E33="distribution",'Raw data'!G33*'Raw Data v2'!I$1,'Raw data'!G33) -> 23.98687671 | K33: Sum of Amount | L33: Column Labels | T33: Row Labels | U33: Distribution | V33: Passthrough | W33: Distribution | X33: Passthrough | Y33: Distribution | Z33: Passthrough
A34: Load group Streetlighting | B34: ='Load Group Allocations'!$H$3 -> Central Otago | C34: ='Load Group Allocations'!B29 -> System operations and network support | D34: ='Load Group Allocations'!D29 -> ICP Count | E34: ='Load Group Allocations'!E29 -> Distribution | F34: ='Load Group Allocations'!F29 -> Daily Fixed | G34: =IF(E34="distribution",'Raw data'!G34*'Raw Data v2'!I$1,'Raw data'!G34) -> 0.1274425355 | K34: Row Labels | L34: Central Otago | M34: Dunedin | N34: Queenstown | O34: Grand Total | T34: Load group 1 (incl residential) | U34: 7415.995201 | V34: 6098.80895 | W34: 5808.096181 | X34: 799.0690503 | Y34: 200.3979378 | Z34: 49.83314402 | AA34: 20372.20046
A35: Load group Streetlighting | B35: ='Load Group Allocations'!$H$3 -> Central Otago | C35: ='Load Group Allocations'!B30 -> Business support | D35: ='Load Group Allocations'!D30 -> ICP Count | E35: ='Load Group Allocations'!E30 -> Distribution | F35: ='Load Group Allocations'!F30 -> Daily Fixed | G35: =IF(E35="distribution",'Raw data'!G35*'Raw Data v2'!I$1,'Raw data'!G35) -> 2.87948443 | K35: Distribution | L35: 47307.48761 | M35: 71946.24676 | N35: 25128.26563 | O35: 144382 | T35: Load group 2 | U35: 2683.355568 | V35: 3220.711345 | W35: 915.2206136 | X35: -16.22445975 | Y35: 72.51068909 | Z35: 18.03130138 | AA35: 6893.605058
A36: Load group Streetlighting | B36: ='Load Group Allocations'!$H$3 -> Central Otago | C36: ='Load Group Allocations'!B31 -> Depreciation | D36: ='Load Group Allocations'!D31 -> Regulated Asset Base (Depreciation) | E36: ='Load Group Allocations'!E31 -> Distribution | F36: ='Load Group Allocations'!F31 -> Capacity | G36: =IF(E36="distribution",'Raw data'!G36*'Raw Data v2'!I$1,'Raw data'!G36) -> 25.87116223 | K36: Load group 1 (incl residential) | L36: 26491.53958 | M36: 49620.18216 | N36: 13424.48932 | O36: 89536.21106 | T36: Load group 3 | U36: 2924.21375 | V36: 1631.758971 | W36: 36.70737184 | X36: -118.1130229 | Y36: 23.40954551 | Z36: 5.82127374 | AA36: 4503.797889
A37: Load group Streetlighting | B37: ='Load Group Allocations'!$H$3 -> Central Otago | C37: ='Load Group Allocations'!B32 -> Asset revaluations and other regulatory revenue | D37: ='Load Group Allocations'!D32 -> Regulated Asset Base | E37: ='Load Group Allocations'!E32 -> Distribution | F37: ='Load Group Allocations'!F32 -> Capacity | G37: =IF(E37="distribution",'Raw data'!G37*'Raw Data v2'!I$1,'Raw data'!G37) -> -16.79132157 | K37: Load group 2 | L37: 5611.27608 | M37: 6678.526602 | N37: 3671.086871 | O37: 15960.88955 | T37: Load group 4 | U37: 4653.774675 | V37: 2937.451343 | W37: 16.36642346 | X37: -71.67566983 | Y37: 37.25539901 | Z37: 9.264335177 | AA37: 7582.436506
A38: Load group Streetlighting | B38: ='Load Group Allocations'!$H$3 -> Central Otago | C38: ='Load Group Allocations'!B33 -> Tax | D38: ='Load Group Allocations'!D33 -> Regulated Asset Base | E38: ='Load Group Allocations'!E33 -> Distribution | F38: ='Load Group Allocations'!F33 -> Capacity | G38: =IF(E38="distribution",'Raw data'!G38*'Raw Data v2'!I$1,'Raw data'!G38) -> 12.76066267 | K38: Load group 3 | L38: 6302.987423 | M38: 6213.815263 | N38: 2984.330667 | O38: 15501.13335 | T38: Load group 5 | U38: 293.5116263 | V38: 394.3305423 | W38: 0.909245748 | X38: -2.636234007 | Y38: 2.349682466 | Z38: 0.5842977527 | AA38: 689.0491606
A39: Load group Streetlighting | B39: ='Load Group Allocations'!$H$3 -> Central Otago | C39: ='Load Group Allocations'!B34 -> Return on capital | D39: ='Load Group Allocations'!D34 -> Regulated Asset Base | E39: ='Load Group Allocations'!E34 -> Distribution | F39: ='Load Group Allocations'!F34 -> Capacity | G39: =IF(E39="distribution",'Raw data'!G39*'Raw Data v2'!I$1,'Raw data'!G39) -> 49.60573231 | K39: Load group 4 | L39: 7054.792121 | M39: 6766.401517 | N39: 4707.396497 | O39: 18528.59014 | T39: Load group Streetlighting | U39: 41.70099024 | V39: 35.28986969 | W39: 1.363868622 | X39: -3.201263919 | Y39: 1.126860552 | Z39: 0.2802174753 | AA39: 76.56054266
A40: Load group Streetlighting | B40: ='Load Group Allocations'!$H$3 -> Central Otago | C40: ='Load Group Allocations'!B35 -> Local Authority rates | D40: ='Load Group Allocations'!D35 -> Regulated Asset Base | E40: ='Load Group Allocations'!E35 -> Passthrough | F40: ='Load Group Allocations'!F35 -> Capacity | G40: =IF(E40="distribution",'Raw data'!G40*'Raw Data v2'!I$1,'Raw data'!G40) -> 1.784499112 | K40: Load group 5 | L40: 1737.6133 | M40: 2442.189665 | N40: 296.7705545 | O40: 4476.57352 | T40: Grand Total | U40: 18012.55181 | V40: 14318.35102 | W40: 6778.663704 | X40: 587.2184 | Y40: 337.0501144 | Z40: 83.81456954 | AA40: 40117.64962
A41: Load group Streetlighting | B41: ='Load Group Allocations'!$H$3 -> Central Otago | C41: ='Load Group Allocations'!B36 -> Commerce Act levies | D41: ='Load Group Allocations'!D36 -> Regulated Asset Base | E41: ='Load Group Allocations'!E36 -> Passthrough | F41: ='Load Group Allocations'!F36 -> Capacity | G41: =IF(E41="distribution",'Raw data'!G41*'Raw Data v2'!I$1,'Raw data'!G41) -> 0.3029523267 | K41: Load group Streetlighting | L41: 109.2791002 | M41: 225.1315583 | N41: 44.19171941 | O41: 378.6023779
A42: Load group Streetlighting | B42: ='Load Group Allocations'!$H$3 -> Central Otago | C42: ='Load Group Allocations'!B37 -> Electricity Authority levies | D42: ='Load Group Allocations'!D37 -> MWh | E42: ='Load Group Allocations'!E37 -> Passthrough | F42: ='Load Group Allocations'!F37 -> Capacity | G42: =IF(E42="distribution",'Raw data'!G42*'Raw Data v2'!I$1,'Raw data'!G42) -> 0.2250186694 | K42: Passthrough | L42: 17724.09551 | M42: 35217.76316 | N42: 14989.38399 | O42: 67931.24266
A43: Load group Streetlighting | B43: ='Load Group Allocations'!$H$3 -> Central Otago | C43: ='Load Group Allocations'!B38 -> Electricity Authority levies | D43: ='Load Group Allocations'!D38 -> ICP Count | E43: ='Load Group Allocations'!E38 -> Passthrough | F43: ='Load Group Allocations'!F38 -> Daily Fixed | G43: =IF(E43="distribution",'Raw data'!G43*'Raw Data v2'!I$1,'Raw data'!G43) -> 0.006154938546 | K43: Load group 1 (incl residential) | L43: 8852.886212 | M43: 21277.42996 | N43: 6947.711144 | O43: 37078.02732
A44: Load group Streetlighting | B44: ='Load Group Allocations'!$H$3 -> Central Otago | C44: ='Load Group Allocations'!B39 -> Utilities Disputes levies | D44: ='Load Group Allocations'!D39 -> ICP Count | E44: ='Load Group Allocations'!E39 -> Passthrough | F44: ='Load Group Allocations'!F39 -> Daily Fixed | G44: =IF(E44="distribution",'Raw data'!G44*'Raw Data v2'!I$1,'Raw data'!G44) -> 0.005553560539 | K44: Load group 2 | L44: 3079.533069 | M44: 4462.411127 | N44: 3222.518187 | O44: 10764.46238
A45: Load group Streetlighting | B45: ='Load Group Allocations'!$H$3 -> Central Otago | C45: ='Load Group Allocations'!B40 -> Opex Incentive Amount | D45: ='Load Group Allocations'!D40 -> Prior year distribution revenue | E45: ='Load Group Allocations'!E40 -> Passthrough | F45: ='Load Group Allocations'!F40 -> Daily Fixed | G45: =IF(E45="distribution",'Raw data'!G45*'Raw Data v2'!I$1,'Raw data'!G45) -> -6.103426946 | K45: Load group 3 | L45: 2447.319046 | M45: 3476.420747 | N45: 1519.467222 | O45: 7443.207014
A46: Load group Streetlighting | B46: ='Load Group Allocations'!$H$3 -> Central Otago | C46: ='Load Group Allocations'!B41 -> Capex Incentive Amount | D46: ='Load Group Allocations'!D41 -> Regulated Asset Base | E46: ='Load Group Allocations'!E41 -> Passthrough | F46: ='Load Group Allocations'!F41 -> Capacity | G46: =IF(E46="distribution",'Raw data'!G46*'Raw Data v2'!I$1,'Raw data'!G46) -> -1.176521212 | K46: Load group 4 | L46: 2685.734937 | M46: 4120.837412 | N46: 2875.040009 | O46: 9681.612358
A47: Load group Streetlighting | B47: ='Load Group Allocations'!$H$3 -> Central Otago | C47: ='Load Group Allocations'!B42 -> Transpower - Connection charge | D47: ='Load Group Allocations'!D42 -> MWh | E47: ='Load Group Allocations'!E42 -> Passthrough | F47: ='Load Group Allocations'!F42 -> Capacity | G47: =IF(E47="distribution",'Raw data'!G47*'Raw Data v2'!I$1,'Raw data'!G47) -> 3.542459796 | K47: Load group 5 | L47: 614.9602131 | M47: 1741.662657 | N47: 392.2786061 | O47: 2748.901476
A48: Load group Streetlighting | B48: ='Load Group Allocations'!$H$3 -> Central Otago | C48: ='Load Group Allocations'!B43 -> Transpower - Benefit-based Charge | D48: ='Load Group Allocations'!D43 -> MWh | E48: ='Load Group Allocations'!E43 -> Passthrough | F48: ='Load Group Allocations'!F43 -> Capacity | G48: =IF(E48="distribution",'Raw data'!G48*'Raw Data v2'!I$1,'Raw data'!G48) -> 1.390988409 | K48: Load group Streetlighting | L48: 43.66203261 | M48: 139.0012567 | N48: 32.36882324 | O48: 215.0321126
A49: Load group Streetlighting | B49: ='Load Group Allocations'!$H$3 -> Central Otago | C49: ='Load Group Allocations'!B44 -> Transpower - Residual Charge | D49: ='Load Group Allocations'!D44 -> MWh | E49: ='Load Group Allocations'!E44 -> Passthrough | F49: ='Load Group Allocations'!F44 -> Capacity | G49: =IF(E49="distribution",'Raw data'!G49*'Raw Data v2'!I$1,'Raw data'!G49) -> 15.20020519 | K49: Grand Total | L49: 65031.58312 | M49: 107164.0099 | N49: 40117.64962 | O49: 212313.2427
A50: Load group Streetlighting | B50: ='Load Group Allocations'!$H$3 -> Central Otago | C50: ='Load Group Allocations'!B45 -> Transpower - Transitional Price Cap | D50: ='Load Group Allocations'!D45 -> MWh | E50: ='Load Group Allocations'!E45 -> Passthrough | F50: ='Load Group Allocations'!F45 -> Capacity | G50: =IF(E50="distribution",'Raw data'!G50*'Raw Data v2'!I$1,'Raw data'!G50) -> 0.009237510851
A51: Load group Streetlighting | B51: ='Load Group Allocations'!$H$3 -> Central Otago | C51: ='Load Group Allocations'!B46 -> Transpower - Interconnection costs | D51: ='Load Group Allocations'!D46 -> MWh | E51: ='Load Group Allocations'!E46 -> Passthrough | F51: ='Load Group Allocations'!F46 -> Capacity | G51: =IF(E51="distribution",'Raw data'!G51*'Raw Data v2'!I$1,'Raw data'!G51) -> 0
A52: Load group Streetlighting | B52: ='Load Group Allocations'!$H$3 -> Central Otago | C52: ='Load Group Allocations'!B47 -> Transpower - New investment contract | D52: ='Load Group Allocations'!D47 -> MWh | E52: ='Load Group Allocations'!E47 -> Passthrough | F52: ='Load Group Allocations'!F47 -> Capacity | G52: =IF(E52="distribution",'Raw data'!G52*'Raw Data v2'!I$1,'Raw data'!G52) -> 1.259789366
A53: Load group Streetlighting | B53: ='Load Group Allocations'!$H$3 -> Central Otago | C53: ='Load Group Allocations'!B48 -> Distributed Generation Allowance | D53: ='Load Group Allocations'!D48 -> MWh | E53: ='Load Group Allocations'!E48 -> Passthrough | F53: ='Load Group Allocations'!F48 -> Capacity | G53: =IF(E53="distribution",'Raw data'!G53*'Raw Data v2'!I$1,'Raw data'!G53) -> 0
A54: Load group Streetlighting | B54: ='Load Group Allocations'!$H$3 -> Central Otago | C54: ='Load Group Allocations'!B49 -> Wash-up Drawdown Amount | D54: ='Load Group Allocations'!D49 -> 0 | E54: ='Load Group Allocations'!E49 -> Passthrough | F54: ='Load Group Allocations'!F49 -> Daily Fixed | G54: =IF(E54="distribution",'Raw data'!G54*'Raw Data v2'!I$1,'Raw data'!G54) -> 0
A55: Load group Streetlighting | B55: ='Load Group Allocations'!$H$3 -> Central Otago | C55: ='Load Group Allocations'!B50 -> Quality Incentive Adjustments | D55: ='Load Group Allocations'!D50 -> ICP Count | E55: ='Load Group Allocations'!E50 -> Passthrough | F55: ='Load Group Allocations'!F50 -> Daily Fixed | G55: =IF(E55="distribution",'Raw data'!G55*'Raw Data v2'!I$1,'Raw data'!G55) -> 0.002146613749
A56: Load group Streetlighting | B56: ='Load Group Allocations'!$H$3 -> Central Otago | C56: ='Load Group Allocations'!B51 -> Capex Wash-up Adjustment | D56: ='Load Group Allocations'!D51 -> Regulated Asset Base | E56: ='Load Group Allocations'!E51 -> Passthrough | F56: ='Load Group Allocations'!F51 -> Capacity | G56: =IF(E56="distribution",'Raw data'!G56*'Raw Data v2'!I$1,'Raw data'!G56) -> 0
A57: Load group Streetlighting | B57: ='Load Group Allocations'!$H$3 -> Central Otago | C57: ='Load Group Allocations'!B52 -> Fire and Emergency Management New Zealand (FENZ) levies | D57: ='Load Group Allocations'!D52 -> Regulated Asset Base | E57: ='Load Group Allocations'!E52 -> Passthrough | F57: ='Load Group Allocations'!F52 -> Capacity | G57: =IF(E57="distribution",'Raw data'!G57*'Raw Data v2'!I$1,'Raw data'!G57) -> 0.03843846682
A58: Load group Streetlighting | B58: ='Load Group Allocations'!$I$3 -> Queenstown | C58: ='Load Group Allocations'!B25 -> Service interruptions and emergencies | D58: ='Load Group Allocations'!D25 -> CPD | E58: ='Load Group Allocations'!E25 -> Distribution | F58: ='Load Group Allocations'!F25 -> Capacity | G58: =IF(E58="distribution",'Raw data'!G58*'Raw Data v2'!I$1,'Raw data'!G58) -> 1.315932888
A59: Load group Streetlighting | B59: ='Load Group Allocations'!$I$3 -> Queenstown | C59: ='Load Group Allocations'!B26 -> Service interruptions and emergencies | D59: ='Load Group Allocations'!D26 -> ICP Count | E59: ='Load Group Allocations'!E26 -> Distribution | F59: ='Load Group Allocations'!F26 -> Daily Fixed | G59: =IF(E59="distribution",'Raw data'!G59*'Raw Data v2'!I$1,'Raw data'!G59) -> 0.07518563663
A60: Load group Streetlighting | B60: ='Load Group Allocations'!$I$3 -> Queenstown | C60: ='Load Group Allocations'!B27 -> Vegetation management | D60: ='Load Group Allocations'!D27 -> CPD | E60: ='Load Group Allocations'!E27 -> Distribution | F60: ='Load Group Allocations'!F27 -> Distance | G60: =IF(E60="distribution",'Raw data'!G60*'Raw Data v2'!I$1,'Raw data'!G60) -> 1.126860552
A61: Load group Streetlighting | B61: ='Load Group Allocations'!$I$3 -> Queenstown | C61: ='Load Group Allocations'!B28 -> Routine and corrective maintenance and inspection | D61: ='Load Group Allocations'!D28 -> CPD | E61: ='Load Group Allocations'!E28 -> Distribution | F61: ='Load Group Allocations'!F28 -> Capacity | G61: =IF(E61="distribution",'Raw data'!G61*'Raw Data v2'!I$1,'Raw data'!G61) -> 7.043612701
A62: Load group Streetlighting | B62: ='Load Group Allocations'!$I$3 -> Queenstown | C62: ='Load Group Allocations'!B29 -> System operations and network support | D62: ='Load Group Allocations'!D29 -> ICP Count | E62: ='Load Group Allocations'!E29 -> Distribution | F62: ='Load Group Allocations'!F29 -> Daily Fixed | G62: =IF(E62="distribution",'Raw data'!G62*'Raw Data v2'!I$1,'Raw data'!G62) -> 0.05461822951
A63: Load group Streetlighting | B63: ='Load Group Allocations'!$I$3 -> Queenstown | C63: ='Load Group Allocations'!B30 -> Business support | D63: ='Load Group Allocations'!D30 -> ICP Count | E63: ='Load Group Allocations'!E30 -> Distribution | F63: ='Load Group Allocations'!F30 -> Daily Fixed | G63: =IF(E63="distribution",'Raw data'!G63*'Raw Data v2'!I$1,'Raw data'!G63) -> 1.234064756
A64: Load group Streetlighting | B64: ='Load Group Allocations'!$I$3 -> Queenstown | C64: ='Load Group Allocations'!B31 -> Depreciation | D64: ='Load Group Allocations'!D31 -> Regulated Asset Base (Depreciation) | E64: ='Load Group Allocations'!E31 -> Distribution | F64: ='Load Group Allocations'!F31 -> Capacity | G64: =IF(E64="distribution",'Raw data'!G64*'Raw Data v2'!I$1,'Raw data'!G64) -> 13.30754477
A65: Load group Streetlighting | B65: ='Load Group Allocations'!$I$3 -> Queenstown | C65: ='Load Group Allocations'!B32 -> Asset revaluations and other regulatory revenue | D65: ='Load Group Allocations'!D32 -> Regulated Asset Base | E65: ='Load Group Allocations'!E32 -> Distribution | F65: ='Load Group Allocations'!F32 -> Capacity | G65: =IF(E65="distribution",'Raw data'!G65*'Raw Data v2'!I$1,'Raw data'!G65) -> -7.381132492
A66: Load group Streetlighting | B66: ='Load Group Allocations'!$I$3 -> Queenstown | C66: ='Load Group Allocations'!B33 -> Tax | D66: ='Load Group Allocations'!D33 -> Regulated Asset Base | E66: ='Load Group Allocations'!E33 -> Distribution | F66: ='Load Group Allocations'!F33 -> Capacity | G66: =IF(E66="distribution",'Raw data'!G66*'Raw Data v2'!I$1,'Raw data'!G66) -> 5.609334648
A67: Load group Streetlighting | B67: ='Load Group Allocations'!$I$3 -> Queenstown | C67: ='Load Group Allocations'!B34 -> Return on capital | D67: ='Load Group Allocations'!D34 -> Regulated Asset Base | E67: ='Load Group Allocations'!E34 -> Distribution | F67: ='Load Group Allocations'!F34 -> Capacity | G67: =IF(E67="distribution",'Raw data'!G67*'Raw Data v2'!I$1,'Raw data'!G67) -> 21.80569772
A68: =$A$2 -> Load group Streetlighting | B68: ='Load Group Allocations'!$I$3 -> Queenstown | C68: ='Load Group Allocations'!B35 -> Local Authority rates | D68: ='Load Group Allocations'!D35 -> Regulated Asset Base | E68: ='Load Group Allocations'!E35 -> Passthrough | F68: ='Load Group Allocations'!F35 -> Capacity | G68: =IF(E68="distribution",'Raw data'!G68*'Raw Data v2'!I$1,'Raw data'!G68) -> 0.7844304761
A69: Load group Streetlighting | B69: ='Load Group Allocations'!$I$3 -> Queenstown | C69: ='Load Group Allocations'!B36 -> Commerce Act levies | D69: ='Load Group Allocations'!D36 -> Regulated Asset Base | E69: ='Load Group Allocations'!E36 -> Passthrough | F69: ='Load Group Allocations'!F36 -> Capacity | G69: =IF(E69="distribution",'Raw data'!G69*'Raw Data v2'!I$1,'Raw data'!G69) -> 0.1331718443
A70: Load group Streetlighting | B70: ='Load Group Allocations'!$I$3 -> Queenstown | C70: ='Load Group Allocations'!B37 -> Electricity Authority levies | D70: ='Load Group Allocations'!D37 -> MWh | E70: ='Load Group Allocations'!E37 -> Passthrough | F70: ='Load Group Allocations'!F37 -> Capacity | G70: =IF(E70="distribution",'Raw data'!G70*'Raw Data v2'!I$1,'Raw data'!G70) -> 0.1724435616
A71: Load group Streetlighting | B71: ='Load Group Allocations'!$I$3 -> Queenstown | C71: ='Load Group Allocations'!B38 -> Electricity Authority levies | D71: ='Load Group Allocations'!D38 -> ICP Count | E71: ='Load Group Allocations'!E38 -> Passthrough | F71: ='Load Group Allocations'!F38 -> Daily Fixed | G71: =IF(E71="distribution",'Raw data'!G71*'Raw Data v2'!I$1,'Raw data'!G71) -> 0.002637830805
A72: Load group Streetlighting | B72: ='Load Group Allocations'!$I$3 -> Queenstown | C72: ='Load Group Allocations'!B39 -> Utilities Disputes levies | D72: ='Load Group Allocations'!D39 -> ICP Count | E72: ='Load Group Allocations'!E39 -> Passthrough | F72: ='Load Group Allocations'!F39 -> Daily Fixed | G72: =IF(E72="distribution",'Raw data'!G72*'Raw Data v2'!I$1,'Raw data'!G72) -> 0.002380097374
A73: Load group Streetlighting | B73: ='Load Group Allocations'!$I$3 -> Queenstown | C73: ='Load Group Allocations'!B40 -> Opex Incentive Amount | D73: ='Load Group Allocations'!D40 -> Prior year distribution revenue | E73: ='Load Group Allocations'!E40 -> Passthrough | F73: ='Load Group Allocations'!F40 -> Daily Fixed | G73: =IF(E73="distribution",'Raw data'!G73*'Raw Data v2'!I$1,'Raw data'!G73) -> -3.54635632
A74: Load group Streetlighting | B74: ='Load Group Allocations'!$I$3 -> Queenstown | C74: ='Load Group Allocations'!B41 -> Capex Incentive Amount | D74: ='Load Group Allocations'!D41 -> Regulated Asset Base | E74: ='Load Group Allocations'!E41 -> Passthrough | F74: ='Load Group Allocations'!F41 -> Capacity | G74: =IF(E74="distribution",'Raw data'!G74*'Raw Data v2'!I$1,'Raw data'!G74) -> -0.5171754296
A75: Load group Streetlighting | B75: ='Load Group Allocations'!$I$3 -> Queenstown | C75: ='Load Group Allocations'!B42 -> Transpower - Connection charge | D75: ='Load Group Allocations'!D42 -> MWh | E75: ='Load Group Allocations'!E42 -> Passthrough | F75: ='Load Group Allocations'!F42 -> Capacity | G75: =IF(E75="distribution",'Raw data'!G75*'Raw Data v2'!I$1,'Raw data'!G75) -> 7.908822639
A76: Load group Streetlighting | B76: ='Load Group Allocations'!$I$3 -> Queenstown | C76: ='Load Group Allocations'!B43 -> Transpower - Benefit-based Charge | D76: ='Load Group Allocations'!D43 -> MWh | E76: ='Load Group Allocations'!E43 -> Passthrough | F76: ='Load Group Allocations'!F43 -> Capacity | G76: =IF(E76="distribution",'Raw data'!G76*'Raw Data v2'!I$1,'Raw data'!G76) -> 2.127221668
A77: Load group Streetlighting | B77: ='Load Group Allocations'!$I$3 -> Queenstown | C77: ='Load Group Allocations'!B44 -> Transpower - Residual Charge | D77: ='Load Group Allocations'!D44 -> MWh | E77: ='Load Group Allocations'!E44 -> Passthrough | F77: ='Load Group Allocations'!F44 -> Capacity | G77: =IF(E77="distribution",'Raw data'!G77*'Raw Data v2'!I$1,'Raw data'!G77) -> 11.47408104
A78: Load group Streetlighting | B78: ='Load Group Allocations'!$I$3 -> Queenstown | C78: ='Load Group Allocations'!B45 -> Transpower - Transitional Price Cap | D78: ='Load Group Allocations'!D45 -> MWh | E78: ='Load Group Allocations'!E45 -> Passthrough | F78: ='Load Group Allocations'!F45 -> Capacity | G78: =IF(E78="distribution",'Raw data'!G78*'Raw Data v2'!I$1,'Raw data'!G78) -> 0.007572823533
A79: Load group Streetlighting | B79: ='Load Group Allocations'!$I$3 -> Queenstown | C79: ='Load Group Allocations'!B46 -> Transpower - Interconnection costs | D79: ='Load Group Allocations'!D46 -> MWh | E79: ='Load Group Allocations'!E46 -> Passthrough | F79: ='Load Group Allocations'!F46 -> Capacity | G79: =IF(E79="distribution",'Raw data'!G79*'Raw Data v2'!I$1,'Raw data'!G79) -> 0
A80: Load group Streetlighting | B80: ='Load Group Allocations'!$I$3 -> Queenstown | C80: ='Load Group Allocations'!B47 -> Transpower - New investment contract | D80: ='Load Group Allocations'!D47 -> MWh | E80: ='Load Group Allocations'!E47 -> Passthrough | F80: ='Load Group Allocations'!F47 -> Capacity | G80: =IF(E80="distribution",'Raw data'!G80*'Raw Data v2'!I$1,'Raw data'!G80) -> 2.812579741
A81: Load group Streetlighting | B81: ='Load Group Allocations'!$I$3 -> Queenstown | C81: ='Load Group Allocations'!B48 -> Distributed Generation Allowance | D81: ='Load Group Allocations'!D48 -> MWh | E81: ='Load Group Allocations'!E48 -> Passthrough | F81: ='Load Group Allocations'!F48 -> Capacity | G81: =IF(E81="distribution",'Raw data'!G81*'Raw Data v2'!I$1,'Raw data'!G81) -> 0
A82: Load group Streetlighting | B82: ='Load Group Allocations'!$I$3 -> Queenstown | C82: ='Load Group Allocations'!B49 -> Wash-up Drawdown Amount | D82: ='Load Group Allocations'!D49 -> 0 | E82: ='Load Group Allocations'!E49 -> Passthrough | F82: ='Load Group Allocations'!F49 -> Daily Fixed | G82: =IF(E82="distribution",'Raw data'!G82*'Raw Data v2'!I$1,'Raw data'!G82) -> 0
A83: Load group Streetlighting | B83: ='Load Group Allocations'!$I$3 -> Queenstown | C83: ='Load Group Allocations'!B50 -> Quality Incentive Adjustments | D83: ='Load Group Allocations'!D50 -> ICP Count | E83: ='Load Group Allocations'!E50 -> Passthrough | F83: ='Load Group Allocations'!F50 -> Daily Fixed | G83: =IF(E83="distribution",'Raw data'!G83*'Raw Data v2'!I$1,'Raw data'!G83) -> 0.0009199773212
A84: Load group Streetlighting | B84: ='Load Group Allocations'!$I$3 -> Queenstown | C84: ='Load Group Allocations'!B51 -> Capex Wash-up Adjustment | D84: ='Load Group Allocations'!D51 -> Regulated Asset Base | E84: ='Load Group Allocations'!E51 -> Passthrough | F84: ='Load Group Allocations'!F51 -> Capacity | G84: =IF(E84="distribution",'Raw data'!G84*'Raw Data v2'!I$1,'Raw data'!G84) -> 0
A85: Load group Streetlighting | B85: ='Load Group Allocations'!$I$3 -> Queenstown | C85: ='Load Group Allocations'!B52 -> Fire and Emergency Management New Zealand (FENZ) levies | D85: ='Load Group Allocations'!D52 -> Regulated Asset Base | E85: ='Load Group Allocations'!E52 -> Passthrough | F85: ='Load Group Allocations'!F52 -> Capacity | G85: =IF(E85="distribution",'Raw data'!G85*'Raw Data v2'!I$1,'Raw data'!G85) -> 0.01689678893
A86: ='Load Group Allocations'!B58 -> Load group 1 (incl residential) | B86: ='Load Group Allocations'!$G$3 -> Dunedin | C86: ='Load Group Allocations'!B25 -> Service interruptions and emergencies | D86: ='Load Group Allocations'!D25 -> CPD | E86: ='Load Group Allocations'!E25 -> Distribution | F86: ='Load Group Allocations'!F25 -> Capacity | G86: =IF(E86="distribution",'Raw data'!G86*'Raw Data v2'!I$1,'Raw data'!G86) -> 589.6734684
A87: =$A$86 -> Load group 1 (incl residential) | B87: ='Load Group Allocations'!$G$3 -> Dunedin | C87: ='Load Group Allocations'!B26 -> Service interruptions and emergencies | D87: ='Load Group Allocations'!D26 -> ICP Count | E87: ='Load Group Allocations'!E26 -> Distribution | F87: ='Load Group Allocations'!F26 -> Daily Fixed | G87: =IF(E87="distribution",'Raw data'!G87*'Raw Data v2'!I$1,'Raw data'!G87) -> 1336.897571
A88: =$A$86 -> Load group 1 (incl residential) | B88: ='Load Group Allocations'!$G$3 -> Dunedin | C88: ='Load Group Allocations'!B27 -> Vegetation management | D88: ='Load Group Allocations'!D27 -> CPD | E88: ='Load Group Allocations'!E27 -> Distribution | F88: ='Load Group Allocations'!F27 -> Distance | G88: =IF(E88="distribution",'Raw data'!G88*'Raw Data v2'!I$1,'Raw data'!G88) -> 948.4088234
A89: Load group 1 (incl residential) | B89: ='Load Group Allocations'!$G$3 -> Dunedin | C89: ='Load Group Allocations'!B28 -> Routine and corrective maintenance and inspection | D89: ='Load Group Allocations'!D28 -> CPD | E89: ='Load Group Allocations'!E28 -> Distribution | F89: ='Load Group Allocations'!F28 -> Capacity | G89: =IF(E89="distribution",'Raw data'!G89*'Raw Data v2'!I$1,'Raw data'!G89) -> 3156.263946
A90: Load group 1 (incl residential) | B90: ='Load Group Allocations'!$G$3 -> Dunedin | C90: ='Load Group Allocations'!B29 -> System operations and network support | D90: ='Load Group Allocations'!D29 -> ICP Count | E90: ='Load Group Allocations'!E29 -> Distribution | F90: ='Load Group Allocations'!F29 -> Daily Fixed | G90: =IF(E90="distribution",'Raw data'!G90*'Raw Data v2'!I$1,'Raw data'!G90) -> 971.1825508
A91: Load group 1 (incl residential) | B91: ='Load Group Allocations'!$G$3 -> Dunedin | C91: ='Load Group Allocations'!B30 -> Business support | D91: ='Load Group Allocations'!D30 -> ICP Count | E91: ='Load Group Allocations'!E30 -> Distribution | F91: ='Load Group Allocations'!F30 -> Daily Fixed | G91: =IF(E91="distribution",'Raw data'!G91*'Raw Data v2'!I$1,'Raw data'!G91) -> 21943.26268
A92: Load group 1 (incl residential) | B92: ='Load Group Allocations'!$G$3 -> Dunedin | C92: ='Load Group Allocations'!B31 -> Depreciation | D92: ='Load Group Allocations'!D31 -> Regulated Asset Base (Depreciation) | E92: ='Load Group Allocations'!E31 -> Distribution | F92: ='Load Group Allocations'!F31 -> Capacity | G92: =IF(E92="distribution",'Raw data'!G92*'Raw Data v2'!I$1,'Raw data'!G92) -> 8370.367855
A93: Load group 1 (incl residential) | B93: ='Load Group Allocations'!$G$3 -> Dunedin | C93: ='Load Group Allocations'!B32 -> Asset revaluations and other regulatory revenue | D93: ='Load Group Allocations'!D32 -> Regulated Asset Base | E93: ='Load Group Allocations'!E32 -> Distribution | F93: ='Load Group Allocations'!F32 -> Capacity | G93: =IF(E93="distribution",'Raw data'!G93*'Raw Data v2'!I$1,'Raw data'!G93) -> -4533.235131
A94: Load group 1 (incl residential) | B94: ='Load Group Allocations'!$G$3 -> Dunedin | C94: ='Load Group Allocations'!B33 -> Tax | D94: ='Load Group Allocations'!D33 -> Regulated Asset Base | E94: ='Load Group Allocations'!E33 -> Distribution | F94: ='Load Group Allocations'!F33 -> Capacity | G94: =IF(E94="distribution",'Raw data'!G94*'Raw Data v2'!I$1,'Raw data'!G94) -> 3445.058454
A95: Load group 1 (incl residential) | B95: ='Load Group Allocations'!$G$3 -> Dunedin | C95: ='Load Group Allocations'!B34 -> Return on capital | D95: ='Load Group Allocations'!D34 -> Regulated Asset Base | E95: ='Load Group Allocations'!E34 -> Distribution | F95: ='Load Group Allocations'!F34 -> Capacity | G95: =IF(E95="distribution",'Raw data'!G95*'Raw Data v2'!I$1,'Raw data'!G95) -> 13392.30194
A96: Load group 1 (incl residential) | B96: ='Load Group Allocations'!$G$3 -> Dunedin | C96: ='Load Group Allocations'!B35 -> Local Authority rates | D96: ='Load Group Allocations'!D35 -> Regulated Asset Base | E96: ='Load Group Allocations'!E35 -> Passthrough | F96: ='Load Group Allocations'!F35 -> Capacity | G96: =IF(E96="distribution",'Raw data'!G96*'Raw Data v2'!I$1,'Raw data'!G96) -> 481.7699447
A97: Load group 1 (incl residential) | B97: ='Load Group Allocations'!$G$3 -> Dunedin | C97: ='Load Group Allocations'!B36 -> Commerce Act levies | D97: ='Load Group Allocations'!D36 -> Regulated Asset Base | E97: ='Load Group Allocations'!E36 -> Passthrough | F97: ='Load Group Allocations'!F36 -> Capacity | G97: =IF(E97="distribution",'Raw data'!G97*'Raw Data v2'!I$1,'Raw data'!G97) -> 81.78951994
A98: Load group 1 (incl residential) | B98: ='Load Group Allocations'!$G$3 -> Dunedin | C98: ='Load Group Allocations'!B37 -> Electricity Authority levies | D98: ='Load Group Allocations'!D37 -> MWh | E98: ='Load Group Allocations'!E37 -> Passthrough | F98: ='Load Group Allocations'!F37 -> Capacity | G98: =IF(E98="distribution",'Raw data'!G98*'Raw Data v2'!I$1,'Raw data'!G98) -> 101.3922558
A99: Load group 1 (incl residential) | B99: ='Load Group Allocations'!$G$3 -> Dunedin | C99: ='Load Group Allocations'!B38 -> Electricity Authority levies | D99: ='Load Group Allocations'!D38 -> ICP Count | E99: ='Load Group Allocations'!E38 -> Passthrough | F99: ='Load Group Allocations'!F38 -> Daily Fixed | G99: =IF(E99="distribution",'Raw data'!G99*'Raw Data v2'!I$1,'Raw data'!G99) -> 46.9040332
A100: Load group 1 (incl residential) | B100: ='Load Group Allocations'!$G$3 -> Dunedin | C100: ='Load Group Allocations'!B39 -> Utilities Disputes levies | D100: ='Load Group Allocations'!D39 -> ICP Count | E100: ='Load Group Allocations'!E39 -> Passthrough | F100: ='Load Group Allocations'!F39 -> Daily Fixed | G100: =IF(E100="distribution",'Raw data'!G100*'Raw Data v2'!I$1,'Raw data'!G100) -> 42.32120044
A101: Load group 1 (incl residential) | B101: ='Load Group Allocations'!$G$3 -> Dunedin | C101: ='Load Group Allocations'!B40 -> Opex Incentive Amount | D101: ='Load Group Allocations'!D40 -> Prior year distribution revenue | E101: ='Load Group Allocations'!E40 -> Passthrough | F101: ='Load Group Allocations'!F40 -> Daily Fixed | G101: =IF(E101="distribution",'Raw data'!G101*'Raw Data v2'!I$1,'Raw data'!G101) -> -2230.133745
A102: Load group 1 (incl residential) | B102: ='Load Group Allocations'!$G$3 -> Dunedin | C102: ='Load Group Allocations'!B41 -> Capex Incentive Amount | D102: ='Load Group Allocations'!D41 -> Regulated Asset Base | E102: ='Load Group Allocations'!E41 -> Passthrough | F102: ='Load Group Allocations'!F41 -> Capacity | G102: =IF(E102="distribution",'Raw data'!G102*'Raw Data v2'!I$1,'Raw data'!G102) -> -317.6311804
A103: Load group 1 (incl residential) | B103: ='Load Group Allocations'!$G$3 -> Dunedin | C103: ='Load Group Allocations'!B42 -> Transpower - Connection charge | D103: ='Load Group Allocations'!D42 -> MWh | E103: ='Load Group Allocations'!E42 -> Passthrough | F103: ='Load Group Allocations'!F42 -> Capacity | G103: =IF(E103="distribution",'Raw data'!G103*'Raw Data v2'!I$1,'Raw data'!G103) -> 1391.152762
A104: Load group 1 (incl residential) | B104: ='Load Group Allocations'!$G$3 -> Dunedin | C104: ='Load Group Allocations'!B43 -> Transpower - Benefit-based Charge | D104: ='Load Group Allocations'!D43 -> MWh | E104: ='Load Group Allocations'!E43 -> Passthrough | F104: ='Load Group Allocations'!F43 -> Capacity | G104: =IF(E104="distribution",'Raw data'!G104*'Raw Data v2'!I$1,'Raw data'!G104) -> 943.1879561
A105: Load group 1 (incl residential) | B105: ='Load Group Allocations'!$G$3 -> Dunedin | C105: ='Load Group Allocations'!B44 -> Transpower - Residual Charge | D105: ='Load Group Allocations'!D44 -> MWh | E105: ='Load Group Allocations'!E44 -> Passthrough | F105: ='Load Group Allocations'!F44 -> Capacity | G105: =IF(E105="distribution",'Raw data'!G105*'Raw Data v2'!I$1,'Raw data'!G105) -> 7871.206829
A106: Load group 1 (incl residential) | B106: ='Load Group Allocations'!$G$3 -> Dunedin | C106: ='Load Group Allocations'!B45 -> Transpower - Transitional Price Cap | D106: ='Load Group Allocations'!D45 -> MWh | E106: ='Load Group Allocations'!E45 -> Passthrough | F106: ='Load Group Allocations'!F45 -> Capacity | G106: =IF(E106="distribution",'Raw data'!G106*'Raw Data v2'!I$1,'Raw data'!G106) -> 4.907607579
A107: Load group 1 (incl residential) | B107: ='Load Group Allocations'!$G$3 -> Dunedin | C107: ='Load Group Allocations'!B46 -> Transpower - Interconnection costs | D107: ='Load Group Allocations'!D46 -> MWh | E107: ='Load Group Allocations'!E46 -> Passthrough | F107: ='Load Group Allocations'!F46 -> Capacity | G107: =IF(E107="distribution",'Raw data'!G107*'Raw Data v2'!I$1,'Raw data'!G107) -> 0
A108: Load group 1 (incl residential) | B108: ='Load Group Allocations'!$G$3 -> Dunedin | C108: ='Load Group Allocations'!B47 -> Transpower - New investment contract | D108: ='Load Group Allocations'!D47 -> MWh | E108: ='Load Group Allocations'!E47 -> Passthrough | F108: ='Load Group Allocations'!F47 -> Capacity | G108: =IF(E108="distribution",'Raw data'!G108*'Raw Data v2'!I$1,'Raw data'!G108) -> 494.729526
A109: Load group 1 (incl residential) | B109: ='Load Group Allocations'!$G$3 -> Dunedin | C109: ='Load Group Allocations'!B48 -> Distributed Generation Allowance | D109: ='Load Group Allocations'!D48 -> MWh | E109: ='Load Group Allocations'!E48 -> Passthrough | F109: ='Load Group Allocations'!F48 -> Capacity | G109: =IF(E109="distribution",'Raw data'!G109*'Raw Data v2'!I$1,'Raw data'!G109) -> 0
A110: Load group 1 (incl residential) | B110: ='Load Group Allocations'!$G$3 -> Dunedin | C110: ='Load Group Allocations'!B49 -> Wash-up Drawdown Amount | D110: ='Load Group Allocations'!D49 -> 0 | E110: ='Load Group Allocations'!E49 -> Passthrough | F110: ='Load Group Allocations'!F49 -> Daily Fixed | G110: =IF(E110="distribution",'Raw data'!G110*'Raw Data v2'!I$1,'Raw data'!G110) -> 0
A111: Load group 1 (incl residential) | B111: ='Load Group Allocations'!$G$3 -> Dunedin | C111: ='Load Group Allocations'!B50 -> Quality Incentive Adjustments | D111: ='Load Group Allocations'!D50 -> ICP Count | E111: ='Load Group Allocations'!E50 -> Passthrough | F111: ='Load Group Allocations'!F50 -> Daily Fixed | G111: =IF(E111="distribution",'Raw data'!G111*'Raw Data v2'!I$1,'Raw data'!G111) -> 16.35838308
A112: Load group 1 (incl residential) | B112: ='Load Group Allocations'!$G$3 -> Dunedin | C112: ='Load Group Allocations'!B51 -> Capex Wash-up Adjustment | D112: ='Load Group Allocations'!D51 -> Regulated Asset Base | E112: ='Load Group Allocations'!E51 -> Passthrough | F112: ='Load Group Allocations'!F51 -> Capacity | G112: =IF(E112="distribution",'Raw data'!G112*'Raw Data v2'!I$1,'Raw data'!G112) -> 0
A113: Load group 1 (incl residential) | B113: ='Load Group Allocations'!$G$3 -> Dunedin | C113: ='Load Group Allocations'!B52 -> Fire and Emergency Management New Zealand (FENZ) levies | D113: ='Load Group Allocations'!D52 -> Regulated Asset Base | E113: ='Load Group Allocations'!E52 -> Passthrough | F113: ='Load Group Allocations'!F52 -> Capacity | G113: =IF(E113="distribution",'Raw data'!G113*'Raw Data v2'!I$1,'Raw data'!G113) -> 10.37742071
A114: Load group 1 (incl residential) | B114: ='Load Group Allocations'!$H$3 -> Central Otago | C114: ='Load Group Allocations'!B25 -> Service interruptions and emergencies | D114: ='Load Group Allocations'!D25 -> CPD | E114: ='Load Group Allocations'!E25 -> Distribution | F114: ='Load Group Allocations'!F25 -> Capacity | G114: =IF(E114="distribution",'Raw data'!G114*'Raw Data v2'!I$1,'Raw data'!G114) -> 714.084965
A115: Load group 1 (incl residential) | B115: ='Load Group Allocations'!$H$3 -> Central Otago | C115: ='Load Group Allocations'!B26 -> Service interruptions and emergencies | D115: ='Load Group Allocations'!D26 -> ICP Count | E115: ='Load Group Allocations'!E26 -> Distribution | F115: ='Load Group Allocations'!F26 -> Daily Fixed | G115: =IF(E115="distribution",'Raw data'!G115*'Raw Data v2'!I$1,'Raw data'!G115) -> 528.4215453
A116: Load group 1 (incl residential) | B116: ='Load Group Allocations'!$H$3 -> Central Otago | C116: ='Load Group Allocations'!B27 -> Vegetation management | D116: ='Load Group Allocations'!D27 -> CPD | E116: ='Load Group Allocations'!E27 -> Distribution | F116: ='Load Group Allocations'!F27 -> Distance | G116: =IF(E116="distribution",'Raw data'!G116*'Raw Data v2'!I$1,'Raw data'!G116) -> 985.1087265
A117: Load group 1 (incl residential) | B117: ='Load Group Allocations'!$H$3 -> Central Otago | C117: ='Load Group Allocations'!B28 -> Routine and corrective maintenance and inspection | D117: ='Load Group Allocations'!D28 -> CPD | E117: ='Load Group Allocations'!E28 -> Distribution | F117: ='Load Group Allocations'!F28 -> Capacity | G117: =IF(E117="distribution",'Raw data'!G117*'Raw Data v2'!I$1,'Raw data'!G117) -> 3822.184226
A118: Load group 1 (incl residential) | B118: ='Load Group Allocations'!$H$3 -> Central Otago | C118: ='Load Group Allocations'!B29 -> System operations and network support | D118: ='Load Group Allocations'!D29 -> ICP Count | E118: ='Load Group Allocations'!E29 -> Distribution | F118: ='Load Group Allocations'!F29 -> Daily Fixed | G118: =IF(E118="distribution",'Raw data'!G118*'Raw Data v2'!I$1,'Raw data'!G118) -> 383.8691874
A119: Load group 1 (incl residential) | B119: ='Load Group Allocations'!$H$3 -> Central Otago | C119: ='Load Group Allocations'!B30 -> Business support | D119: ='Load Group Allocations'!D30 -> ICP Count | E119: ='Load Group Allocations'!E30 -> Distribution | F119: ='Load Group Allocations'!F30 -> Daily Fixed | G119: =IF(E119="distribution",'Raw data'!G119*'Raw Data v2'!I$1,'Raw data'!G119) -> 8673.284346
A120: Load group 1 (incl residential) | B120: ='Load Group Allocations'!$H$3 -> Central Otago | C120: ='Load Group Allocations'!B31 -> Depreciation | D120: ='Load Group Allocations'!D31 -> Regulated Asset Base (Depreciation) | E120: ='Load Group Allocations'!E31 -> Distribution | F120: ='Load Group Allocations'!F31 -> Capacity | G120: =IF(E120="distribution",'Raw data'!G120*'Raw Data v2'!I$1,'Raw data'!G120) -> 4122.435336
A121: Load group 1 (incl residential) | B121: ='Load Group Allocations'!$H$3 -> Central Otago | C121: ='Load Group Allocations'!B32 -> Asset revaluations and other regulatory revenue | D121: ='Load Group Allocations'!D32 -> Regulated Asset Base | E121: ='Load Group Allocations'!E32 -> Distribution | F121: ='Load Group Allocations'!F32 -> Capacity | G121: =IF(E121="distribution",'Raw data'!G121*'Raw Data v2'!I$1,'Raw data'!G121) -> -2675.609885
A122: Load group 1 (incl residential) | B122: ='Load Group Allocations'!$H$3 -> Central Otago | C122: ='Load Group Allocations'!B33 -> Tax | D122: ='Load Group Allocations'!D33 -> Regulated Asset Base | E122: ='Load Group Allocations'!E33 -> Distribution | F122: ='Load Group Allocations'!F33 -> Capacity | G122: =IF(E122="distribution",'Raw data'!G122*'Raw Data v2'!I$1,'Raw data'!G122) -> 2033.345323
A123: Load group 1 (incl residential) | B123: ='Load Group Allocations'!$H$3 -> Central Otago | C123: ='Load Group Allocations'!B34 -> Return on capital | D123: ='Load Group Allocations'!D34 -> Regulated Asset Base | E123: ='Load Group Allocations'!E34 -> Distribution | F123: ='Load Group Allocations'!F34 -> Capacity | G123: =IF(E123="distribution",'Raw data'!G123*'Raw Data v2'!I$1,'Raw data'!G123) -> 7904.415811
A124: Load group 1 (incl residential) | B124: ='Load Group Allocations'!$H$3 -> Central Otago | C124: ='Load Group Allocations'!B35 -> Local Authority rates | D124: ='Load Group Allocations'!D35 -> Regulated Asset Base | E124: ='Load Group Allocations'!E35 -> Passthrough | F124: ='Load Group Allocations'!F35 -> Capacity | G124: =IF(E124="distribution",'Raw data'!G124*'Raw Data v2'!I$1,'Raw data'!G124) -> 284.3506655
A125: Load group 1 (incl residential) | B125: ='Load Group Allocations'!$H$3 -> Central Otago | C125: ='Load Group Allocations'!B36 -> Commerce Act levies | D125: ='Load Group Allocations'!D36 -> Regulated Asset Base | E125: ='Load Group Allocations'!E36 -> Passthrough | F125: ='Load Group Allocations'!F36 -> Capacity | G125: =IF(E125="distribution",'Raw data'!G125*'Raw Data v2'!I$1,'Raw data'!G125) -> 48.27387984
A126: Load group 1 (incl residential) | B126: ='Load Group Allocations'!$H$3 -> Central Otago | C126: ='Load Group Allocations'!B37 -> Electricity Authority levies | D126: ='Load Group Allocations'!D37 -> MWh | E126: ='Load Group Allocations'!E37 -> Passthrough | F126: ='Load Group Allocations'!F37 -> Capacity | G126: =IF(E126="distribution",'Raw data'!G126*'Raw Data v2'!I$1,'Raw data'!G126) -> 35.90572607
A127: Load group 1 (incl residential) | B127: ='Load Group Allocations'!$H$3 -> Central Otago | C127: ='Load Group Allocations'!B38 -> Electricity Authority levies | D127: ='Load Group Allocations'!D38 -> ICP Count | E127: ='Load Group Allocations'!E38 -> Passthrough | F127: ='Load Group Allocations'!F38 -> Daily Fixed | G127: =IF(E127="distribution",'Raw data'!G127*'Raw Data v2'!I$1,'Raw data'!G127) -> 18.53926751
A128: Load group 1 (incl residential) | B128: ='Load Group Allocations'!$H$3 -> Central Otago | C128: ='Load Group Allocations'!B39 -> Utilities Disputes levies | D128: ='Load Group Allocations'!D39 -> ICP Count | E128: ='Load Group Allocations'!E39 -> Passthrough | F128: ='Load Group Allocations'!F39 -> Daily Fixed | G128: =IF(E128="distribution",'Raw data'!G128*'Raw Data v2'!I$1,'Raw data'!G128) -> 16.72785905
A129: Load group 1 (incl residential) | B129: ='Load Group Allocations'!$H$3 -> Central Otago | C129: ='Load Group Allocations'!B40 -> Opex Incentive Amount | D129: ='Load Group Allocations'!D40 -> Prior year distribution revenue | E129: ='Load Group Allocations'!E40 -> Passthrough | F129: ='Load Group Allocations'!F40 -> Daily Fixed | G129: =IF(E129="distribution",'Raw data'!G129*'Raw Data v2'!I$1,'Raw data'!G129) -> -1378.883375
A130: Load group 1 (incl residential) | B130: ='Load Group Allocations'!$H$3 -> Central Otago | C130: ='Load Group Allocations'!B41 -> Capex Incentive Amount | D130: ='Load Group Allocations'!D41 -> Regulated Asset Base | E130: ='Load Group Allocations'!E41 -> Passthrough | F130: ='Load Group Allocations'!F41 -> Capacity | G130: =IF(E130="distribution",'Raw data'!G130*'Raw Data v2'!I$1,'Raw data'!G130) -> -187.4725448
A131: Load group 1 (incl residential) | B131: ='Load Group Allocations'!$H$3 -> Central Otago | C131: ='Load Group Allocations'!B42 -> Transpower - Connection charge | D131: ='Load Group Allocations'!D42 -> MWh | E131: ='Load Group Allocations'!E42 -> Passthrough | F131: ='Load Group Allocations'!F42 -> Capacity | G131: =IF(E131="distribution",'Raw data'!G131*'Raw Data v2'!I$1,'Raw data'!G131) -> 565.2623908
A132: Load group 1 (incl residential) | B132: ='Load Group Allocations'!$H$3 -> Central Otago | C132: ='Load Group Allocations'!B43 -> Transpower - Benefit-based Charge | D132: ='Load Group Allocations'!D43 -> MWh | E132: ='Load Group Allocations'!E43 -> Passthrough | F132: ='Load Group Allocations'!F43 -> Capacity | G132: =IF(E132="distribution",'Raw data'!G132*'Raw Data v2'!I$1,'Raw data'!G132) -> 221.956911
A133: Load group 1 (incl residential) | B133: ='Load Group Allocations'!$H$3 -> Central Otago | C133: ='Load Group Allocations'!B44 -> Transpower - Residual Charge | D133: ='Load Group Allocations'!D44 -> MWh | E133: ='Load Group Allocations'!E44 -> Passthrough | F133: ='Load Group Allocations'!F44 -> Capacity | G133: =IF(E133="distribution",'Raw data'!G133*'Raw Data v2'!I$1,'Raw data'!G133) -> 2425.462763
A134: Load group 1 (incl residential) | B134: ='Load Group Allocations'!$H$3 -> Central Otago | C134: ='Load Group Allocations'!B45 -> Transpower - Transitional Price Cap | D134: ='Load Group Allocations'!D45 -> MWh | E134: ='Load Group Allocations'!E45 -> Passthrough | F134: ='Load Group Allocations'!F45 -> Capacity | G134: =IF(E134="distribution",'Raw data'!G134*'Raw Data v2'!I$1,'Raw data'!G134) -> 1.474008957
A135: Load group 1 (incl residential) | B135: ='Load Group Allocations'!$H$3 -> Central Otago | C135: ='Load Group Allocations'!B46 -> Transpower - Interconnection costs | D135: ='Load Group Allocations'!D46 -> MWh | E135: ='Load Group Allocations'!E46 -> Passthrough | F135: ='Load Group Allocations'!F46 -> Capacity | G135: =IF(E135="distribution",'Raw data'!G135*'Raw Data v2'!I$1,'Raw data'!G135) -> 0
A136: Load group 1 (incl residential) | B136: ='Load Group Allocations'!$H$3 -> Central Otago | C136: ='Load Group Allocations'!B47 -> Transpower - New investment contract | D136: ='Load Group Allocations'!D47 -> MWh | E136: ='Load Group Allocations'!E47 -> Passthrough | F136: ='Load Group Allocations'!F47 -> Capacity | G136: =IF(E136="distribution",'Raw data'!G136*'Raw Data v2'!I$1,'Raw data'!G136) -> 201.0217729
A137: Load group 1 (incl residential) | B137: ='Load Group Allocations'!$H$3 -> Central Otago | C137: ='Load Group Allocations'!B48 -> Distributed Generation Allowance | D137: ='Load Group Allocations'!D48 -> MWh | E137: ='Load Group Allocations'!E48 -> Passthrough | F137: ='Load Group Allocations'!F48 -> Capacity | G137: =IF(E137="distribution",'Raw data'!G137*'Raw Data v2'!I$1,'Raw data'!G137) -> 0
A138: Load group 1 (incl residential) | B138: ='Load Group Allocations'!$H$3 -> Central Otago | C138: ='Load Group Allocations'!B49 -> Wash-up Drawdown Amount | D138: ='Load Group Allocations'!D49 -> 0 | E138: ='Load Group Allocations'!E49 -> Passthrough | F138: ='Load Group Allocations'!F49 -> Daily Fixed | G138: =IF(E138="distribution",'Raw data'!G138*'Raw Data v2'!I$1,'Raw data'!G138) -> 0
A139: Load group 1 (incl residential) | B139: ='Load Group Allocations'!$H$3 -> Central Otago | C139: ='Load Group Allocations'!B50 -> Quality Incentive Adjustments | D139: ='Load Group Allocations'!D50 -> ICP Count | E139: ='Load Group Allocations'!E50 -> Passthrough | F139: ='Load Group Allocations'!F50 -> Daily Fixed | G139: =IF(E139="distribution",'Raw data'!G139*'Raw Data v2'!I$1,'Raw data'!G139) -> 6.465807293
A140: Load group 1 (incl residential) | B140: ='Load Group Allocations'!$H$3 -> Central Otago | C140: ='Load Group Allocations'!B51 -> Capex Wash-up Adjustment | D140: ='Load Group Allocations'!D51 -> Regulated Asset Base | E140: ='Load Group Allocations'!E51 -> Passthrough | F140: ='Load Group Allocations'!F51 -> Capacity | G140: =IF(E140="distribution",'Raw data'!G140*'Raw Data v2'!I$1,'Raw data'!G140) -> 0
A141: Load group 1 (incl residential) | B141: ='Load Group Allocations'!$H$3 -> Central Otago | C141: ='Load Group Allocations'!B52 -> Fire and Emergency Management New Zealand (FENZ) levies | D141: ='Load Group Allocations'!D52 -> Regulated Asset Base | E141: ='Load Group Allocations'!E52 -> Passthrough | F141: ='Load Group Allocations'!F52 -> Capacity | G141: =IF(E141="distribution",'Raw data'!G141*'Raw Data v2'!I$1,'Raw data'!G141) -> 6.124970053
A142: Load group 1 (incl residential) | B142: ='Load Group Allocations'!$I$3 -> Queenstown | C142: ='Load Group Allocations'!B25 -> Service interruptions and emergencies | D142: ='Load Group Allocations'!D25 -> CPD | E142: ='Load Group Allocations'!E25 -> Distribution | F142: ='Load Group Allocations'!F25 -> Capacity | G142: =IF(E142="distribution",'Raw data'!G142*'Raw Data v2'!I$1,'Raw data'!G142) -> 234.0220683
A143: Load group 1 (incl residential) | B143: ='Load Group Allocations'!$I$3 -> Queenstown | C143: ='Load Group Allocations'!B26 -> Service interruptions and emergencies | D143: ='Load Group Allocations'!D26 -> ICP Count | E143: ='Load Group Allocations'!E26 -> Distribution | F143: ='Load Group Allocations'!F26 -> Daily Fixed | G143: =IF(E143="distribution",'Raw data'!G143*'Raw Data v2'!I$1,'Raw data'!G143) -> 320.1814324
A144: Load group 1 (incl residential) | B144: ='Load Group Allocations'!$I$3 -> Queenstown | C144: ='Load Group Allocations'!B27 -> Vegetation management | D144: ='Load Group Allocations'!D27 -> CPD | E144: ='Load Group Allocations'!E27 -> Distribution | F144: ='Load Group Allocations'!F27 -> Distance | G144: =IF(E144="distribution",'Raw data'!G144*'Raw Data v2'!I$1,'Raw data'!G144) -> 200.3979378
A145: Load group 1 (incl residential) | B145: ='Load Group Allocations'!$I$3 -> Queenstown | C145: ='Load Group Allocations'!B28 -> Routine and corrective maintenance and inspection | D145: ='Load Group Allocations'!D28 -> CPD | E145: ='Load Group Allocations'!E28 -> Distribution | F145: ='Load Group Allocations'!F28 -> Capacity | G145: =IF(E145="distribution",'Raw data'!G145*'Raw Data v2'!I$1,'Raw data'!G145) -> 1252.617688
A146: Load group 1 (incl residential) | B146: ='Load Group Allocations'!$I$3 -> Queenstown | C146: ='Load Group Allocations'!B29 -> System operations and network support | D146: ='Load Group Allocations'!D29 -> ICP Count | E146: ='Load Group Allocations'!E29 -> Distribution | F146: ='Load Group Allocations'!F29 -> Daily Fixed | G146: =IF(E146="distribution",'Raw data'!G146*'Raw Data v2'!I$1,'Raw data'!G146) -> 232.5941994
A147: Load group 1 (incl residential) | B147: ='Load Group Allocations'!$I$3 -> Queenstown | C147: ='Load Group Allocations'!B30 -> Business support | D147: ='Load Group Allocations'!D30 -> ICP Count | E147: ='Load Group Allocations'!E30 -> Distribution | F147: ='Load Group Allocations'!F30 -> Daily Fixed | G147: =IF(E147="distribution",'Raw data'!G147*'Raw Data v2'!I$1,'Raw data'!G147) -> 5255.320549
A148: Load group 1 (incl residential) | B148: ='Load Group Allocations'!$I$3 -> Queenstown | C148: ='Load Group Allocations'!B31 -> Depreciation | D148: ='Load Group Allocations'!D31 -> Regulated Asset Base (Depreciation) | E148: ='Load Group Allocations'!E31 -> Distribution | F148: ='Load Group Allocations'!F31 -> Capacity | G148: =IF(E148="distribution",'Raw data'!G148*'Raw Data v2'!I$1,'Raw data'!G148) -> 2366.579009
A149: Load group 1 (incl residential) | B149: ='Load Group Allocations'!$I$3 -> Queenstown | C149: ='Load Group Allocations'!B32 -> Asset revaluations and other regulatory revenue | D149: ='Load Group Allocations'!D32 -> Regulated Asset Base | E149: ='Load Group Allocations'!E32 -> Distribution | F149: ='Load Group Allocations'!F32 -> Capacity | G149: =IF(E149="distribution",'Raw data'!G149*'Raw Data v2'!I$1,'Raw data'!G149) -> -1312.641326
A150: Load group 1 (incl residential) | B150: ='Load Group Allocations'!$I$3 -> Queenstown | C150: ='Load Group Allocations'!B33 -> Tax | D150: ='Load Group Allocations'!D33 -> Regulated Asset Base | E150: ='Load Group Allocations'!E33 -> Distribution | F150: ='Load Group Allocations'!F33 -> Capacity | G150: =IF(E150="distribution",'Raw data'!G150*'Raw Data v2'!I$1,'Raw data'!G150) -> 997.549425
A151: Load group 1 (incl residential) | B151: ='Load Group Allocations'!$I$3 -> Queenstown | C151: ='Load Group Allocations'!B34 -> Return on capital | D151: ='Load Group Allocations'!D34 -> Regulated Asset Base | E151: ='Load Group Allocations'!E34 -> Distribution | F151: ='Load Group Allocations'!F34 -> Capacity | G151: =IF(E151="distribution",'Raw data'!G151*'Raw Data v2'!I$1,'Raw data'!G151) -> 3877.868337
A152: =$A$86 -> Load group 1 (incl residential) | B152: ='Load Group Allocations'!$I$3 -> Queenstown | C152: ='Load Group Allocations'!B35 -> Local Authority rates | D152: ='Load Group Allocations'!D35 -> Regulated Asset Base | E152: ='Load Group Allocations'!E35 -> Passthrough | F152: ='Load Group Allocations'!F35 -> Capacity | G152: =IF(E152="distribution",'Raw data'!G152*'Raw Data v2'!I$1,'Raw data'!G152) -> 139.5010673
A153: Load group 1 (incl residential) | B153: ='Load Group Allocations'!$I$3 -> Queenstown | C153: ='Load Group Allocations'!B36 -> Commerce Act levies | D153: ='Load Group Allocations'!D36 -> Regulated Asset Base | E153: ='Load Group Allocations'!E36 -> Passthrough | F153: ='Load Group Allocations'!F36 -> Capacity | G153: =IF(E153="distribution",'Raw data'!G153*'Raw Data v2'!I$1,'Raw data'!G153) -> 23.68293301
A154: Load group 1 (incl residential) | B154: ='Load Group Allocations'!$I$3 -> Queenstown | C154: ='Load Group Allocations'!B37 -> Electricity Authority levies | D154: ='Load Group Allocations'!D37 -> MWh | E154: ='Load Group Allocations'!E37 -> Passthrough | F154: ='Load Group Allocations'!F37 -> Capacity | G154: =IF(E154="distribution",'Raw data'!G154*'Raw Data v2'!I$1,'Raw data'!G154) -> 29.42088721
A155: Load group 1 (incl residential) | B155: ='Load Group Allocations'!$I$3 -> Queenstown | C155: ='Load Group Allocations'!B38 -> Electricity Authority levies | D155: ='Load Group Allocations'!D38 -> ICP Count | E155: ='Load Group Allocations'!E38 -> Passthrough | F155: ='Load Group Allocations'!F38 -> Daily Fixed | G155: =IF(E155="distribution",'Raw data'!G155*'Raw Data v2'!I$1,'Raw data'!G155) -> 11.23332173
A156: Load group 1 (incl residential) | B156: ='Load Group Allocations'!$I$3 -> Queenstown | C156: ='Load Group Allocations'!B39 -> Utilities Disputes levies | D156: ='Load Group Allocations'!D39 -> ICP Count | E156: ='Load Group Allocations'!E39 -> Passthrough | F156: ='Load Group Allocations'!F39 -> Daily Fixed | G156: =IF(E156="distribution",'Raw data'!G156*'Raw Data v2'!I$1,'Raw data'!G156) -> 10.13575226
A157: Load group 1 (incl residential) | B157: ='Load Group Allocations'!$I$3 -> Queenstown | C157: ='Load Group Allocations'!B40 -> Opex Incentive Amount | D157: ='Load Group Allocations'!D40 -> Prior year distribution revenue | E157: ='Load Group Allocations'!E40 -> Passthrough | F157: ='Load Group Allocations'!F40 -> Daily Fixed | G157: =IF(E157="distribution",'Raw data'!G157*'Raw Data v2'!I$1,'Raw data'!G157) -> -670.5225387
A158: Load group 1 (incl residential) | B158: ='Load Group Allocations'!$I$3 -> Queenstown | C158: ='Load Group Allocations'!B41 -> Capex Incentive Amount | D158: ='Load Group Allocations'!D41 -> Regulated Asset Base | E158: ='Load Group Allocations'!E41 -> Passthrough | F158: ='Load Group Allocations'!F41 -> Capacity | G158: =IF(E158="distribution",'Raw data'!G158*'Raw Data v2'!I$1,'Raw data'!G158) -> -91.97312778
A159: Load group 1 (incl residential) | B159: ='Load Group Allocations'!$I$3 -> Queenstown | C159: ='Load Group Allocations'!B42 -> Transpower - Connection charge | D159: ='Load Group Allocations'!D42 -> MWh | E159: ='Load Group Allocations'!E42 -> Passthrough | F159: ='Load Group Allocations'!F42 -> Capacity | G159: =IF(E159="distribution",'Raw data'!G159*'Raw Data v2'!I$1,'Raw data'!G159) -> 1349.337584
A160: Load group 1 (incl residential) | B160: ='Load Group Allocations'!$I$3 -> Queenstown | C160: ='Load Group Allocations'!B43 -> Transpower - Benefit-based Charge | D160: ='Load Group Allocations'!D43 -> MWh | E160: ='Load Group Allocations'!E43 -> Passthrough | F160: ='Load Group Allocations'!F43 -> Capacity | G160: =IF(E160="distribution",'Raw data'!G160*'Raw Data v2'!I$1,'Raw data'!G160) -> 362.9288804
A161: Load group 1 (incl residential) | B161: ='Load Group Allocations'!$I$3 -> Queenstown | C161: ='Load Group Allocations'!B44 -> Transpower - Residual Charge | D161: ='Load Group Allocations'!D44 -> MWh | E161: ='Load Group Allocations'!E44 -> Passthrough | F161: ='Load Group Allocations'!F44 -> Capacity | G161: =IF(E161="distribution",'Raw data'!G161*'Raw Data v2'!I$1,'Raw data'!G161) -> 1957.61234
A162: Load group 1 (incl residential) | B162: ='Load Group Allocations'!$I$3 -> Queenstown | C162: ='Load Group Allocations'!B45 -> Transpower - Transitional Price Cap | D162: ='Load Group Allocations'!D45 -> MWh | E162: ='Load Group Allocations'!E45 -> Passthrough | F162: ='Load Group Allocations'!F45 -> Capacity | G162: =IF(E162="distribution",'Raw data'!G162*'Raw Data v2'!I$1,'Raw data'!G162) -> 1.292012209
A163: Load group 1 (incl residential) | B163: ='Load Group Allocations'!$I$3 -> Queenstown | C163: ='Load Group Allocations'!B46 -> Transpower - Interconnection costs | D163: ='Load Group Allocations'!D46 -> MWh | E163: ='Load Group Allocations'!E46 -> Passthrough | F163: ='Load Group Allocations'!F46 -> Capacity | G163: =IF(E163="distribution",'Raw data'!G163*'Raw Data v2'!I$1,'Raw data'!G163) -> 0
A164: Load group 1 (incl residential) | B164: ='Load Group Allocations'!$I$3 -> Queenstown | C164: ='Load Group Allocations'!B47 -> Transpower - New investment contract | D164: ='Load Group Allocations'!D47 -> MWh | E164: ='Load Group Allocations'!E47 -> Passthrough | F164: ='Load Group Allocations'!F47 -> Capacity | G164: =IF(E164="distribution",'Raw data'!G164*'Raw Data v2'!I$1,'Raw data'!G164) -> 479.8589785
A165: Load group 1 (incl residential) | B165: ='Load Group Allocations'!$I$3 -> Queenstown | C165: ='Load Group Allocations'!B48 -> Distributed Generation Allowance | D165: ='Load Group Allocations'!D48 -> MWh | E165: ='Load Group Allocations'!E48 -> Passthrough | F165: ='Load Group Allocations'!F48 -> Capacity | G165: =IF(E165="distribution",'Raw data'!G165*'Raw Data v2'!I$1,'Raw data'!G165) -> 0
A166: Load group 1 (incl residential) | B166: ='Load Group Allocations'!$I$3 -> Queenstown | C166: ='Load Group Allocations'!B49 -> Wash-up Drawdown Amount | D166: ='Load Group Allocations'!D49 -> 0 | E166: ='Load Group Allocations'!E49 -> Passthrough | F166: ='Load Group Allocations'!F49 -> Daily Fixed | G166: =IF(E166="distribution",'Raw data'!G166*'Raw Data v2'!I$1,'Raw data'!G166) -> 0
A167: Load group 1 (incl residential) | B167: ='Load Group Allocations'!$I$3 -> Queenstown | C167: ='Load Group Allocations'!B50 -> Quality Incentive Adjustments | D167: ='Load Group Allocations'!D50 -> ICP Count | E167: ='Load Group Allocations'!E50 -> Passthrough | F167: ='Load Group Allocations'!F50 -> Daily Fixed | G167: =IF(E167="distribution",'Raw data'!G167*'Raw Data v2'!I$1,'Raw data'!G167) -> 3.91776501
A168: Load group 1 (incl residential) | B168: ='Load Group Allocations'!$I$3 -> Queenstown | C168: ='Load Group Allocations'!B51 -> Capex Wash-up Adjustment | D168: ='Load Group Allocations'!D51 -> Regulated Asset Base | E168: ='Load Group Allocations'!E51 -> Passthrough | F168: ='Load Group Allocations'!F51 -> Capacity | G168: =IF(E168="distribution",'Raw data'!G168*'Raw Data v2'!I$1,'Raw data'!G168) -> 0
A169: Load group 1 (incl residential) | B169: ='Load Group Allocations'!$I$3 -> Queenstown | C169: ='Load Group Allocations'!B52 -> Fire and Emergency Management New Zealand (FENZ) levies | D169: ='Load Group Allocations'!D52 -> Regulated Asset Base | E169: ='Load Group Allocations'!E52 -> Passthrough | F169: ='Load Group Allocations'!F52 -> Capacity | G169: =IF(E169="distribution",'Raw data'!G169*'Raw Data v2'!I$1,'Raw data'!G169) -> 3.004880816
A170: ='Load Group Allocations'!$B$104 -> Load group 2 | B170: ='Load Group Allocations'!$G$3 -> Dunedin | C170: ='Load Group Allocations'!B25 -> Service interruptions and emergencies | D170: ='Load Group Allocations'!D25 -> CPD | E170: ='Load Group Allocations'!E25 -> Distribution | F170: ='Load Group Allocations'!F25 -> Capacity | G170: =IF(E170="distribution",'Raw data'!G170*'Raw Data v2'!I$1,'Raw data'!G170) -> 121.6400319
A171: ='Load Group Allocations'!$B$104 -> Load group 2 | B171: ='Load Group Allocations'!$G$3 -> Dunedin | C171: ='Load Group Allocations'!B26 -> Service interruptions and emergencies | D171: ='Load Group Allocations'!D26 -> ICP Count | E171: ='Load Group Allocations'!E26 -> Distribution | F171: ='Load Group Allocations'!F26 -> Daily Fixed | G171: =IF(E171="distribution",'Raw data'!G171*'Raw Data v2'!I$1,'Raw data'!G171) -> 79.67734329
A172: ='Load Group Allocations'!$B$104 -> Load group 2 | B172: ='Load Group Allocations'!$G$3 -> Dunedin | C172: ='Load Group Allocations'!B27 -> Vegetation management | D172: ='Load Group Allocations'!D27 -> CPD | E172: ='Load Group Allocations'!E27 -> Distribution | F172: ='Load Group Allocations'!F27 -> Distance | G172: =IF(E172="distribution",'Raw data'!G172*'Raw Data v2'!I$1,'Raw data'!G172) -> 195.6412926
A173: ='Load Group Allocations'!$B$104 -> Load group 2 | B173: ='Load Group Allocations'!$G$3 -> Dunedin | C173: ='Load Group Allocations'!B28 -> Routine and corrective maintenance and inspection | D173: ='Load Group Allocations'!D28 -> CPD | E173: ='Load Group Allocations'!E28 -> Distribution | F173: ='Load Group Allocations'!F28 -> Capacity | G173: =IF(E173="distribution",'Raw data'!G173*'Raw Data v2'!I$1,'Raw data'!G173) -> 651.0858429
A174: ='Load Group Allocations'!$B$104 -> Load group 2 | B174: ='Load Group Allocations'!$G$3 -> Dunedin | C174: ='Load Group Allocations'!B29 -> System operations and network support | D174: ='Load Group Allocations'!D29 -> ICP Count | E174: ='Load Group Allocations'!E29 -> Distribution | F174: ='Load Group Allocations'!F29 -> Daily Fixed | G174: =IF(E174="distribution",'Raw data'!G174*'Raw Data v2'!I$1,'Raw data'!G174) -> 57.88120734
A175: ='Load Group Allocations'!$B$104 -> Load group 2 | B175: ='Load Group Allocations'!$G$3 -> Dunedin | C175: ='Load Group Allocations'!B30 -> Business support | D175: ='Load Group Allocations'!D30 -> ICP Count | E175: ='Load Group Allocations'!E30 -> Distribution | F175: ='Load Group Allocations'!F30 -> Daily Fixed | G175: =IF(E175="distribution",'Raw data'!G175*'Raw Data v2'!I$1,'Raw data'!G175) -> 1307.7897
A176: ='Load Group Allocations'!$B$104 -> Load group 2 | B176: ='Load Group Allocations'!$G$3 -> Dunedin | C176: ='Load Group Allocations'!B31 -> Depreciation | D176: ='Load Group Allocations'!D31 -> Regulated Asset Base (Depreciation) | E176: ='Load Group Allocations'!E31 -> Distribution | F176: ='Load Group Allocations'!F31 -> Capacity | G176: =IF(E176="distribution",'Raw data'!G176*'Raw Data v2'!I$1,'Raw data'!G176) -> 1726.670552
A177: ='Load Group Allocations'!$B$104 -> Load group 2 | B177: ='Load Group Allocations'!$G$3 -> Dunedin | C177: ='Load Group Allocations'!B32 -> Asset revaluations and other regulatory revenue | D177: ='Load Group Allocations'!D32 -> Regulated Asset Base | E177: ='Load Group Allocations'!E32 -> Distribution | F177: ='Load Group Allocations'!F32 -> Capacity | G177: =IF(E177="distribution",'Raw data'!G177*'Raw Data v2'!I$1,'Raw data'!G177) -> -935.1325703
A178: ='Load Group Allocations'!$B$104 -> Load group 2 | B178: ='Load Group Allocations'!$G$3 -> Dunedin | C178: ='Load Group Allocations'!B33 -> Tax | D178: ='Load Group Allocations'!D33 -> Regulated Asset Base | E178: ='Load Group Allocations'!E33 -> Distribution | F178: ='Load Group Allocations'!F33 -> Capacity | G178: =IF(E178="distribution",'Raw data'!G178*'Raw Data v2'!I$1,'Raw data'!G178) -> 710.6594459
A179: ='Load Group Allocations'!$B$104 -> Load group 2 | B179: ='Load Group Allocations'!$G$3 -> Dunedin | C179: ='Load Group Allocations'!B34 -> Return on capital | D179: ='Load Group Allocations'!D34 -> Regulated Asset Base | E179: ='Load Group Allocations'!E34 -> Distribution | F179: ='Load Group Allocations'!F34 -> Capacity | G179: =IF(E179="distribution",'Raw data'!G179*'Raw Data v2'!I$1,'Raw data'!G179) -> 2762.613756
A180: ='Load Group Allocations'!$B$104 -> Load group 2 | B180: ='Load Group Allocations'!$G$3 -> Dunedin | C180: ='Load Group Allocations'!B35 -> Local Authority rates | D180: ='Load Group Allocations'!D35 -> Regulated Asset Base | E180: ='Load Group Allocations'!E35 -> Passthrough | F180: ='Load Group Allocations'!F35 -> Capacity | G180: =IF(E180="distribution",'Raw data'!G180*'Raw Data v2'!I$1,'Raw data'!G180) -> 99.38129253
A181: ='Load Group Allocations'!$B$104 -> Load group 2 | B181: ='Load Group Allocations'!$G$3 -> Dunedin | C181: ='Load Group Allocations'!B36 -> Commerce Act levies | D181: ='Load Group Allocations'!D36 -> Regulated Asset Base | E181: ='Load Group Allocations'!E36 -> Passthrough | F181: ='Load Group Allocations'!F36 -> Capacity | G181: =IF(E181="distribution",'Raw data'!G181*'Raw Data v2'!I$1,'Raw data'!G181) -> 16.87184578
A182: ='Load Group Allocations'!$B$104 -> Load group 2 | B182: ='Load Group Allocations'!$G$3 -> Dunedin | C182: ='Load Group Allocations'!B37 -> Electricity Authority levies | D182: ='Load Group Allocations'!D37 -> MWh | E182: ='Load Group Allocations'!E37 -> Passthrough | F182: ='Load Group Allocations'!F37 -> Capacity | G182: =IF(E182="distribution",'Raw data'!G182*'Raw Data v2'!I$1,'Raw data'!G182) -> 30.80588092
A183: ='Load Group Allocations'!$B$104 -> Load group 2 | B183: ='Load Group Allocations'!$G$3 -> Dunedin | C183: ='Load Group Allocations'!B38 -> Electricity Authority levies | D183: ='Load Group Allocations'!D38 -> ICP Count | E183: ='Load Group Allocations'!E38 -> Passthrough | F183: ='Load Group Allocations'!F38 -> Daily Fixed | G183: =IF(E183="distribution",'Raw data'!G183*'Raw Data v2'!I$1,'Raw data'!G183) -> 2.795418913
A184: ='Load Group Allocations'!$B$104 -> Load group 2 | B184: ='Load Group Allocations'!$G$3 -> Dunedin | C184: ='Load Group Allocations'!B39 -> Utilities Disputes levies | D184: ='Load Group Allocations'!D39 -> ICP Count | E184: ='Load Group Allocations'!E39 -> Passthrough | F184: ='Load Group Allocations'!F39 -> Daily Fixed | G184: =IF(E184="distribution",'Raw data'!G184*'Raw Data v2'!I$1,'Raw data'!G184) -> 2.522288086
A185: ='Load Group Allocations'!$B$104 -> Load group 2 | B185: ='Load Group Allocations'!$G$3 -> Dunedin | C185: ='Load Group Allocations'!B40 -> Opex Incentive Amount | D185: ='Load Group Allocations'!D40 -> Prior year distribution revenue | E185: ='Load Group Allocations'!E40 -> Passthrough | F185: ='Load Group Allocations'!F40 -> Daily Fixed | G185: =IF(E185="distribution",'Raw data'!G185*'Raw Data v2'!I$1,'Raw data'!G185) -> -540.8573231
A186: ='Load Group Allocations'!$B$104 -> Load group 2 | B186: ='Load Group Allocations'!$G$3 -> Dunedin | C186: ='Load Group Allocations'!B41 -> Capex Incentive Amount | D186: ='Load Group Allocations'!D41 -> Regulated Asset Base | E186: ='Load Group Allocations'!E41 -> Passthrough | F186: ='Load Group Allocations'!F41 -> Capacity | G186: =IF(E186="distribution",'Raw data'!G186*'Raw Data v2'!I$1,'Raw data'!G186) -> -65.52213895
A187: ='Load Group Allocations'!$B$104 -> Load group 2 | B187: ='Load Group Allocations'!$G$3 -> Dunedin | C187: ='Load Group Allocations'!B42 -> Transpower - Connection charge | D187: ='Load Group Allocations'!D42 -> MWh | E187: ='Load Group Allocations'!E42 -> Passthrough | F187: ='Load Group Allocations'!F42 -> Capacity | G187: =IF(E187="distribution",'Raw data'!G187*'Raw Data v2'!I$1,'Raw data'!G187) -> 422.6721851
A188: ='Load Group Allocations'!$B$104 -> Load group 2 | B188: ='Load Group Allocations'!$G$3 -> Dunedin | C188: ='Load Group Allocations'!B43 -> Transpower - Benefit-based Charge | D188: ='Load Group Allocations'!D43 -> MWh | E188: ='Load Group Allocations'!E43 -> Passthrough | F188: ='Load Group Allocations'!F43 -> Capacity | G188: =IF(E188="distribution",'Raw data'!G188*'Raw Data v2'!I$1,'Raw data'!G188) -> 286.5676043
A189: ='Load Group Allocations'!$B$104 -> Load group 2 | B189: ='Load Group Allocations'!$G$3 -> Dunedin | C189: ='Load Group Allocations'!B44 -> Transpower - Residual Charge | D189: ='Load Group Allocations'!D44 -> MWh | E189: ='Load Group Allocations'!E44 -> Passthrough | F189: ='Load Group Allocations'!F44 -> Capacity | G189: =IF(E189="distribution",'Raw data'!G189*'Raw Data v2'!I$1,'Raw data'!G189) -> 2391.49882
A190: ='Load Group Allocations'!$B$104 -> Load group 2 | B190: ='Load Group Allocations'!$G$3 -> Dunedin | C190: ='Load Group Allocations'!B45 -> Transpower - Transitional Price Cap | D190: ='Load Group Allocations'!D45 -> MWh | E190: ='Load Group Allocations'!E45 -> Passthrough | F190: ='Load Group Allocations'!F45 -> Capacity | G190: =IF(E190="distribution",'Raw data'!G190*'Raw Data v2'!I$1,'Raw data'!G190) -> 1.491072207
A191: ='Load Group Allocations'!$B$104 -> Load group 2 | B191: ='Load Group Allocations'!$G$3 -> Dunedin | C191: ='Load Group Allocations'!B46 -> Transpower - Interconnection costs | D191: ='Load Group Allocations'!D46 -> MWh | E191: ='Load Group Allocations'!E46 -> Passthrough | F191: ='Load Group Allocations'!F46 -> Capacity | G191: =IF(E191="distribution",'Raw data'!G191*'Raw Data v2'!I$1,'Raw data'!G191) -> 0
A192: ='Load Group Allocations'!$B$104 -> Load group 2 | B192: ='Load Group Allocations'!$G$3 -> Dunedin | C192: ='Load Group Allocations'!B47 -> Transpower - New investment contract | D192: ='Load Group Allocations'!D47 -> MWh | E192: ='Load Group Allocations'!E47 -> Passthrough | F192: ='Load Group Allocations'!F47 -> Capacity | G192: =IF(E192="distribution",'Raw data'!G192*'Raw Data v2'!I$1,'Raw data'!G192) -> 150.3130465
A193: ='Load Group Allocations'!$B$104 -> Load group 2 | B193: ='Load Group Allocations'!$G$3 -> Dunedin | C193: ='Load Group Allocations'!B48 -> Distributed Generation Allowance | D193: ='Load Group Allocations'!D48 -> MWh | E193: ='Load Group Allocations'!E48 -> Passthrough | F193: ='Load Group Allocations'!F48 -> Capacity | G193: =IF(E193="distribution",'Raw data'!G193*'Raw Data v2'!I$1,'Raw data'!G193) -> 0
A194: ='Load Group Allocations'!$B$104 -> Load group 2 | B194: ='Load Group Allocations'!$G$3 -> Dunedin | C194: ='Load Group Allocations'!B49 -> Wash-up Drawdown Amount | D194: ='Load Group Allocations'!D49 -> 0 | E194: ='Load Group Allocations'!E49 -> Passthrough | F194: ='Load Group Allocations'!F49 -> Daily Fixed | G194: =IF(E194="distribution",'Raw data'!G194*'Raw Data v2'!I$1,'Raw data'!G194) -> 0
A195: ='Load Group Allocations'!$B$104 -> Load group 2 | B195: ='Load Group Allocations'!$G$3 -> Dunedin | C195: ='Load Group Allocations'!B50 -> Quality Incentive Adjustments | D195: ='Load Group Allocations'!D50 -> ICP Count | E195: ='Load Group Allocations'!E50 -> Passthrough | F195: ='Load Group Allocations'!F50 -> Daily Fixed | G195: =IF(E195="distribution",'Raw data'!G195*'Raw Data v2'!I$1,'Raw data'!G195) -> 0.9749381946
A196: ='Load Group Allocations'!$B$104 -> Load group 2 | B196: ='Load Group Allocations'!$G$3 -> Dunedin | C196: ='Load Group Allocations'!B51 -> Capex Wash-up Adjustment | D196: ='Load Group Allocations'!D51 -> Regulated Asset Base | E196: ='Load Group Allocations'!E51 -> Passthrough | F196: ='Load Group Allocations'!F51 -> Capacity | G196: =IF(E196="distribution",'Raw data'!G196*'Raw Data v2'!I$1,'Raw data'!G196) -> 0
A197: ='Load Group Allocations'!$B$104 -> Load group 2 | B197: ='Load Group Allocations'!$G$3 -> Dunedin | C197: ='Load Group Allocations'!B52 -> Fire and Emergency Management New Zealand (FENZ) levies | D197: ='Load Group Allocations'!D52 -> Regulated Asset Base | E197: ='Load Group Allocations'!E52 -> Passthrough | F197: ='Load Group Allocations'!F52 -> Capacity | G197: =IF(E197="distribution",'Raw data'!G197*'Raw Data v2'!I$1,'Raw data'!G197) -> 2.140692864
A198: ='Load Group Allocations'!$B$104 -> Load group 2 | B198: ='Load Group Allocations'!$H$3 -> Central Otago | C198: ='Load Group Allocations'!B25 -> Service interruptions and emergencies | D198: ='Load Group Allocations'!D25 -> CPD | E198: ='Load Group Allocations'!E25 -> Distribution | F198: ='Load Group Allocations'!F25 -> Capacity | G198: =IF(E198="distribution",'Raw data'!G198*'Raw Data v2'!I$1,'Raw data'!G198) -> 193.6116827
A199: ='Load Group Allocations'!$B$104 -> Load group 2 | B199: ='Load Group Allocations'!$H$3 -> Central Otago | C199: ='Load Group Allocations'!B26 -> Service interruptions and emergencies | D199: ='Load Group Allocations'!D26 -> ICP Count | E199: ='Load Group Allocations'!E26 -> Distribution | F199: ='Load Group Allocations'!F26 -> Daily Fixed | G199: =IF(E199="distribution",'Raw data'!G199*'Raw Data v2'!I$1,'Raw data'!G199) -> 56.64376004
A200: ='Load Group Allocations'!$B$104 -> Load group 2 | B200: ='Load Group Allocations'!$H$3 -> Central Otago | C200: ='Load Group Allocations'!B27 -> Vegetation management | D200: ='Load Group Allocations'!D27 -> CPD | E200: ='Load Group Allocations'!E27 -> Distribution | F200: ='Load Group Allocations'!F27 -> Distance | G200: =IF(E200="distribution",'Raw data'!G200*'Raw Data v2'!I$1,'Raw data'!G200) -> 267.0950482
... 809 more rows

Sheet Detail1 (hidden)
A1: Details for Sum of Amount - Load group: Load group 2, Passthrough/Dist: Passthrough
A3: Load group | B3: Pricing Area | C3: Componants | D3: Allocator | E3: Passthrough/Dist | F3: Tariff types | G3: Amount
A4: Load group 2 | B4: Central Otago | C4: Fire and Emergency Management New Zealand (FENZ) levies | D4: Regulated Asset Base | E4: Passthrough | F4: Capacity | G4: 0
A5: Load group 2 | B5: Central Otago | C5: Capex Wash-up Adjustment | D5: Regulated Asset Base | E5: Passthrough | F5: Capacity | G5: 0
A6: Load group 2 | B6: Central Otago | C6: Quality Incentive Adjustments | D6: ICP Count | E6: Passthrough | F6: Daily Fixed | G6: 0
A7: Load group 2 | B7: Central Otago | C7: Wash-up Drawdown Amount | D7: 0 | E7: Passthrough | F7: Daily Fixed | G7: 0
A8: Load group 2 | B8: Central Otago | C8: Distributed Generation Allowance | D8: MWh | E8: Passthrough | F8: Capacity | G8: 0
A9: Load group 2 | B9: Central Otago | C9: Transpower - New investment contract | D9: MWh | E9: Passthrough | F9: Capacity | G9: 0
A10: Load group 2 | B10: Central Otago | C10: Transpower - Interconnection costs | D10: MWh | E10: Passthrough | F10: Capacity | G10: 0
A11: Load group 2 | B11: Central Otago | C11: Transpower - Transitional Price Cap | D11: MWh | E11: Passthrough | F11: Capacity | G11: 0
A12: Load group 2 | B12: Central Otago | C12: Transpower - Residual Charge | D12: MWh | E12: Passthrough | F12: Capacity | G12: 0
A13: Load group 2 | B13: Central Otago | C13: Transpower - Benefit-based Charge | D13: MWh | E13: Passthrough | F13: Capacity | G13: 0
A14: Load group 2 | B14: Central Otago | C14: Transpower - Connection charge | D14: MWh | E14: Passthrough | F14: Capacity | G14: 0
A15: Load group 2 | B15: Central Otago | C15: Capex Incentive Amount | D15: Regulated Asset Base | E15: Passthrough | F15: Capacity | G15: 0
A16: Load group 2 | B16: Central Otago | C16: Opex Incentive Amount | D16: Prior year distribution revenue | E16: Passthrough | F16: Daily Fixed | G16: 0
A17: Load group 2 | B17: Central Otago | C17: Utilities Disputes levies | D17: ICP Count | E17: Passthrough | F17: Daily Fixed | G17: 0
A18: Load group 2 | B18: Central Otago | C18: Electricity Authority levies | D18: ICP Count | E18: Passthrough | F18: Daily Fixed | G18: 0
A19: Load group 2 | B19: Central Otago | C19: Electricity Authority levies | D19: MWh | E19: Passthrough | F19: Capacity | G19: 0
A20: Load group 2 | B20: Central Otago | C20: Commerce Act levies | D20: Regulated Asset Base | E20: Passthrough | F20: Capacity | G20: 0
A21: Load group 2 | B21: Central Otago | C21: Local Authority rates | D21: Regulated Asset Base | E21: Passthrough | F21: Capacity | G21: 0
